Workbook

Sheet 12 мес
A11: Отчет по текущему ремонту многоквартирных домов, находящихся в управлении ООО "УК Гарант Сервис" за 12 месяцев 2020 года
A12: =B13 -> БПС д. 1
A13: Адрес | B13: БПС д. 1 | G13: Общая информация | H13: БПС д. 1
A15: Группы работ | B15: Виды работ по текущему ремонту | C15: Место проведения | D15: Объем работ | E15: Единица измерения | F15: Затраты | G15: Общеполезная жилая площадь, м² | H15: Тариф на текущий ремонт, руб/м² | I15: Начислено за год | J15: Остаток на начало года | K15: Поступило за 12 месяцев
A16: общестрой | B16: Изготовление и установка металлических дверей | C16: п.1 | D16: 2.00 | E16: шт | F16: 36,249 ₽ | G16: 6,886.10 | H16: 5.00 | I16: 413,166 ₽ | J16: ₽0 | K16: 220,658 ₽
B17: Облицовка лифта фанерой | D17: 15.59 | E17: м² | F17: 9,207 ₽ | G17: Остаток средств на 01.01.2021 | I17: =IFERROR(J16+K16-GETPIVOTDATA("[Measures].[Сумма по столбцу Затраты 4]",$A$15),J16+K16) -> 135,827
B18: Смена замков | C18: п-л;п.1 | D18: 5.00 | E18: шт | F18: 4,627 ₽
B19: Смена стекол в МОП | C19: п.1 | D19: 1.11 | E19: м² | F19: 2,124 ₽
B20: Смена/установка доводчиков | C20: п.1 | D20: 1.00 | E20: шт | F20: 2,404 ₽
B21: Установка табличек с нумерацией | C21: п.1 | D21: 1.00 | E21: шт | F21: 643 ₽ | G21: Остаток средств на 01.01.2021 с арендаторами | I21: =I17+GETPIVOTDATA("за 12 месяцев",$G$27) -> 145,617
A22: сантехника | B22: Прокладка подпиточной линии ЦО | C22: ТП;149 | D22: 5.00 | E22: мп | F22: 12,012 ₽
B23: Смена (ремонт) полотенцесушителя | C23: 76 | D23: 1.00 | E23: шт | F23: 1,016 ₽
B24: Смена запорной арматуры | C24: верный | D24: 9.00 | E24: шт | F24: 5,090 ₽
A25: электрика | B25: Прокладка (замена) электропроводки | D25: 15.00 | E25: м | F25: 2,130 ₽ | G25: Арендаторы | H25: БПС д. 1
B26: Смена автоматических выключателей | C26: грщ | D26: 3.00 | E26: шт | F26: 4,360 ₽
B27: Смена светильников | C27: 10 эт | D27: 1.00 | E27: шт | F27: 1,537 ₽ | G27: Арендатор | H27: Тариф на СОИ, руб/м² | I27: Площадь, м² | J27: Начислено за год | K27: за 12 месяцев
B28: Смена фотореле | C28: грщ | D28: 1.00 | E28: шт | F28: 3,432 ₽ | G28: Горбунов М.А. | H28: 19.18 | I28: 178 | J28: 10,680 ₽ | K28: 1,780 ₽
A29: Общий итог | F29: 84,831 ₽ | G29: Разгуляев О.А. | H29: 19.18 | I29: 178 | J29: 10,680 ₽ | K29: 5,340 ₽
G30: Яковлев А.В. | H30: 19.18 | I30: 178 | J30: 10,680 ₽ | K30: 2,670 ₽
G31: Нева Сити | H31: 19.18 | I31: 533.9 | J31: 32,034 ₽ | K31: 0 ₽
G32: Общий итог | J32: 64,074 ₽ | K32: 9,790 ₽
A60: Генеральный директор ООО "УК Гарант Сервис" | I60: Марков Р.С.
A61: Отчет по текущему ремонту многоквартирных домов, находящихся в управлении ООО "УК Гарант Сервис" за 12 месяцев 2020 года
A62: =B63 -> БПС д. 3
A63: Адрес | B63: БПС д. 3 | G63: Общая информация | H63: БПС д. 3
A65: Группы работ | B65: Виды работ по текущему ремонту | C65: Место проведения | D65: Объем работ | E65: Единица измерения | F65: Затраты | G65: Общеполезная жилая площадь, м² | H65: Тариф на текущий ремонт, руб/м² | I65: Начислено за год | J65: Остаток на начало года | K65: Поступило за 12 месяцев
A66: общестрой | B66: Изготовление и установка пандусов | C66: п.2;п.3 | D66: 2.00 | E66: шт | F66: 212,320 ₽ | G66: 18,304.16 | H66: 0.00 | I66: 0 ₽ | J66: ₽811,169 | K66: 87,196 ₽
B67: Косметический ремонт МОП | C67: п.1-4 первые этажи | D67: 4.00 | E67: шт | F67: 41,781 ₽ | G67: Остаток средств на 01.01.2021 | I67: =IFERROR(J66+K66-GETPIVOTDATA("[Measures].[Сумма по столбцу Затраты 4]",$A$65),J66+K66) -> 484,821
B68: Переклейка дефектной плитки | C68: п.4;254;п.4;п.3;247 | D68: 20.46 | E68: м² | F68: 31,166 ₽
B69: Смена дверных ручек | C69: п.1 | D69: 1.00 | E69: шт | F69: 329 ₽
B70: Смена оконных ручек | C70: п.2 | D70: 3.00 | E70: шт | F70: 950 ₽
B71: Смена почтовых замков | C71: 147,359;359;275;п.3 | D71: 5.00 | E71: шт | F71: 2,678 ₽ | G71: Остаток средств на 01.01.2021 с арендаторами | I71: =I67+GETPIVOTDATA("за 12 месяцев",$G$77) -> 484,821
B72: Смена стекол в МОП | C72: п.2,3;п.2;п.2;п.2 | D72: 7.09 | E72: м² | F72: 11,969 ₽
B73: Смена/установка доводчиков | C73: п.2;п.1;п.2,3 | D73: 29.00 | E73: шт | F73: 70,458 ₽
B74: Установка табличек с нумерацией | C74: п.1-4 | D74: 4.00 | E74: шт | F74: 2,498 ₽
A75: сантехника | B75: Прокладка трубопровода для воды | C75: п-л | D75: 12.00 | E75: мп | F75: 11,784 ₽ | G75: Арендаторы | H75: БПС д. 3
B76: Смена (ремонт) полотенцесушителя | C76: 151;195 | D76: 2.00 | E76: шт | F76: 2,032 ₽
B77: Смена запорной арматуры | C77: 144;220;300 | D77: 4.00 | E77: шт | F77: 3,959 ₽ | G77: Арендатор | H77: Тариф на СОИ, руб/м² | I77: Площадь, м² | J77: Начислено за год | K77: за 12 месяцев
B78: Смена расширительного бака | C78: п-л | D78: 1.00 | E78: шт | F78: 8,946 ₽ | G78: Ильясова Г.А. | H78: 24.74 | I78: 155.6 | J78: 0 ₽ | K78: 0 ₽
B79: Смена трубопровода ГВС | C79: 247 | D79: 2.00 | E79: мп | F79: 2,575 ₽ | G79: Кротов М.И. | H79: 24.74 | I79: 111.6 | J79: 0 ₽ | K79: 0 ₽
B80: Смена трубопровода ХВС | C80: п-л | D80: 4.00 | E80: мп | F80: 6,667 ₽ | G80: Матвеева Н.И. | H80: 24.74 | I80: 69.7 | J80: 0 ₽ | K80: 0 ₽
A81: электрика | B81: Смена фотореле | D81: 1.00 | E81: шт | F81: 3,432 ₽ | G81: Остряков П.В. | H81: 24.74 | I81: 365.45 | J81: 0 ₽ | K81: 0 ₽
A82: Общий итог | F82: 413,544 ₽ | G82: Сизиков А.В. | H82: 24.74 | I82: 365.45 | J82: 0 ₽ | K82: 0 ₽
G83: Соловьева З.В. | H83: 24.74 | I83: 60.8 | J83: 0 ₽ | K83: 0 ₽
G84: Общий итог | J84: 0 ₽ | K84: 0 ₽
A110: Генеральный директор ООО "УК Гарант Сервис" | I110: Марков Р.С.
A111: Отчет по текущему ремонту многоквартирных домов, находящихся в управлении ООО "УК Гарант Сервис" за 12 месяцев 2020 года
A112: =B113 -> БПС д. 5
A113: Адрес | B113: БПС д. 5 | G113: Общая информация | H113: БПС д. 5
A115: Группы работ | B115: Виды работ по текущему ремонту | C115: Место проведения | D115: Объем работ | E115: Единица измерения | F115: Затраты | G115: Общеполезная жилая площадь, м² | H115: Тариф на текущий ремонт, руб/м² | I115: Начислено за год | J115: Остаток на начало года | K115: Поступило за 12 месяцев
A116: общестрой | B116: Окраска ограждений | D116: 64.20 | E116: м² | F116: 6,479 ₽ | G116: 2,557.00 | H116: 3.00 | I116: 92,052 | J116: 187,249 | K116: 83,927 ₽
B117: Подсыпка песка на детскую площадку | D117: 0.30 | E117: м³ | F117: 994 ₽ | G117: Остаток средств на 01.01.2021 | I117: =IFERROR(J116+K116-GETPIVOTDATA("[Measures].[Сумма по столбцу Затраты 4]",$A$115),J116+K116) -> 180,930
A118: сантехника | B118: Поверка приборов учета в ИТП | C118: ИТП | D118: 4.00 | E118: шт | F118: 27,983 ₽
B119: Ремонт циркуляционного насоса | D119: 1.00 | E119: шт | F119: 38,930 ₽
A120: электрика | B120: Монтаж камер видеонаблюдения | D120: 3.00 | E120: шт | F120: 15,860 ₽
A121: Общий итог | F121: 90,246 ₽ | G121: Остаток средств на 01.01.2021 с арендаторами | I121: =I117+GETPIVOTDATA("за 12 месяцев",$G$127) -> 195,433
G125: Арендаторы | H125: БПС д. 5
G127: Арендатор | H127: Тариф на СОИ, руб/м² | I127: Площадь, м² | J127: Начислено за год | K127: за 12 месяцев
G128: Ильясова Г.А. | H128: 21.74 | I128: 235.4 | J128: 16,949 ₽ | K128: 10,613 ₽
G129: Тамарова И.Е. | H129: 21.74 | I129: 132.2 | J129: 4,759 ₽ | K129: 3,890 ₽
G130: Общий итог | J130: 21,708 ₽ | K130: 14,503 ₽
A160: Генеральный директор ООО "УК Гарант Сервис" | I160: Марков Р.С.
A161: Отчет по текущему ремонту многоквартирных домов, находящихся в управлении ООО "УК Гарант Сервис" за 12 месяцев 2020 года
A162: =B163 -> Горького д. 5
A163: Адрес | B163: Горького д. 5 | G163: Общая информация | H163: Горького д. 5
A165: Группы работ | B165: Виды работ по текущему ремонту | C165: Место проведения | D165: Объем работ | E165: Единица измерения | F165: Затраты | G165: Общеполезная жилая площадь, м² | H165: Тариф на текущий ремонт, руб/м² | I165: Начислено за год | J165: Остаток на начало года | K165: Поступило за 12 месяцев
A166: общестрой | B166: Косметический ремонт МОП | C166: п.1 | D166: 1.00 | E166: шт | F166: 43,952 ₽ | G166: 905.42 | H166: 5.50 | I166: 59,758 ₽ | J166: ₽295,180 | K166: 58,894 ₽
B167: Ремонт кровли | C167: 15 | D167: 3.80 | E167: м² | F167: 25,975 ₽ | G167: Остаток средств на 01.01.2021 | I167: =IFERROR(J166+K166-GETPIVOTDATA("[Measures].[Сумма по столбцу Затраты 4]",$A$165),J166+K166) -> 237,330
B168: Ремонт системы вентиляции | C168: 15 | D168: 4.00 | E168: шт | F168: 3,009 ₽
B169: Смена оконных блоков | C169: п.1 | D169: 2.00 | E169: шт | F169: 38,016 ₽
A170: электрика | B170: Прокладка (замена) электропроводки | C170: п.1,2 | D170: 7.00 | E170: м | F170: 2,278 ₽
B171: Смена светильников | C171: п.1,2 | D171: 2.00 | E171: шт | F171: 3,514 ₽ | G171: Остаток средств на 01.01.2021 с арендаторами | I171: =I167+GETPIVOTDATA("за 12 месяцев",$G$177) -> 249,817
A172: Общий итог | F172: 116,744 ₽
G175: Арендаторы | H175: Горького д. 5
G177: Арендатор | H177: Тариф на СОИ, руб/м² | I177: Площадь, м² | J177: Начислено за год | K177: за 12 месяцев
G178: Антохина О.Н. | H178: 18.83 | I178: 86.85 | J178: 5,732 ₽ | K178: 6,496 ₽
G179: Соловьева О.Н. | H179: 18.83 | I179: 86.85 | J179: 5,732 ₽ | K179: 5,992 ₽
G180: Общий итог | J180: 11,464 ₽ | K180: 12,487 ₽
A210: Генеральный директор ООО "УК Гарант Сервис" | I210: Марков Р.С.
A211: Отчет по текущему ремонту многоквартирных домов, находящихся в управлении ООО "УК Гарант Сервис" за 12 месяцев 2020 года
A212: =B213 -> Горького д. 7
A213: Адрес | B213: Горького д. 7 | G213: Общая информация | H213: Горького д. 7
A215: Группы работ | B215: Виды работ по текущему ремонту | C215: Место проведения | D215: Объем работ | E215: Единица измерения | F215: Затраты | G215: Общеполезная жилая площадь, м² | H215: Тариф на текущий ремонт, руб/м² | I215: Начислено за год | J215: Остаток на начало года | K215: Поступило за 12 месяцев
A216: общестрой | B216: Косметический ремонт МОП | C216: п.1,2 | D216: 2.00 | E216: шт | F216: 79,813 ₽ | G216: 629.10 | H216: 5.50 | I216: 41,521 ₽ | J216: ₽120,551 | K216: 42,617 ₽
B217: Ремонт кровли | C217: п.1,2 | D217: 7.20 | E217: м² | F217: 28,317 ₽ | G217: Остаток средств на 01.01.2021 | I217: =IFERROR(J216+K216-GETPIVOTDATA("[Measures].[Сумма по столбцу Затраты 4]",$A$215),J216+K216) -> 766
B218: Смена оконных блоков | C218: п.1,2 | D218: 2.00 | E218: шт | F218: 48,034 ₽
A219: сантехника | B219: Смена канализации | C219: 8 | D219: 6.00 | E219: м | F219: 6,238 ₽
A220: Общий итог | F220: 162,402 ₽
A260: Генеральный директор ООО "УК Гарант Сервис" | I260: Марков Р.С.
A261: Отчет по текущему ремонту многоквартирных домов, находящихся в управлении ООО "УК Гарант Сервис" за 12 месяцев 2020 года
A262: =B263 -> Десантника Исаева д. 1
A263: Адрес | B263: Десантника Исаева д. 1 | G263: Общая информация | H263: Десантника Исаева д. 1
A265: Группы работ | B265: Виды работ по текущему ремонту | C265: Место проведения | D265: Объем работ | E265: Единица измерения | F265: Затраты | G265: Общеполезная жилая площадь, м² | H265: Тариф на текущий ремонт, руб/м² | I265: Начислено за год | J265: Остаток на начало года | K265: Поступило за 12 месяцев
G266: 45.60 | H266: 0.00 | I266: 0 | J266: -2,931 | K266: 0
G267: Остаток средств на 01.01.2021 | I267: =IFERROR(J266+K266-GETPIVOTDATA("[Measures].[Сумма по столбцу Затраты 4]",$A$265),J266+K266) -> -2,931
A310: Генеральный директор ООО "УК Гарант Сервис" | I310: Марков Р.С.
A311: Отчет по текущему ремонту многоквартирных домов, находящихся в управлении ООО "УК Гарант Сервис" за 12 месяцев 2020 года
A312: =B313 -> Кирова д. 12
A313: Адрес | B313: Кирова д. 12 | G313: Общая информация | H313: Кирова д. 12
A315: Группы работ | B315: Виды работ по текущему ремонту | C315: Место проведения | D315: Объем работ | E315: Единица измерения | F315: Затраты | G315: Общеполезная жилая площадь, м² | H315: Тариф на текущий ремонт, руб/м² | I315: Начислено за год | J315: Остаток на начало года | K315: Поступило за 12 месяцев
A316: общестрой | B316: Изготовление и установка труб вентиляции | C316: 6 | D316: 1.25 | E316: м | F316: 859 ₽ | G316: 398.00 | H316: 5.50 | I316: 26,268 ₽ | J316: (₽1,876) | K316: 26,273 ₽
B317: Ремонт балконов | C317: 3,6 | D317: 2.00 | E317: шт | F317: 22,605 ₽ | G317: Остаток средств на 01.01.2021 | I317: =IFERROR(J316+K316-GETPIVOTDATA("[Measures].[Сумма по столбцу Затраты 4]",$A$315),J316+K316) -> -5,257
A318: сантехника | B318: Смена (ремонт) радиаторов отопления | C318: 1 | D318: 1.00 | E318: шт | F318: 3,119 ₽
A319: электрика | B319: Смена светильников | C319: 1-2 эт | D319: 2.00 | E319: шт | F319: 3,071 ₽
A320: Общий итог | F320: 29,654 ₽
A360: Генеральный директор ООО "УК Гарант Сервис" | I360: Марков Р.С.
A361: Отчет по текущему ремонту многоквартирных домов, находящихся в управлении ООО "УК Гарант Сервис" за 12 месяцев 2020 года
A362: =B363 -> Кирова д. 13
A363: Адрес | B363: Кирова д. 13 | G363: Общая информация | H363: Кирова д. 13
A365: Группы работ | B365: Виды работ по текущему ремонту | C365: Место проведения | D365: Объем работ | E365: Единица измерения | F365: Затраты | G365: Общеполезная жилая площадь, м² | H365: Тариф на текущий ремонт, руб/м² | I365: Начислено за год | J365: Остаток на начало года | K365: Поступило за 12 месяцев
A366: сантехника | B366: Смена (ремонт) радиаторов отопления | C366: 6 | D366: 1.00 | E366: шт | F366: 1,922 ₽ | G366: 669.35 | H366: 5.50 | I366: 44,177 ₽ | J366: ₽35,857 | K366: 38,461 ₽
B367: Смена канализации | C367: 8,9 | D367: 2.50 | E367: м | F367: 2,866 ₽ | G367: Остаток средств на 01.01.2021 | I367: =IFERROR(J366+K366-GETPIVOTDATA("[Measures].[Сумма по столбцу Затраты 4]",$A$365),J366+K366) -> 69,530
A368: Общий итог | F368: 4,788 ₽
G371: Остаток средств на 01.01.2021 с арендаторами | I371: =I367+GETPIVOTDATA("за 12 месяцев",$G$377) -> 85,410
G375: Арендаторы | H375: Кирова д. 13
G377: Арендатор | H377: Тариф на СОИ, руб/м² | I377: Площадь, м² | J377: Начислено за год | K377: за 12 месяцев
G378: Алферов А.Ю. | H378: 18.83 | I378: 87.15 | J378: 5,752 ₽ | K378: 6,235 ₽
G379: Зайцев А.Э. | H379: 18.83 | I379: 87.15 | J379: 5,752 ₽ | K379: 5,421 ₽
G380: Северный город | H380: 18.83 | I380: 41.2 | J380: 2,719 ₽ | K380: 4,225 ₽
G381: Общий итог | J381: 14,223 ₽ | K381: 15,881 ₽
A410: Генеральный директор ООО "УК Гарант Сервис" | I410: Марков Р.С.
A411: Отчет по текущему ремонту многоквартирных домов, находящихся в управлении ООО "УК Гарант Сервис" за 12 месяцев 2020 года
A412: =B413 -> Кирова д. 15
A413: Адрес | B413: Кирова д. 15 | G413: Общая информация | H413: Кирова д. 15
A415: Группы работ | B415: Виды работ по текущему ремонту | C415: Место проведения | D415: Объем работ | E415: Единица измерения | F415: Затраты | G415: Общеполезная жилая площадь, м² | H415: Тариф на текущий ремонт, руб/м² | I415: Начислено за год | J415: Остаток на начало года | K415: Поступило за 12 месяцев
A416: сантехника | B416: Переборка элеваторного узла | C416: ТП | D416: 1.00 | E416: шт | F416: 2,422 ₽ | G416: 634.20 | H416: 5.50 | I416: 41,857 ₽ | J416: ₽90,853 | K416: 39,898 ₽
B417: Смена запорной арматуры | C417: ТП | D417: 2.00 | E417: шт | F417: 5,313 ₽ | G417: Остаток средств на 01.01.2021 | I417: =IFERROR(J416+K416-GETPIVOTDATA("[Measures].[Сумма по столбцу Затраты 4]",$A$415),J416+K416) -> 119,179
A418: электрика | B418: Смена светильников | C418: п.1 | D418: 2.00 | E418: шт | F418: 3,837 ₽
A419: Общий итог | F419: 11,572 ₽
A460: Генеральный директор ООО "УК Гарант Сервис" | I460: Марков Р.С.
A461: Отчет по текущему ремонту многоквартирных домов, находящихся в управлении ООО "УК Гарант Сервис" за 12 месяцев 2020 года
A462: =B463 -> Кирова д. 17
A463: Адрес | B463: Кирова д. 17 | G463: Общая информация | H463: Кирова д. 17
A465: Группы работ | B465: Виды работ по текущему ремонту | C465: Место проведения | D465: Объем работ | E465: Единица измерения | F465: Затраты | G465: Общеполезная жилая площадь, м² | H465: Тариф на текущий ремонт, руб/м² | I465: Начислено за год | J465: Остаток на начало года | K465: Поступило за 12 месяцев
A466: общестрой | B466: Ремонт полов дощатых | C466: 3 | D466: 24.00 | E466: м² | F466: 25,675 ₽ | G466: 610.50 | H466: 5.50 | I466: 40,293 ₽ | J466: ₽63,892 | K466: 33,482 ₽
B467: Установка снегозадержателя | C467: 11 | D467: 3.00 | E467: м | F467: 26,815 ₽ | G467: Остаток средств на 01.01.2021 | I467: =IFERROR(J466+K466-GETPIVOTDATA("[Measures].[Сумма по столбцу Затраты 4]",$A$465),J466+K466) -> -9,058
A468: сантехника | B468: Смена запорной арматуры | C468: ТП | D468: 1.00 | E468: шт | F468: 7,482 ₽
B469: Смена трубопровода ХВС | C469: 1,2,3 | D469: 24.00 | E469: мп | F469: 46,460 ₽
A470: Общий итог | F470: 106,432 ₽
A510: Генеральный директор ООО "УК Гарант Сервис" | I510: Марков Р.С.
A511: Отчет по текущему ремонту многоквартирных домов, находящихся в управлении ООО "УК Гарант Сервис" за 12 месяцев 2020 года
A512: =B513 -> Кирова д. 18
A513: Адрес | B513: Кирова д. 18 | G513: Общая информация | H513: Кирова д. 18
A515: Группы работ | B515: Виды работ по текущему ремонту | C515: Место проведения | D515: Объем работ | E515: Единица измерения | F515: Затраты | G515: Общеполезная жилая площадь, м² | H515: Тариф на текущий ремонт, руб/м² | I515: Начислено за год | J515: Остаток на начало года | K515: Поступило за 12 месяцев
A516: общестрой | B516: Ремонт балконов | C516: 13,15 | D516: 2.00 | E516: шт | F516: 4,417 ₽ | G516: 1,060.00 | H516: 5.50 | I516: 69,960 ₽ | J516: ₽309,614 | K516: 63,415 ₽
B517: Ремонт кровли | C517: 7 | D517: 1.25 | E517: м² | F517: 1,330 ₽ | G517: Остаток средств на 01.01.2021 | I517: =IFERROR(J516+K516-GETPIVOTDATA("[Measures].[Сумма по столбцу Затраты 4]",$A$515),J516+K516) -> 337,732
B518: Ремонт системы вентиляции | D518: 1.00 | E518: шт | F518: 25,755 ₽
B519: Смена замков | C519: п.1 | D519: 1.00 | E519: шт | F519: 981 ₽
B520: Смена стекол в МОП | C520: ч-к | D520: 0.54 | E520: м² | F520: 455 ₽
B521: Смена/установка доводчиков | C521: п.1 | D521: 1.00 | E521: шт | F521: 2,359 ₽
A522: Общий итог | F522: 35,297 ₽
A560: Генеральный директор ООО "УК Гарант Сервис" | I560: Марков Р.С.
A561: Отчет по текущему ремонту многоквартирных домов, находящихся в управлении ООО "УК Гарант Сервис" за 12 месяцев 2020 года
A562: =B563 -> Кирова д. 19
A563: Адрес | B563: Кирова д. 19 | G563: Общая информация | H563: Кирова д. 19
A565: Группы работ | B565: Виды работ по текущему ремонту | C565: Место проведения | D565: Объем работ | E565: Единица измерения | F565: Затраты | G565: Общеполезная жилая площадь, м² | H565: Тариф на текущий ремонт, руб/м² | I565: Начислено за год | J565: Остаток на начало года | K565: Поступило за 12 месяцев
A566: сантехника | B566: Смена трубопровода ХВС | C566: 7 | D566: 4.00 | E566: мп | F566: 6,588 ₽ | G566: 600.58 | H566: 5.50 | I566: 39,638 ₽ | J566: (₽125,104) | K566: 34,693 ₽
A567: электрика | B567: Смена выключателей | C567: п.1,2 | D567: 3.00 | E567: шт | F567: 588 ₽ | G567: Остаток средств на 01.01.2021 | I567: =IFERROR(J566+K566-GETPIVOTDATA("[Measures].[Сумма по столбцу Затраты 4]",$A$565),J566+K566) -> -100,744
B568: Смена светильников | C568: п.1,2 | D568: 2.00 | E568: шт | F568: 3,157 ₽
A569: Общий итог | F569: 10,333 ₽
A610: Генеральный директор ООО "УК Гарант Сервис" | I610: Марков Р.С.
A611: Отчет по текущему ремонту многоквартирных домов, находящихся в управлении ООО "УК Гарант Сервис" за 12 месяцев 2020 года
A612: =B613 -> Кирова д. 21
A613: Адрес | B613: Кирова д. 21 | G613: Общая информация | H613: Кирова д. 21
A615: Группы работ | B615: Виды работ по текущему ремонту | C615: Место проведения | D615: Объем работ | E615: Единица измерения | F615: Затраты | G615: Общеполезная жилая площадь, м² | H615: Тариф на текущий ремонт, руб/м² | I615: Начислено за год | J615: Остаток на начало года | K615: Поступило за 12 месяцев
A616: общестрой | B616: Смена замков | C616: п.2 | D616: 1.00 | E616: шт | F616: 1,622 ₽ | G616: 618.55 | H616: 5.50 | I616: 40,824 ₽ | J616: (₽36,194) | K616: 38,079 ₽
B617: Смена стекол в МОП | C617: п.2 | D617: 0.45 | E617: м² | F617: 1,337 ₽ | G617: Остаток средств на 01.01.2021 | I617: =IFERROR(J616+K616-GETPIVOTDATA("[Measures].[Сумма по столбцу Затраты 4]",$A$615),J616+K616) -> -10,723
A618: сантехника | B618: Смена канализации | C618: 3,6 | D618: 2.00 | E618: м | F618: 2,297 ₽
B619: Смена трубопровода ГВС | C619: лоток | D619: 6.00 | E619: мп | F619: 7,352 ₽
A620: Общий итог | F620: 12,608 ₽
A660: Генеральный директор ООО "УК Гарант Сервис" | I660: Марков Р.С.
A661: Отчет по текущему ремонту многоквартирных домов, находящихся в управлении ООО "УК Гарант Сервис" за 12 месяцев 2020 года
A662: =B663 -> Кирова д. 22
A663: Адрес | B663: Кирова д. 22 | G663: Общая информация | H663: Кирова д. 22
A665: Группы работ | B665: Виды работ по текущему ремонту | C665: Место проведения | D665: Объем работ | E665: Единица измерения | F665: Затраты | G665: Общеполезная жилая площадь, м² | H665: Тариф на текущий ремонт, руб/м² | I665: Начислено за год | J665: Остаток на начало года | K665: Поступило за 12 месяцев
A666: общестрой | B666: Ремонт кровли | C666: 12 | D666: 1.00 | E666: м² | F666: 1,165 ₽ | G666: 844.59 | H666: 5.50 | I666: 55,743 ₽ | J666: ₽332,339 | K666: 49,437 ₽
B667: Смена стекол в МОП | C667: п.2 | D667: 0.72 | E667: м² | F667: 1,439 ₽ | G667: Остаток средств на 01.01.2021 | I667: =IFERROR(J666+K666-GETPIVOTDATA("[Measures].[Сумма по столбцу Затраты 4]",$A$665),J666+K666) -> 379,172
A668: Общий итог | F668: 2,604 ₽
G671: Остаток средств на 01.01.2021 с арендаторами | I671: =I667+GETPIVOTDATA("за 12 месяцев",$G$677) -> 395,830
G675: Арендаторы | H675: Кирова д. 22
G677: Арендатор | H677: Тариф на СОИ, руб/м² | I677: Площадь, м² | J677: Начислено за год | K677: за 12 месяцев
G678: Мед. центр "Делис" | H678: 18.83 | I678: 216.4 | J678: 14,282 ₽ | K678: 16,658 ₽
G679: Общий итог | J679: 14,282 ₽ | K679: 16,658 ₽
A710: Генеральный директор ООО "УК Гарант Сервис" | I710: Марков Р.С.
A711: Отчет по текущему ремонту многоквартирных домов, находящихся в управлении ООО "УК Гарант Сервис" за 12 месяцев 2020 года
A712: =B713 -> Кирова д. 23
A713: Адрес | B713: Кирова д. 23 | G713: Общая информация | H713: Кирова д. 23
A715: Группы работ | B715: Виды работ по текущему ремонту | C715: Место проведения | D715: Объем работ | E715: Единица измерения | F715: Затраты | G715: Общеполезная жилая площадь, м² | H715: Тариф на текущий ремонт, руб/м² | I715: Начислено за год | J715: Остаток на начало года | K715: Поступило за 12 месяцев
A716: общестрой | B716: Смена стекол в МОП | C716: п.2 | D716: 0.40 | E716: м² | F716: 1,289 ₽ | G716: 721.39 | H716: 5.50 | I716: 47,612 ₽ | J716: ₽147,410 | K716: 43,405 ₽
A717: сантехника | B717: Смена трубопровода ЦО | C717: п.1 | D717: 2.00 | E717: мп | F717: 13,722 ₽ | G717: Остаток средств на 01.01.2021 | I717: =IFERROR(J716+K716-GETPIVOTDATA("[Measures].[Сумма по столбцу Затраты 4]",$A$715),J716+K716) -> 173,239
B718: Установка обжимных муфт (гебо) | C718: 2 | D718: 1.00 | E718: шт | F718: 2,565 ₽
A719: Общий итог | F719: 17,576 ₽
A760: Генеральный директор ООО "УК Гарант Сервис" | I760: Марков Р.С.
A761: Отчет по текущему ремонту многоквартирных домов, находящихся в управлении ООО "УК Гарант Сервис" за 12 месяцев 2020 года
A762: =B763 -> Кирова д. 25
A763: Адрес | B763: Кирова д. 25 | G763: Общая информация | H763: Кирова д. 25
A765: Группы работ | B765: Виды работ по текущему ремонту | C765: Место проведения | D765: Объем работ | E765: Единица измерения | F765: Затраты | G765: Общеполезная жилая площадь, м² | H765: Тариф на текущий ремонт, руб/м² | I765: Начислено за год | J765: Остаток на начало года | K765: Поступило за 12 месяцев
A766: общестрой | B766: Косметический ремонт МОП | C766: п.2 | D766: 1.00 | E766: шт | F766: 53,354 ₽ | G766: 710.59 | H766: 5.50 | I766: 46,899 ₽ | J766: ₽144,777 | K766: 37,514 ₽
B767: Ремонт скамеек | C767: п.2 | D767: 1.00 | E767: шт | F767: 3,793 ₽ | G767: Остаток средств на 01.01.2021 | I767: =IFERROR(J766+K766-GETPIVOTDATA("[Measures].[Сумма по столбцу Затраты 4]",$A$765),J766+K766) -> 67,517
B768: Ремонт стены в ТП | D768: 2.93 | E768: м² | F768: 14,162 ₽
... 955 more rows

Sheet остаток средств
A1: № | B1: Адрес | C1: Общеполезная жилая площадь, м² | D1: Тариф на текущий ремонт, руб/м² | E1: Начислено за год | F1: Поступило за 3 месяца | G1: Поступило за 6 месяцев | H1: Поступило за 9 месяцев | I1: Поступило за 12 месяцев | J1: Остаток на начало года | K1: Остаток на 01.01.2021 | L1: Работы за 3 месяца | M1: Работы за 6 месяцев | N1: Работы за 9 месяцев | O1: Работы за 12 месяцев | P1: январь | Q1: февраль | R1: март | S1: июнь | T1: июль | U1: август | V1: сентябрь | W1: октябрь | X1: ноябрь | Y1: декабрь
A2: 1 | B2: Молодцово д. 1 | C2: 4,394.90 | D2: 5.50 | E2: =остаток[[#This Row],[Общеполезная жилая площадь, м²]]*остаток[[#This Row],[Тариф на текущий ремонт, руб/м²]]*12 -> 290,063 ₽ | F2: =SUM(остаток[[#This Row],[январь]:[март]]) -> 64,067 ₽ | G2: =SUM(остаток[[#This Row],[январь]:[июнь]]) -> 104,600 ₽ | H2: =SUM(остаток[[#This Row],[январь]:[сентябрь]]) -> 174,548 ₽ | I2: =SUM(остаток[[#This Row],[январь]:[декабрь]]) -> 243,347 ₽ | J2: -8,608 | K2: ='12 мес'!I1617 -> 81,532 | L2: =SUMIFS(работы[Затраты],работы[Адрес],"Молодцово д. 1",работы[Квартал],"1") -> 4,161 ₽ | M2: =SUMIFS(работы[Затраты],работы[Адрес],"Молодцово д. 1",работы[Квартал],"1")+SUMIFS(работы[Затраты],работы[Адрес],"Молодцово д. 1",работы[Квартал],"2") -> 16,348 ₽ | N2: =SUMIFS(работы[Затраты],работы[Адрес],"Молодцово д. 1",работы[Квартал],"1")+SUMIFS(работы[Затраты],работы[Адрес],"Молодцово д. 1",работы[Квартал],"2")+SUMIFS(работы[Затраты],работы[Адрес],"Молодцово д. 1",работы[Квартал],"3") -> 52,074 ₽ | O2: =SUMIFS(работы[Затраты],работы[Адрес],"Молодцово д. 1",работы[Квартал],"1")+SUMIFS(работы[Затраты],работы[Адрес],"Молодцово д. 1",работы[Квартал],"2")+SUMIFS(работы[Затраты],работы[Адрес],"Молодцово д. 1",работы[Квартал],"3")+SUMIFS(работы[Затраты],работы[Адрес],"Молодцово д. 1",работы[Квартал],"4") -> 153,207 ₽ | P2: 21,674.85 ₽ | Q2: 20,529.24 ₽ | R2: 21,862.47 ₽ | S2: 40,533.62 ₽ | T2: 26,183.32 ₽ | U2: 21,599.15 ₽ | V2: 22,165.47 ₽ | W2: 25,283.69 ₽ | X2: 21,467.76 ₽ | Y2: 22,047.55 ₽
A3: 2 | B3: Молодцово д. 2 | C3: 2,722.79 | D3: 5.50 | E3: =остаток[[#This Row],[Общеполезная жилая площадь, м²]]*остаток[[#This Row],[Тариф на текущий ремонт, руб/м²]]*12 -> 179,704 ₽ | F3: =SUM(остаток[[#This Row],[январь]:[март]]) -> 44,670 ₽ | G3: =SUM(остаток[[#This Row],[январь]:[июнь]]) -> 73,926 ₽ | H3: =SUM(остаток[[#This Row],[январь]:[сентябрь]]) -> 114,577 ₽ | I3: =SUM(остаток[[#This Row],[январь]:[декабрь]]) -> 161,016 ₽ | J3: 130,837 | K3: ='12 мес'!I1667 -> 227,774 | L3: =SUMIFS(работы[Затраты],работы[Адрес],"Молодцово д. 2",работы[Квартал],"1") -> 5,798 ₽ | M3: =SUMIFS(работы[Затраты],работы[Адрес],"Молодцово д. 2",работы[Квартал],"1")+SUMIFS(работы[Затраты],работы[Адрес],"Молодцово д. 2",работы[Квартал],"2") -> 52,344 ₽ | N3: =SUMIFS(работы[Затраты],работы[Адрес],"Молодцово д. 2",работы[Квартал],"1")+SUMIFS(работы[Затраты],работы[Адрес],"Молодцово д. 2",работы[Квартал],"2")+SUMIFS(работы[Затраты],работы[Адрес],"Молодцово д. 2",работы[Квартал],"3") -> 55,930 ₽ | O3: =SUMIFS(работы[Затраты],работы[Адрес],"Молодцово д. 2",работы[Квартал],"1")+SUMIFS(работы[Затраты],работы[Адрес],"Молодцово д. 2",работы[Квартал],"2")+SUMIFS(работы[Затраты],работы[Адрес],"Молодцово д. 2",работы[Квартал],"3")+SUMIFS(работы[Затраты],работы[Адрес],"Молодцово д. 2",работы[Квартал],"4") -> 64,079 ₽ | P3: 15,566.38 ₽ | Q3: 12,946.28 ₽ | R3: 16,156.87 ₽ | S3: 29,256.24 ₽ | T3: 13,641.87 ₽ | U3: 13,639.44 ₽ | V3: 13,369.74 ₽ | W3: 15,608.32 ₽ | X3: 15,948.42 ₽ | Y3: 14,882.47 ₽
A4: 3 | B4: Молодцово д. 3 | C4: 2,705.08 | D4: 5.50 | E4: =остаток[[#This Row],[Общеполезная жилая площадь, м²]]*остаток[[#This Row],[Тариф на текущий ремонт, руб/м²]]*12 -> 178,535 ₽ | F4: =SUM(остаток[[#This Row],[январь]:[март]]) -> 38,515 ₽ | G4: =SUM(остаток[[#This Row],[январь]:[июнь]]) -> 64,422 ₽ | H4: =SUM(остаток[[#This Row],[январь]:[сентябрь]]) -> 106,640 ₽ | I4: =SUM(остаток[[#This Row],[январь]:[декабрь]]) -> 146,196 ₽ | J4: 138,394 | K4: ='12 мес'!I1717 -> 113,536 | L4: =SUMIFS(работы[Затраты],работы[Адрес],"Молодцово д. 3",работы[Квартал],"1") -> 7,633 ₽ | M4: =SUMIFS(работы[Затраты],работы[Адрес],"Молодцово д. 3",работы[Квартал],"1")+SUMIFS(работы[Затраты],работы[Адрес],"Молодцово д. 3",работы[Квартал],"2") -> 14,486 ₽ | N4: =SUMIFS(работы[Затраты],работы[Адрес],"Молодцово д. 3",работы[Квартал],"1")+SUMIFS(работы[Затраты],работы[Адрес],"Молодцово д. 3",работы[Квартал],"2")+SUMIFS(работы[Затраты],работы[Адрес],"Молодцово д. 3",работы[Квартал],"3") -> 57,596 ₽ | O4: =SUMIFS(работы[Затраты],работы[Адрес],"Молодцово д. 3",работы[Квартал],"1")+SUMIFS(работы[Затраты],работы[Адрес],"Молодцово д. 3",работы[Квартал],"2")+SUMIFS(работы[Затраты],работы[Адрес],"Молодцово д. 3",работы[Квартал],"3")+SUMIFS(работы[Затраты],работы[Адрес],"Молодцово д. 3",работы[Квартал],"4") -> 171,054 ₽ | P4: 12,402.99 ₽ | Q4: 12,480.19 ₽ | R4: 13,631.56 ₽ | S4: 25,906.81 ₽ | T4: 15,616.94 ₽ | U4: 13,675.53 ₽ | V4: 12,925.71 ₽ | W4: 13,909.48 ₽ | X4: 13,601.40 ₽ | Y4: 12,045.81 ₽
A5: 4 | B5: Молодцово д. 4 | C5: 1,382.20 | D5: 5.50 | E5: =остаток[[#This Row],[Общеполезная жилая площадь, м²]]*остаток[[#This Row],[Тариф на текущий ремонт, руб/м²]]*12 -> 91,225 ₽ | F5: =SUM(остаток[[#This Row],[январь]:[март]]) -> 21,393 ₽ | G5: =SUM(остаток[[#This Row],[январь]:[июнь]]) -> 34,312 ₽ | H5: =SUM(остаток[[#This Row],[январь]:[сентябрь]]) -> 58,192 ₽ | I5: =SUM(остаток[[#This Row],[январь]:[декабрь]]) -> 80,578 ₽ | J5: 9,048 | K5: ='12 мес'!I1767 -> -278,375 | L5: =SUMIFS(работы[Затраты],работы[Адрес],"Молодцово д. 4",работы[Квартал],"1") -> 335,301 ₽ | M5: =SUMIFS(работы[Затраты],работы[Адрес],"Молодцово д. 4",работы[Квартал],"1")+SUMIFS(работы[Затраты],работы[Адрес],"Молодцово д. 4",работы[Квартал],"2") -> 337,910 ₽ | N5: =SUMIFS(работы[Затраты],работы[Адрес],"Молодцово д. 4",работы[Квартал],"1")+SUMIFS(работы[Затраты],работы[Адрес],"Молодцово д. 4",работы[Квартал],"2")+SUMIFS(работы[Затраты],работы[Адрес],"Молодцово д. 4",работы[Квартал],"3") -> 364,176 ₽ | O5: =SUMIFS(работы[Затраты],работы[Адрес],"Молодцово д. 4",работы[Квартал],"1")+SUMIFS(работы[Затраты],работы[Адрес],"Молодцово д. 4",работы[Квартал],"2")+SUMIFS(работы[Затраты],работы[Адрес],"Молодцово д. 4",работы[Квартал],"3")+SUMIFS(работы[Затраты],работы[Адрес],"Молодцово д. 4",работы[Квартал],"4") -> 368,001 ₽ | P5: 7,427.44 ₽ | Q5: 7,411.30 ₽ | R5: 6,554.60 ₽ | S5: 12,918.43 ₽ | T5: 8,102.91 ₽ | U5: 6,893.85 ₽ | V5: 8,883.73 ₽ | W5: 7,177.82 ₽ | X5: 7,697.46 ₽ | Y5: 7,510.90 ₽
A6: 5 | B6: Молодцово д. 5 | C6: 1,370.84 | D6: 5.50 | E6: =остаток[[#This Row],[Общеполезная жилая площадь, м²]]*остаток[[#This Row],[Тариф на текущий ремонт, руб/м²]]*12 -> 90,475 ₽ | F6: =SUM(остаток[[#This Row],[январь]:[март]]) -> 23,256 ₽ | G6: =SUM(остаток[[#This Row],[январь]:[июнь]]) -> 37,200 ₽ | H6: =SUM(остаток[[#This Row],[январь]:[сентябрь]]) -> 58,314 ₽ | I6: =SUM(остаток[[#This Row],[январь]:[декабрь]]) -> 80,545 ₽ | J6: 105,843 | K6: ='12 мес'!I1817 -> 144,056 | L6: =SUMIFS(работы[Затраты],работы[Адрес],"Молодцово д. 5",работы[Квартал],"1") -> 0 ₽ | M6: =SUMIFS(работы[Затраты],работы[Адрес],"Молодцово д. 5",работы[Квартал],"1")+SUMIFS(работы[Затраты],работы[Адрес],"Молодцово д. 5",работы[Квартал],"2") -> 1,150 ₽ | N6: =SUMIFS(работы[Затраты],работы[Адрес],"Молодцово д. 5",работы[Квартал],"1")+SUMIFS(работы[Затраты],работы[Адрес],"Молодцово д. 5",работы[Квартал],"2")+SUMIFS(работы[Затраты],работы[Адрес],"Молодцово д. 5",работы[Квартал],"3") -> 40,472 ₽ | O6: =SUMIFS(работы[Затраты],работы[Адрес],"Молодцово д. 5",работы[Квартал],"1")+SUMIFS(работы[Затраты],работы[Адрес],"Молодцово д. 5",работы[Квартал],"2")+SUMIFS(работы[Затраты],работы[Адрес],"Молодцово д. 5",работы[Квартал],"3")+SUMIFS(работы[Затраты],работы[Адрес],"Молодцово д. 5",работы[Квартал],"4") -> 42,332 ₽ | P6: 7,106.22 ₽ | Q6: 7,007.81 ₽ | R6: 9,141.71 ₽ | S6: 13,943.87 ₽ | T6: 6,452.39 ₽ | U6: 7,267.93 ₽ | V6: 7,394.02 ₽ | W6: 7,146.65 ₽ | X6: 7,414.29 ₽ | Y6: 7,670.28 ₽
A7: 6 | B7: Молодцово д. 6 | C7: 2,987.49 | D7: 5.50 | E7: =остаток[[#This Row],[Общеполезная жилая площадь, м²]]*остаток[[#This Row],[Тариф на текущий ремонт, руб/м²]]*12 -> 197,174 ₽ | F7: =SUM(остаток[[#This Row],[январь]:[март]]) -> 49,942 ₽ | G7: =SUM(остаток[[#This Row],[январь]:[июнь]]) -> 77,102 ₽ | H7: =SUM(остаток[[#This Row],[январь]:[сентябрь]]) -> 123,765 ₽ | I7: =SUM(остаток[[#This Row],[январь]:[декабрь]]) -> 181,391 ₽ | J7: 118,354 | K7: ='12 мес'!I1871 -> 97,406 | L7: =SUMIFS(работы[Затраты],работы[Адрес],"Молодцово д. 6",работы[Квартал],"1") -> 3,192 ₽ | M7: =SUMIFS(работы[Затраты],работы[Адрес],"Молодцово д. 6",работы[Квартал],"1")+SUMIFS(работы[Затраты],работы[Адрес],"Молодцово д. 6",работы[Квартал],"2") -> 13,265 ₽ | N7: =SUMIFS(работы[Затраты],работы[Адрес],"Молодцово д. 6",работы[Квартал],"1")+SUMIFS(работы[Затраты],работы[Адрес],"Молодцово д. 6",работы[Квартал],"2")+SUMIFS(работы[Затраты],работы[Адрес],"Молодцово д. 6",работы[Квартал],"3") -> 87,399 ₽ | O7: =SUMIFS(работы[Затраты],работы[Адрес],"Молодцово д. 6",работы[Квартал],"1")+SUMIFS(работы[Затраты],работы[Адрес],"Молодцово д. 6",работы[Квартал],"2")+SUMIFS(работы[Затраты],работы[Адрес],"Молодцово д. 6",работы[Квартал],"3")+SUMIFS(работы[Затраты],работы[Адрес],"Молодцово д. 6",работы[Квартал],"4") -> 206,711 ₽ | P7: 20,341.83 ₽ | Q7: 14,625.59 ₽ | R7: 14,974.95 ₽ | S7: 27,159.19 ₽ | T7: 15,719.01 ₽ | U7: 16,780.66 ₽ | V7: 14,163.66 ₽ | W7: 16,204.97 ₽ | X7: 15,737.57 ₽ | Y7: 25,683.58 ₽
A8: 7 | B8: Молодцово д. 7 | C8: 1,373.80 | D8: 5.50 | E8: =остаток[[#This Row],[Общеполезная жилая площадь, м²]]*остаток[[#This Row],[Тариф на текущий ремонт, руб/м²]]*12 -> 90,671 ₽ | F8: =SUM(остаток[[#This Row],[январь]:[март]]) -> 20,202 ₽ | G8: =SUM(остаток[[#This Row],[январь]:[июнь]]) -> 34,236 ₽ | H8: =SUM(остаток[[#This Row],[январь]:[сентябрь]]) -> 54,259 ₽ | I8: =SUM(остаток[[#This Row],[январь]:[декабрь]]) -> 74,955 ₽ | J8: 87,557 | K8: ='12 мес'!I1917 -> 116,901 | L8: =SUMIFS(работы[Затраты],работы[Адрес],"Молодцово д. 7",работы[Квартал],"1") -> 0 ₽ | M8: =SUMIFS(работы[Затраты],работы[Адрес],"Молодцово д. 7",работы[Квартал],"1")+SUMIFS(работы[Затраты],работы[Адрес],"Молодцово д. 7",работы[Квартал],"2") -> 1,313 ₽ | N8: =SUMIFS(работы[Затраты],работы[Адрес],"Молодцово д. 7",работы[Квартал],"1")+SUMIFS(работы[Затраты],работы[Адрес],"Молодцово д. 7",работы[Квартал],"2")+SUMIFS(работы[Затраты],работы[Адрес],"Молодцово д. 7",работы[Квартал],"3") -> 29,291 ₽ | O8: =SUMIFS(работы[Затраты],работы[Адрес],"Молодцово д. 7",работы[Квартал],"1")+SUMIFS(работы[Затраты],работы[Адрес],"Молодцово д. 7",работы[Квартал],"2")+SUMIFS(работы[Затраты],работы[Адрес],"Молодцово д. 7",работы[Квартал],"3")+SUMIFS(работы[Затраты],работы[Адрес],"Молодцово д. 7",работы[Квартал],"4") -> 45,611 ₽ | P8: 7,441.11 ₽ | Q8: 6,078.84 ₽ | R8: 6,682.11 ₽ | S8: 14,033.70 ₽ | T8: 6,611.24 ₽ | U8: 6,507.15 ₽ | V8: 6,904.59 ₽ | W8: 7,671.62 ₽ | X8: 5,815.37 ₽ | Y8: 7,208.78 ₽
A9: 8 | B9: Молодцово д. 8 | C9: 1,372.16 | D9: 5.50 | E9: =остаток[[#This Row],[Общеполезная жилая площадь, м²]]*остаток[[#This Row],[Тариф на текущий ремонт, руб/м²]]*12 -> 90,563 ₽ | F9: =SUM(остаток[[#This Row],[январь]:[март]]) -> 23,301 ₽ | G9: =SUM(остаток[[#This Row],[январь]:[июнь]]) -> 35,804 ₽ | H9: =SUM(остаток[[#This Row],[январь]:[сентябрь]]) -> 56,683 ₽ | I9: =SUM(остаток[[#This Row],[январь]:[декабрь]]) -> 78,241 ₽ | J9: 61,057 | K9: ='12 мес'!I1967 -> 32,499 | L9: =SUMIFS(работы[Затраты],работы[Адрес],"Молодцово д. 8",работы[Квартал],"1") -> 0 ₽ | M9: =SUMIFS(работы[Затраты],работы[Адрес],"Молодцово д. 8",работы[Квартал],"1")+SUMIFS(работы[Затраты],работы[Адрес],"Молодцово д. 8",работы[Квартал],"2") -> 5,503 ₽ | N9: =SUMIFS(работы[Затраты],работы[Адрес],"Молодцово д. 8",работы[Квартал],"1")+SUMIFS(работы[Затраты],работы[Адрес],"Молодцово д. 8",работы[Квартал],"2")+SUMIFS(работы[Затраты],работы[Адрес],"Молодцово д. 8",работы[Квартал],"3") -> 49,006 ₽ | O9: =SUMIFS(работы[Затраты],работы[Адрес],"Молодцово д. 8",работы[Квартал],"1")+SUMIFS(работы[Затраты],работы[Адрес],"Молодцово д. 8",работы[Квартал],"2")+SUMIFS(работы[Затраты],работы[Адрес],"Молодцово д. 8",работы[Квартал],"3")+SUMIFS(работы[Затраты],работы[Адрес],"Молодцово д. 8",работы[Квартал],"4") -> 106,799 ₽ | P9: 8,097.85 ₽ | Q9: 6,315.83 ₽ | R9: 8,887.36 ₽ | S9: 12,503.34 ₽ | T9: 6,725.09 ₽ | U9: 6,777.44 ₽ | V9: 7,375.92 ₽ | W9: 7,170.86 ₽ | X9: 6,339.89 ₽ | Y9: 8,047.56 ₽
A10: 9 | B10: Горького д. 5 | C10: 905.42 | D10: 5.50 | E10: =остаток[[#This Row],[Общеполезная жилая площадь, м²]]*остаток[[#This Row],[Тариф на текущий ремонт, руб/м²]]*12 -> 59,758 ₽ | F10: =SUM(остаток[[#This Row],[январь]:[март]]) -> 13,618 ₽ | G10: =SUM(остаток[[#This Row],[январь]:[июнь]]) -> 21,835 ₽ | H10: =SUM(остаток[[#This Row],[январь]:[сентябрь]]) -> 35,927 ₽ | I10: =SUM(остаток[[#This Row],[январь]:[декабрь]]) -> 58,894 ₽ | J10: 295,180 | K10: ='12 мес'!I171 -> 249,817 | L10: =SUMIFS(работы[Затраты],работы[Адрес],"Горького д. 5",работы[Квартал],"1") -> 28,984 ₽ | M10: =SUMIFS(работы[Затраты],работы[Адрес],"Горького д. 5",работы[Квартал],"1")+SUMIFS(работы[Затраты],работы[Адрес],"Горького д. 5",работы[Квартал],"2") -> 78,728 ₽ | N10: =SUMIFS(работы[Затраты],работы[Адрес],"Горького д. 5",работы[Квартал],"1")+SUMIFS(работы[Затраты],работы[Адрес],"Горького д. 5",работы[Квартал],"2")+SUMIFS(работы[Затраты],работы[Адрес],"Горького д. 5",работы[Квартал],"3") -> 78,728 ₽ | O10: =SUMIFS(работы[Затраты],работы[Адрес],"Горького д. 5",работы[Квартал],"1")+SUMIFS(работы[Затраты],работы[Адрес],"Горького д. 5",работы[Квартал],"2")+SUMIFS(работы[Затраты],работы[Адрес],"Горького д. 5",работы[Квартал],"3")+SUMIFS(работы[Затраты],работы[Адрес],"Горького д. 5",работы[Квартал],"4") -> 116,744 ₽ | P10: 4,320.36 ₽ | Q10: 4,300.71 ₽ | R10: 4,997.41 ₽ | S10: 8,216.03 ₽ | T10: 6,647.95 ₽ | U10: 3,552.01 ₽ | V10: 3,892.81 ₽ | W10: 4,275.72 ₽ | X10: 5,340.06 ₽ | Y10: 13,350.84 ₽
A11: 10 | B11: Горького д. 7 | C11: 629.10 | D11: 5.50 | E11: =остаток[[#This Row],[Общеполезная жилая площадь, м²]]*остаток[[#This Row],[Тариф на текущий ремонт, руб/м²]]*12 -> 41,521 ₽ | F11: =SUM(остаток[[#This Row],[январь]:[март]]) -> 14,134 ₽ | G11: =SUM(остаток[[#This Row],[январь]:[июнь]]) -> 21,054 ₽ | H11: =SUM(остаток[[#This Row],[январь]:[сентябрь]]) -> 31,789 ₽ | I11: =SUM(остаток[[#This Row],[январь]:[декабрь]]) -> 42,617 ₽ | J11: 120,551 | K11: ='12 мес'!I217 -> 766 | L11: =SUMIFS(работы[Затраты],работы[Адрес],"Горького д. 7",работы[Квартал],"1") -> 127,847 ₽ | M11: =SUMIFS(работы[Затраты],работы[Адрес],"Горького д. 7",работы[Квартал],"1")+SUMIFS(работы[Затраты],работы[Адрес],"Горького д. 7",работы[Квартал],"2") -> 156,164 ₽ | N11: =SUMIFS(работы[Затраты],работы[Адрес],"Горького д. 7",работы[Квартал],"1")+SUMIFS(работы[Затраты],работы[Адрес],"Горького д. 7",работы[Квартал],"2")+SUMIFS(работы[Затраты],работы[Адрес],"Горького д. 7",работы[Квартал],"3") -> 156,164 ₽ | O11: =SUMIFS(работы[Затраты],работы[Адрес],"Горького д. 7",работы[Квартал],"1")+SUMIFS(работы[Затраты],работы[Адрес],"Горького д. 7",работы[Квартал],"2")+SUMIFS(работы[Затраты],работы[Адрес],"Горького д. 7",работы[Квартал],"3")+SUMIFS(работы[Затраты],работы[Адрес],"Горького д. 7",работы[Квартал],"4") -> 162,402 ₽ | P11: 3,636.54 ₽ | Q11: 7,384.70 ₽ | R11: 3,113.00 ₽ | S11: 6,920.10 ₽ | T11: 4,874.30 ₽ | U11: 2,758.25 ₽ | V11: 3,102.35 ₽ | W11: 4,154.15 ₽ | X11: 2,861.43 ₽ | Y11: 3,812.51 ₽
A12: 11 | B12: Кирова д. 12 | C12: 398.00 | D12: 5.50 | E12: =остаток[[#This Row],[Общеполезная жилая площадь, м²]]*остаток[[#This Row],[Тариф на текущий ремонт, руб/м²]]*12 -> 26,268 ₽ | F12: =SUM(остаток[[#This Row],[январь]:[март]]) -> 6,007 ₽ | G12: =SUM(остаток[[#This Row],[январь]:[июнь]]) -> 10,461 ₽ | H12: =SUM(остаток[[#This Row],[январь]:[сентябрь]]) -> 18,604 ₽ | I12: =SUM(остаток[[#This Row],[январь]:[декабрь]]) -> 26,273 ₽ | J12: -1,876 | K12: ='12 мес'!I317 -> -5,257 | L12: =SUMIFS(работы[Затраты],работы[Адрес],"Кирова д. 12",работы[Квартал],"1") -> 23,464 ₽ | M12: =SUMIFS(работы[Затраты],работы[Адрес],"Кирова д. 12",работы[Квартал],"1")+SUMIFS(работы[Затраты],работы[Адрес],"Кирова д. 12",работы[Квартал],"2") -> 23,464 ₽ | N12: =SUMIFS(работы[Затраты],работы[Адрес],"Кирова д. 12",работы[Квартал],"1")+SUMIFS(работы[Затраты],работы[Адрес],"Кирова д. 12",работы[Квартал],"2")+SUMIFS(работы[Затраты],работы[Адрес],"Кирова д. 12",работы[Квартал],"3") -> 23,464 ₽ | O12: =SUMIFS(работы[Затраты],работы[Адрес],"Кирова д. 12",работы[Квартал],"1")+SUMIFS(работы[Затраты],работы[Адрес],"Кирова д. 12",работы[Квартал],"2")+SUMIFS(работы[Затраты],работы[Адрес],"Кирова д. 12",работы[Квартал],"3")+SUMIFS(работы[Затраты],работы[Адрес],"Кирова д. 12",работы[Квартал],"4") -> 29,654 ₽ | P12: 1,634.26 ₽ | Q12: 2,244.55 ₽ | R12: 2,128.19 ₽ | S12: 4,454.33 ₽ | T12: 2,989.68 ₽ | U12: 2,668.08 ₽ | V12: 2,485.11 ₽ | W12: 2,375.98 ₽ | X12: 3,157.37 ₽ | Y12: 2,135.10 ₽
A13: 12 | B13: Кирова д. 13 | C13: 669.35 | D13: 5.50 | E13: =остаток[[#This Row],[Общеполезная жилая площадь, м²]]*остаток[[#This Row],[Тариф на текущий ремонт, руб/м²]]*12 -> 44,177 ₽ | F13: =SUM(остаток[[#This Row],[январь]:[март]]) -> 10,723 ₽ | G13: =SUM(остаток[[#This Row],[январь]:[июнь]]) -> 16,925 ₽ | H13: =SUM(остаток[[#This Row],[январь]:[сентябрь]]) -> 27,535 ₽ | I13: =SUM(остаток[[#This Row],[январь]:[декабрь]]) -> 38,461 ₽ | J13: 35,857 | K13: ='12 мес'!I371 -> 85,410 | L13: =SUMIFS(работы[Затраты],работы[Адрес],"Кирова д. 13",работы[Квартал],"1") -> 4,788 ₽ | M13: =SUMIFS(работы[Затраты],работы[Адрес],"Кирова д. 13",работы[Квартал],"1")+SUMIFS(работы[Затраты],работы[Адрес],"Кирова д. 13",работы[Квартал],"2") -> 4,788 ₽ | N13: =SUMIFS(работы[Затраты],работы[Адрес],"Кирова д. 13",работы[Квартал],"1")+SUMIFS(работы[Затраты],работы[Адрес],"Кирова д. 13",работы[Квартал],"2")+SUMIFS(работы[Затраты],работы[Адрес],"Кирова д. 13",работы[Квартал],"3") -> 4,788 ₽ | O13: =SUMIFS(работы[Затраты],работы[Адрес],"Кирова д. 13",работы[Квартал],"1")+SUMIFS(работы[Затраты],работы[Адрес],"Кирова д. 13",работы[Квартал],"2")+SUMIFS(работы[Затраты],работы[Адрес],"Кирова д. 13",работы[Квартал],"3")+SUMIFS(работы[Затраты],работы[Адрес],"Кирова д. 13",работы[Квартал],"4") -> 4,788 ₽ | P13: 4,311.39 ₽ | Q13: 3,747.96 ₽ | R13: 2,663.21 ₽ | S13: 6,202.30 ₽ | T13: 3,888.17 ₽ | U13: 2,807.98 ₽ | V13: 3,913.92 ₽ | W13: 4,612.97 ₽ | X13: 2,513.34 ₽ | Y13: 3,799.57 ₽
A14: 13 | B14: Кирова д. 15 | C14: 634.20 | D14: 5.50 | E14: =остаток[[#This Row],[Общеполезная жилая площадь, м²]]*остаток[[#This Row],[Тариф на текущий ремонт, руб/м²]]*12 -> 41,857 ₽ | F14: =SUM(остаток[[#This Row],[январь]:[март]]) -> 9,967 ₽ | G14: =SUM(остаток[[#This Row],[январь]:[июнь]]) -> 17,158 ₽ | H14: =SUM(остаток[[#This Row],[январь]:[сентябрь]]) -> 28,033 ₽ | I14: =SUM(остаток[[#This Row],[январь]:[декабрь]]) -> 39,898 ₽ | J14: 90,853 | K14: ='12 мес'!I417 -> 119,179 | L14: =SUMIFS(работы[Затраты],работы[Адрес],"Кирова д. 15",работы[Квартал],"1") -> 0 ₽ | M14: =SUMIFS(работы[Затраты],работы[Адрес],"Кирова д. 15",работы[Квартал],"1")+SUMIFS(работы[Затраты],работы[Адрес],"Кирова д. 15",работы[Квартал],"2") -> 0 ₽ | N14: =SUMIFS(работы[Затраты],работы[Адрес],"Кирова д. 15",работы[Квартал],"1")+SUMIFS(работы[Затраты],работы[Адрес],"Кирова д. 15",работы[Квартал],"2")+SUMIFS(работы[Затраты],работы[Адрес],"Кирова д. 15",работы[Квартал],"3") -> 11,572 ₽ | O14: =SUMIFS(работы[Затраты],работы[Адрес],"Кирова д. 15",работы[Квартал],"1")+SUMIFS(работы[Затраты],работы[Адрес],"Кирова д. 15",работы[Квартал],"2")+SUMIFS(работы[Затраты],работы[Адрес],"Кирова д. 15",работы[Квартал],"3")+SUMIFS(работы[Затраты],работы[Адрес],"Кирова д. 15",работы[Квартал],"4") -> 11,572 ₽ | P14: 2,858.06 ₽ | Q14: 4,130.38 ₽ | R14: 2,978.86 ₽ | S14: 7,191.16 ₽ | T14: 4,355.69 ₽ | U14: 3,068.13 ₽ | V14: 3,450.30 ₽ | W14: 4,873.72 ₽ | X14: 3,136.28 ₽ | Y14: 3,855.68 ₽
A15: 14 | B15: Кирова д. 17 | C15: 610.50 | D15: 5.50 | E15: =остаток[[#This Row],[Общеполезная жилая площадь, м²]]*остаток[[#This Row],[Тариф на текущий ремонт, руб/м²]]*12 -> 40,293 ₽ | F15: =SUM(остаток[[#This Row],[январь]:[март]]) -> 9,048 ₽ | G15: =SUM(остаток[[#This Row],[январь]:[июнь]]) -> 14,356 ₽ | H15: =SUM(остаток[[#This Row],[январь]:[сентябрь]]) -> 24,440 ₽ | I15: =SUM(остаток[[#This Row],[январь]:[декабрь]]) -> 33,482 ₽ | J15: 63,892 | K15: ='12 мес'!I467 -> -9,058 | L15: =SUMIFS(работы[Затраты],работы[Адрес],"Кирова д. 17",работы[Квартал],"1") -> 0 ₽ | M15: =SUMIFS(работы[Затраты],работы[Адрес],"Кирова д. 17",работы[Квартал],"1")+SUMIFS(работы[Затраты],работы[Адрес],"Кирова д. 17",работы[Квартал],"2") -> 26,815 ₽ | N15: =SUMIFS(работы[Затраты],работы[Адрес],"Кирова д. 17",работы[Квартал],"1")+SUMIFS(работы[Затраты],работы[Адрес],"Кирова д. 17",работы[Квартал],"2")+SUMIFS(работы[Затраты],работы[Адрес],"Кирова д. 17",работы[Квартал],"3") -> 106,432 ₽ | O15: =SUMIFS(работы[Затраты],работы[Адрес],"Кирова д. 17",работы[Квартал],"1")+SUMIFS(работы[Затраты],работы[Адрес],"Кирова д. 17",работы[Квартал],"2")+SUMIFS(работы[Затраты],работы[Адрес],"Кирова д. 17",работы[Квартал],"3")+SUMIFS(работы[Затраты],работы[Адрес],"Кирова д. 17",работы[Квартал],"4") -> 106,432 ₽ | P15: 2,519.76 ₽ | Q15: 3,493.14 ₽ | R15: 3,034.96 ₽ | S15: 5,308.35 ₽ | T15: 3,524.74 ₽ | U15: 3,698.70 ₽ | V15: 2,860.00 ₽ | W15: 2,578.28 ₽ | X15: 3,372.60 ₽ | Y15: 3,091.00 ₽
A16: 15 | B16: Кирова д. 18 | C16: 1,060.00 | D16: 5.50 | E16: =остаток[[#This Row],[Общеполезная жилая площадь, м²]]*остаток[[#This Row],[Тариф на текущий ремонт, руб/м²]]*12 -> 69,960 ₽ | F16: =SUM(остаток[[#This Row],[январь]:[март]]) -> 16,509 ₽ | G16: =SUM(остаток[[#This Row],[январь]:[июнь]]) -> 28,002 ₽ | H16: =SUM(остаток[[#This Row],[январь]:[сентябрь]]) -> 44,745 ₽ | I16: =SUM(остаток[[#This Row],[январь]:[декабрь]]) -> 63,415 ₽ | J16: 309,614 | K16: ='12 мес'!I517 -> 337,732 | L16: =SUMIFS(работы[Затраты],работы[Адрес],"Кирова д. 18",работы[Квартал],"1") -> 0 ₽ | M16: =SUMIFS(работы[Затраты],работы[Адрес],"Кирова д. 18",работы[Квартал],"1")+SUMIFS(работы[Затраты],работы[Адрес],"Кирова д. 18",работы[Квартал],"2") -> 25,755 ₽ | N16: =SUMIFS(работы[Затраты],работы[Адрес],"Кирова д. 18",работы[Квартал],"1")+SUMIFS(работы[Затраты],работы[Адрес],"Кирова д. 18",работы[Квартал],"2")+SUMIFS(работы[Затраты],работы[Адрес],"Кирова д. 18",работы[Квартал],"3") -> 30,172 ₽ | O16: =SUMIFS(работы[Затраты],работы[Адрес],"Кирова д. 18",работы[Квартал],"1")+SUMIFS(работы[Затраты],работы[Адрес],"Кирова д. 18",работы[Квартал],"2")+SUMIFS(работы[Затраты],работы[Адрес],"Кирова д. 18",работы[Квартал],"3")+SUMIFS(работы[Затраты],работы[Адрес],"Кирова д. 18",работы[Квартал],"4") -> 35,297 ₽ | P16: 5,091.90 ₽ | Q16: 5,805.26 ₽ | R16: 5,612.17 ₽ | S16: 11,492.86 ₽ | T16: 5,289.37 ₽ | U16: 5,649.34 ₽ | V16: 5,803.75 ₽ | W16: 5,766.66 ₽ | X16: 7,120.92 ₽ | Y16: 5,782.73 ₽
A17: 16 | B17: Кирова д. 19 | C17: 600.58 | D17: 5.50 | E17: =остаток[[#This Row],[Общеполезная жилая площадь, м²]]*остаток[[#This Row],[Тариф на текущий ремонт, руб/м²]]*12 -> 39,638 ₽ | F17: =SUM(остаток[[#This Row],[январь]:[март]]) -> 9,914 ₽ | G17: =SUM(остаток[[#This Row],[январь]:[июнь]]) -> 15,708 ₽ | H17: =SUM(остаток[[#This Row],[январь]:[сентябрь]]) -> 25,515 ₽ | I17: =SUM(остаток[[#This Row],[январь]:[декабрь]]) -> 34,693 ₽ | J17: -125,104 | K17: ='12 мес'!I567 -> -100,744 | L17: =SUMIFS(работы[Затраты],работы[Адрес],"Кирова д. 19",работы[Квартал],"1") -> 10,333 ₽ | M17: =SUMIFS(работы[Затраты],работы[Адрес],"Кирова д. 19",работы[Квартал],"1")+SUMIFS(работы[Затраты],работы[Адрес],"Кирова д. 19",работы[Квартал],"2") -> 10,333 ₽ | N17: =SUMIFS(работы[Затраты],работы[Адрес],"Кирова д. 19",работы[Квартал],"1")+SUMIFS(работы[Затраты],работы[Адрес],"Кирова д. 19",работы[Квартал],"2")+SUMIFS(работы[Затраты],работы[Адрес],"Кирова д. 19",работы[Квартал],"3") -> 10,333 ₽ | O17: =SUMIFS(работы[Затраты],работы[Адрес],"Кирова д. 19",работы[Квартал],"1")+SUMIFS(работы[Затраты],работы[Адрес],"Кирова д. 19",работы[Квартал],"2")+SUMIFS(работы[Затраты],работы[Адрес],"Кирова д. 19",работы[Квартал],"3")+SUMIFS(работы[Затраты],работы[Адрес],"Кирова д. 19",работы[Квартал],"4") -> 10,333 ₽ | P17: 4,231.96 ₽ | Q17: 2,804.59 ₽ | R17: 2,877.18 ₽ | S17: 5,794.61 ₽ | T17: 2,894.51 ₽ | U17: 3,517.20 ₽ | V17: 3,394.79 ₽ | W17: 3,113.97 ₽ | X17: 3,278.91 ₽ | Y17: 2,785.31 ₽
A18: 17 | B18: Кирова д. 21 | C18: 618.55 | D18: 5.50 | E18: =остаток[[#This Row],[Общеполезная жилая площадь, м²]]*остаток[[#This Row],[Тариф на текущий ремонт, руб/м²]]*12 -> 40,824 ₽ | F18: =SUM(остаток[[#This Row],[январь]:[март]]) -> 9,069 ₽ | G18: =SUM(остаток[[#This Row],[январь]:[июнь]]) -> 15,134 ₽ | H18: =SUM(остаток[[#This Row],[январь]:[сентябрь]]) -> 24,758 ₽ | I18: =SUM(остаток[[#This Row],[январь]:[декабрь]]) -> 38,079 ₽ | J18: -36,194 | K18: ='12 мес'!I617 -> -10,723 | L18: =SUMIFS(работы[Затраты],работы[Адрес],"Кирова д. 21",работы[Квартал],"1") -> 2,297 ₽ | M18: =SUMIFS(работы[Затраты],работы[Адрес],"Кирова д. 21",работы[Квартал],"1")+SUMIFS(работы[Затраты],работы[Адрес],"Кирова д. 21",работы[Квартал],"2") -> 2,297 ₽ | N18: =SUMIFS(работы[Затраты],работы[Адрес],"Кирова д. 21",работы[Квартал],"1")+SUMIFS(работы[Затраты],работы[Адрес],"Кирова д. 21",работы[Квартал],"2")+SUMIFS(работы[Затраты],работы[Адрес],"Кирова д. 21",работы[Квартал],"3") -> 3,919 ₽ | O18: =SUMIFS(работы[Затраты],работы[Адрес],"Кирова д. 21",работы[Квартал],"1")+SUMIFS(работы[Затраты],работы[Адрес],"Кирова д. 21",работы[Квартал],"2")+SUMIFS(работы[Затраты],работы[Адрес],"Кирова д. 21",работы[Квартал],"3")+SUMIFS(работы[Затраты],работы[Адрес],"Кирова д. 21",работы[Квартал],"4") -> 12,608 ₽ | P18: 2,707.09 ₽ | Q18: 3,572.48 ₽ | R18: 2,789.77 ₽ | S18: 6,064.67 ₽ | T18: 3,710.87 ₽ | U18: 2,561.41 ₽ | V18: 3,352.20 ₽ | W18: 2,671.63 ₽ | X18: 2,482.50 ₽ | Y18: 8,166.09 ₽
A19: 18 | B19: Кирова д. 22 | C19: 844.59 | D19: 5.50 | E19: =остаток[[#This Row],[Общеполезная жилая площадь, м²]]*остаток[[#This Row],[Тариф на текущий ремонт, руб/м²]]*12 -> 55,743 ₽ | F19: =SUM(остаток[[#This Row],[январь]:[март]]) -> 14,274 ₽ | G19: =SUM(остаток[[#This Row],[январь]:[июнь]]) -> 22,040 ₽ | H19: =SUM(остаток[[#This Row],[январь]:[сентябрь]]) -> 35,906 ₽ | I19: =SUM(остаток[[#This Row],[январь]:[декабрь]]) -> 49,437 ₽ | J19: 332,339 | K19: ='12 мес'!I671 -> 395,830 | L19: =SUMIFS(работы[Затраты],работы[Адрес],"Кирова д. 22",работы[Квартал],"1") -> 0 ₽ | M19: =SUMIFS(работы[Затраты],работы[Адрес],"Кирова д. 22",работы[Квартал],"1")+SUMIFS(работы[Затраты],работы[Адрес],"Кирова д. 22",работы[Квартал],"2") -> 1,165 ₽ | N19: =SUMIFS(работы[Затраты],работы[Адрес],"Кирова д. 22",работы[Квартал],"1")+SUMIFS(работы[Затраты],работы[Адрес],"Кирова д. 22",работы[Квартал],"2")+SUMIFS(работы[Затраты],работы[Адрес],"Кирова д. 22",работы[Квартал],"3") -> 2,604 ₽ | O19: =SUMIFS(работы[Затраты],работы[Адрес],"Кирова д. 22",работы[Квартал],"1")+SUMIFS(работы[Затраты],работы[Адрес],"Кирова д. 22",работы[Квартал],"2")+SUMIFS(работы[Затраты],работы[Адрес],"Кирова д. 22",работы[Квартал],"3")+SUMIFS(работы[Затраты],работы[Адрес],"Кирова д. 22",работы[Квартал],"4") -> 2,604 ₽ | P19: 4,111.66 ₽ | Q19: 4,923.62 ₽ | R19: 5,238.33 ₽ | S19: 7,765.92 ₽ | T19: 4,364.37 ₽ | U19: 4,111.66 ₽ | V19: 5,390.69 ₽ | W19: 3,840.71 ₽ | X19: 4,076.49 ₽ | Y19: 5,613.92 ₽
A20: 19 | B20: Кирова д. 23 | C20: 721.39 | D20: 5.50 | E20: =остаток[[#This Row],[Общеполезная жилая площадь, м²]]*остаток[[#This Row],[Тариф на текущий ремонт, руб/м²]]*12 -> 47,612 ₽ | F20: =SUM(остаток[[#This Row],[январь]:[март]]) -> 12,771 ₽ | G20: =SUM(остаток[[#This Row],[январь]:[июнь]]) -> 20,419 ₽ | H20: =SUM(остаток[[#This Row],[январь]:[сентябрь]]) -> 31,602 ₽ | I20: =SUM(остаток[[#This Row],[январь]:[декабрь]]) -> 43,405 ₽ | J20: 147,410 | K20: ='12 мес'!I717 -> 173,239 | L20: =SUMIFS(работы[Затраты],работы[Адрес],"Кирова д. 23",работы[Квартал],"1") -> 0 ₽ | M20: =SUMIFS(работы[Затраты],работы[Адрес],"Кирова д. 23",работы[Квартал],"1")+SUMIFS(работы[Затраты],работы[Адрес],"Кирова д. 23",работы[Квартал],"2") -> 2,565 ₽ | N20: =SUMIFS(работы[Затраты],работы[Адрес],"Кирова д. 23",работы[Квартал],"1")+SUMIFS(работы[Затраты],работы[Адрес],"Кирова д. 23",работы[Квартал],"2")+SUMIFS(работы[Затраты],работы[Адрес],"Кирова д. 23",работы[Квартал],"3") -> 16,287 ₽ | O20: =SUMIFS(работы[Затраты],работы[Адрес],"Кирова д. 23",работы[Квартал],"1")+SUMIFS(работы[Затраты],работы[Адрес],"Кирова д. 23",работы[Квартал],"2")+SUMIFS(работы[Затраты],работы[Адрес],"Кирова д. 23",работы[Квартал],"3")+SUMIFS(работы[Затраты],работы[Адрес],"Кирова д. 23",работы[Квартал],"4") -> 17,576 ₽ | P20: 5,731.35 ₽ | Q20: 4,108.39 ₽ | R20: 2,930.76 ₽ | S20: 7,648.04 ₽ | T20: 3,020.31 ₽ | U20: 4,398.26 ₽ | V20: 3,764.40 ₽ | W20: 3,170.42 ₽ | X20: 5,722.21 ₽ | Y20: 2,910.45 ₽
A21: 20 | B21: Кирова д. 25 | C21: 710.59 | D21: 5.50 | E21: =остаток[[#This Row],[Общеполезная жилая площадь, м²]]*остаток[[#This Row],[Тариф на текущий ремонт, руб/м²]]*12 -> 46,899 ₽ | F21: =SUM(остаток[[#This Row],[январь]:[март]]) -> 9,919 ₽ | G21: =SUM(остаток[[#This Row],[январь]:[июнь]]) -> 15,913 ₽ | H21: =SUM(остаток[[#This Row],[январь]:[сентябрь]]) -> 27,036 ₽ | I21: =SUM(остаток[[#This Row],[январь]:[декабрь]]) -> 37,514 ₽ | J21: 144,777 | K21: ='12 мес'!I767 -> 67,517 | L21: =SUMIFS(работы[Затраты],работы[Адрес],"Кирова д. 25",работы[Квартал],"1") -> 1,247 ₽ | M21: =SUMIFS(работы[Затраты],работы[Адрес],"Кирова д. 25",работы[Квартал],"1")+SUMIFS(работы[Затраты],работы[Адрес],"Кирова д. 25",работы[Квартал],"2") -> 72,556 ₽ | N21: =SUMIFS(работы[Затраты],работы[Адрес],"Кирова д. 25",работы[Квартал],"1")+SUMIFS(работы[Затраты],работы[Адрес],"Кирова д. 25",работы[Квартал],"2")+SUMIFS(работы[Затраты],работы[Адрес],"Кирова д. 25",работы[Квартал],"3") -> 109,675 ₽ | O21: =SUMIFS(работы[Затраты],работы[Адрес],"Кирова д. 25",работы[Квартал],"1")+SUMIFS(работы[Затраты],работы[Адрес],"Кирова д. 25",работы[Квартал],"2")+SUMIFS(работы[Затраты],работы[Адрес],"Кирова д. 25",работы[Квартал],"3")+SUMIFS(работы[Затраты],работы[Адрес],"Кирова д. 25",работы[Квартал],"4") -> 114,774 ₽ | P21: 2,543.53 ₽ | Q21: 3,934.60 ₽ | R21: 3,441.35 ₽ | S21: 5,993.73 ₽ | T21: 4,428.23 ₽ | U21: 3,603.04 ₽ | V21: 3,091.13 ₽ | W21: 2,558.73 ₽ | X21: 3,663.96 ₽ | Y21: 4,256.18 ₽
A22: 21 | B22: Кирова д. 27 | C22: 703.72 | D22: 5.50 | E22: =остаток[[#This Row],[Общеполезная жилая площадь, м²]]*остаток[[#This Row],[Тариф на текущий ремонт, руб/м²]]*12 -> 46,446 ₽ | F22: =SUM(остаток[[#This Row],[январь]:[март]]) -> 10,642 ₽ | G22: =SUM(остаток[[#This Row],[январь]:[июнь]]) -> 16,697 ₽ | H22: =SUM(остаток[[#This Row],[январь]:[сентябрь]]) -> 29,850 ₽ | I22: =SUM(остаток[[#This Row],[январь]:[декабрь]]) -> 41,686 ₽ | J22: 112,297 | K22: ='12 мес'!I817 -> 153,177 | L22: =SUMIFS(работы[Затраты],работы[Адрес],"Кирова д. 27",работы[Квартал],"1") -> 0 ₽ | M22: =SUMIFS(работы[Затраты],работы[Адрес],"Кирова д. 27",работы[Квартал],"1")+SUMIFS(работы[Затраты],работы[Адрес],"Кирова д. 27",работы[Квартал],"2") -> 0 ₽ | N22: =SUMIFS(работы[Затраты],работы[Адрес],"Кирова д. 27",работы[Квартал],"1")+SUMIFS(работы[Затраты],работы[Адрес],"Кирова д. 27",работы[Квартал],"2")+SUMIFS(работы[Затраты],работы[Адрес],"Кирова д. 27",работы[Квартал],"3") -> 0 ₽ | O22: =SUMIFS(работы[Затраты],работы[Адрес],"Кирова д. 27",работы[Квартал],"1")+SUMIFS(работы[Затраты],работы[Адрес],"Кирова д. 27",работы[Квартал],"2")+SUMIFS(работы[Затраты],работы[Адрес],"Кирова д. 27",работы[Квартал],"3")+SUMIFS(работы[Затраты],работы[Адрес],"Кирова д. 27",работы[Квартал],"4") -> 806 ₽ | P22: 3,242.30 ₽ | Q22: 3,644.62 ₽ | R22: 3,754.93 ₽ | S22: 6,055.49 ₽ | T22: 3,350.20 ₽ | U22: 4,248.69 ₽ | V22: 5,553.60 ₽ | W22: 3,044.61 ₽ | X22: 5,305.20 ₽ | Y22: 3,485.87 ₽
A23: 22 | B23: Кирова д. 29 | C23: 721.13 | D23: 5.50 | E23: =остаток[[#This Row],[Общеполезная жилая площадь, м²]]*остаток[[#This Row],[Тариф на текущий ремонт, руб/м²]]*12 -> 47,595 ₽ | F23: =SUM(остаток[[#This Row],[январь]:[март]]) -> 10,660 ₽ | G23: =SUM(остаток[[#This Row],[январь]:[июнь]]) -> 17,799 ₽ | H23: =SUM(остаток[[#This Row],[январь]:[сентябрь]]) -> 28,848 ₽ | I23: =SUM(остаток[[#This Row],[январь]:[декабрь]]) -> 39,583 ₽ | J23: -23,806 | K23: ='12 мес'!I867 -> 8,665 | L23: =SUMIFS(работы[Затраты],работы[Адрес],"Кирова д. 29",работы[Квартал],"1") -> 3,428 ₽ | M23: =SUMIFS(работы[Затраты],работы[Адрес],"Кирова д. 29",работы[Квартал],"1")+SUMIFS(работы[Затраты],работы[Адрес],"Кирова д. 29",работы[Квартал],"2") -> 3,428 ₽ | N23: =SUMIFS(работы[Затраты],работы[Адрес],"Кирова д. 29",работы[Квартал],"1")+SUMIFS(работы[Затраты],работы[Адрес],"Кирова д. 29",работы[Квартал],"2")+SUMIFS(работы[Затраты],работы[Адрес],"Кирова д. 29",работы[Квартал],"3") -> 7,112 ₽ | O23: =SUMIFS(работы[Затраты],работы[Адрес],"Кирова д. 29",работы[Квартал],"1")+SUMIFS(работы[Затраты],работы[Адрес],"Кирова д. 29",работы[Квартал],"2")+SUMIFS(работы[Затраты],работы[Адрес],"Кирова д. 29",работы[Квартал],"3")+SUMIFS(работы[Затраты],работы[Адрес],"Кирова д. 29",работы[Квартал],"4") -> 7,112 ₽ | P23: 3,537.31 ₽ | Q23: 4,123.86 ₽ | R23: 2,999.05 ₽ | S23: 7,138.45 ₽ | T23: 2,953.50 ₽ | U23: 3,748.66 ₽ | V23: 4,346.85 ₽ | W23: 4,059.51 ₽ | X23: 2,790.70 ₽ | Y23: 3,884.83 ₽
A24: 23 | B24: Комсомольская д. 8 | C24: 643.29 | D24: 5.50 | E24: =остаток[[#This Row],[Общеполезная жилая площадь, м²]]*остаток[[#This Row],[Тариф на текущий ремонт, руб/м²]]*12 -> 42,457 ₽ | F24: =SUM(остаток[[#This Row],[январь]:[март]]) -> 10,625 ₽ | G24: =SUM(остаток[[#This Row],[январь]:[июнь]]) -> 17,433 ₽ | H24: =SUM(остаток[[#This Row],[январь]:[сентябрь]]) -> 27,560 ₽ | I24: =SUM(остаток[[#This Row],[январь]:[декабрь]]) -> 39,099 ₽ | J24: 88,831 | K24: ='12 мес'!I917 -> 79,585 | L24: =SUMIFS(работы[Затраты],работы[Адрес],"Комсомольская д. 8",работы[Квартал],"1") -> 13,442 ₽ | M24: =SUMIFS(работы[Затраты],работы[Адрес],"Комсомольская д. 8",работы[Квартал],"1")+SUMIFS(работы[Затраты],работы[Адрес],"Комсомольская д. 8",работы[Квартал],"2") -> 42,850 ₽ | N24: =SUMIFS(работы[Затраты],работы[Адрес],"Комсомольская д. 8",работы[Квартал],"1")+SUMIFS(работы[Затраты],работы[Адрес],"Комсомольская д. 8",работы[Квартал],"2")+SUMIFS(работы[Затраты],работы[Адрес],"Комсомольская д. 8",работы[Квартал],"3") -> 48,345 ₽ | O24: =SUMIFS(работы[Затраты],работы[Адрес],"Комсомольская д. 8",работы[Квартал],"1")+SUMIFS(работы[Затраты],работы[Адрес],"Комсомольская д. 8",работы[Квартал],"2")+SUMIFS(работы[Затраты],работы[Адрес],"Комсомольская д. 8",работы[Квартал],"3")+SUMIFS(работы[Затраты],работы[Адрес],"Комсомольская д. 8",работы[Квартал],"4") -> 48,345 ₽ | P24: 2,930.81 ₽ | Q24: 3,629.51 ₽ | R24: 4,064.92 ₽ | S24: 6,807.36 ₽ | T24: 3,631.63 ₽ | U24: 3,507.05 ₽ | V24: 2,989.17 ₽ | W24: 4,989.79 ₽ | X24: 2,917.20 ₽ | Y24: 3,631.06 ₽
A25: 24 | B25: Комсомольская д. 10 | C25: 744.57 | D25: 5.50 | E25: =остаток[[#This Row],[Общеполезная жилая площадь, м²]]*остаток[[#This Row],[Тариф на текущий ремонт, руб/м²]]*12 -> 49,142 ₽ | F25: =SUM(остаток[[#This Row],[январь]:[март]]) -> 10,506 ₽ | G25: =SUM(остаток[[#This Row],[январь]:[июнь]]) -> 18,197 ₽ | H25: =SUM(остаток[[#This Row],[январь]:[сентябрь]]) -> 28,955 ₽ | I25: =SUM(остаток[[#This Row],[январь]:[декабрь]]) -> 41,923 ₽ | J25: 45,906 | K25: ='12 мес'!I967 -> 84,719 | L25: =SUMIFS(работы[Затраты],работы[Адрес],"Комсомольская д. 10",работы[Квартал],"1") -> 0 ₽ | M25: =SUMIFS(работы[Затраты],работы[Адрес],"Комсомольская д. 10",работы[Квартал],"1")+SUMIFS(работы[Затраты],работы[Адрес],"Комсомольская д. 10",работы[Квартал],"2") -> 1,001 ₽ | N25: =SUMIFS(работы[Затраты],работы[Адрес],"Комсомольская д. 10",работы[Квартал],"1")+SUMIFS(работы[Затраты],работы[Адрес],"Комсомольская д. 10",работы[Квартал],"2")+SUMIFS(работы[Затраты],работы[Адрес],"Комсомольская д. 10",работы[Квартал],"3") -> 1,001 ₽ | O25: =SUMIFS(работы[Затраты],работы[Адрес],"Комсомольская д. 10",работы[Квартал],"1")+SUMIFS(работы[Затраты],работы[Адрес],"Комсомольская д. 10",работы[Квартал],"2")+SUMIFS(работы[Затраты],работы[Адрес],"Комсомольская д. 10",работы[Квартал],"3")+SUMIFS(работы[Затраты],работы[Адрес],"Комсомольская д. 10",работы[Квартал],"4") -> 3,110 ₽ | P25: 2,528.33 ₽ | Q25: 4,561.97 ₽ | R25: 3,415.60 ₽ | S25: 7,691.14 ₽ | T25: 4,066.46 ₽ | U25: 3,401.52 ₽ | V25: 3,289.95 ₽ | W25: 4,054.09 ₽ | X25: 3,860.84 ₽ | Y25: 5,052.96 ₽
A26: 25 | B26: Комсомольская д. 12 | C26: 1,079.94 | D26: 5.50 | E26: =остаток[[#This Row],[Общеполезная жилая площадь, м²]]*остаток[[#This Row],[Тариф на текущий ремонт, руб/м²]]*12 -> 71,276 ₽ | F26: =SUM(остаток[[#This Row],[январь]:[март]]) -> 16,006 ₽ | G26: =SUM(остаток[[#This Row],[январь]:[июнь]]) -> 26,168 ₽ | H26: =SUM(остаток[[#This Row],[январь]:[сентябрь]]) -> 41,830 ₽ | I26: =SUM(остаток[[#This Row],[январь]:[декабрь]]) -> 58,018 ₽ | J26: 159,315 | K26: ='12 мес'!I1017 -> 213,977 | L26: =SUMIFS(работы[Затраты],работы[Адрес],"Комсомольская д. 12",работы[Квартал],"1") -> 1,819 ₽ | M26: =SUMIFS(работы[Затраты],работы[Адрес],"Комсомольская д. 12",работы[Квартал],"1")+SUMIFS(работы[Затраты],работы[Адрес],"Комсомольская д. 12",работы[Квартал],"2") -> 1,819 ₽ | N26: =SUMIFS(работы[Затраты],работы[Адрес],"Комсомольская д. 12",работы[Квартал],"1")+SUMIFS(работы[Затраты],работы[Адрес],"Комсомольская д. 12",работы[Квартал],"2")+SUMIFS(работы[Затраты],работы[Адрес],"Комсомольская д. 12",работы[Квартал],"3") -> 1,819 ₽ | O26: =SUMIFS(работы[Затраты],работы[Адрес],"Комсомольская д. 12",работы[Квартал],"1")+SUMIFS(работы[Затраты],работы[Адрес],"Комсомольская д. 12",работы[Квартал],"2")+SUMIFS(работы[Затраты],работы[Адрес],"Комсомольская д. 12",работы[Квартал],"3")+SUMIFS(работы[Затраты],работы[Адрес],"Комсомольская д. 12",работы[Квартал],"4") -> 3,356 ₽ | P26: 4,131.85 ₽ | Q26: 5,986.44 ₽ | R26: 5,887.35 ₽ | S26: 10,161.89 ₽ | T26: 5,597.15 ₽ | U26: 3,750.42 ₽ | V26: 6,314.96 ₽ | W26: 5,393.49 ₽ | X26: 6,067.62 ₽ | Y26: 4,726.59 ₽
A27: 26 | B27: Краснофлотская д. 3 | C27: 643.69 | D27: 5.50 | E27: =остаток[[#This Row],[Общеполезная жилая площадь, м²]]*остаток[[#This Row],[Тариф на текущий ремонт, руб/м²]]*12 -> 42,484 ₽ | F27: =SUM(остаток[[#This Row],[январь]:[март]]) -> 10,511 ₽ | G27: =SUM(остаток[[#This Row],[январь]:[июнь]]) -> 17,656 ₽ | H27: =SUM(остаток[[#This Row],[январь]:[сентябрь]]) -> 27,475 ₽ | I27: =SUM(остаток[[#This Row],[январь]:[декабрь]]) -> 37,031 ₽ | J27: 54,827 | K27: ='12 мес'!I1067 -> 53,882 | L27: =SUMIFS(работы[Затраты],работы[Адрес],"Краснофлотская д. 3",работы[Квартал],"1") -> 3,103 ₽ | M27: =SUMIFS(работы[Затраты],работы[Адрес],"Краснофлотская д. 3",работы[Квартал],"1")+SUMIFS(работы[Затраты],работы[Адрес],"Краснофлотская д. 3",работы[Квартал],"2") -> 3,103 ₽ | N27: =SUMIFS(работы[Затраты],работы[Адрес],"Краснофлотская д. 3",работы[Квартал],"1")+SUMIFS(работы[Затраты],работы[Адрес],"Краснофлотская д. 3",работы[Квартал],"2")+SUMIFS(работы[Затраты],работы[Адрес],"Краснофлотская д. 3",работы[Квартал],"3") -> 35,015 ₽ | O27: =SUMIFS(работы[Затраты],работы[Адрес],"Краснофлотская д. 3",работы[Квартал],"1")+SUMIFS(работы[Затраты],работы[Адрес],"Краснофлотская д. 3",работы[Квартал],"2")+SUMIFS(работы[Затраты],работы[Адрес],"Краснофлотская д. 3",работы[Квартал],"3")+SUMIFS(работы[Затраты],работы[Адрес],"Краснофлотская д. 3",работы[Квартал],"4") -> 37,976 ₽ | P27: 3,564.20 ₽ | Q27: 4,298.88 ₽ | R27: 2,648.20 ₽ | S27: 7,144.97 ₽ | T27: 2,912.75 ₽ | U27: 3,273.26 ₽ | V27: 3,632.78 ₽ | W27: 2,912.75 ₽ | X27: 3,630.71 ₽ | Y27: 3,012.08 ₽
A28: 27 | B28: Краснофлотская д. 4 | C28: 416.10 | D28: 5.50 | E28: =остаток[[#This Row],[Общеполезная жилая площадь, м²]]*остаток[[#This Row],[Тариф на текущий ремонт, руб/м²]]*12 -> 27,463 ₽ | F28: =SUM(остаток[[#This Row],[январь]:[март]]) -> 6,979 ₽ | G28: =SUM(остаток[[#This Row],[январь]:[июнь]]) -> 11,232 ₽ | H28: =SUM(остаток[[#This Row],[январь]:[сентябрь]]) -> 17,443 ₽ | I28: =SUM(остаток[[#This Row],[январь]:[декабрь]]) -> 23,654 ₽ | J28: 56,031 | K28: ='12 мес'!I1117 -> 72,865 | L28: =SUMIFS(работы[Затраты],работы[Адрес],"Краснофлотская д. 4",работы[Квартал],"1") -> 0 ₽ | M28: =SUMIFS(работы[Затраты],работы[Адрес],"Краснофлотская д. 4",работы[Квартал],"1")+SUMIFS(работы[Затраты],работы[Адрес],"Краснофлотская д. 4",работы[Квартал],"2") -> 0 ₽ | N28: =SUMIFS(работы[Затраты],работы[Адрес],"Краснофлотская д. 4",работы[Квартал],"1")+SUMIFS(работы[Затраты],работы[Адрес],"Краснофлотская д. 4",работы[Квартал],"2")+SUMIFS(работы[Затраты],работы[Адрес],"Краснофлотская д. 4",работы[Квартал],"3") -> 0 ₽ | O28: =SUMIFS(работы[Затраты],работы[Адрес],"Краснофлотская д. 4",работы[Квартал],"1")+SUMIFS(работы[Затраты],работы[Адрес],"Краснофлотская д. 4",работы[Квартал],"2")+SUMIFS(работы[Затраты],работы[Адрес],"Краснофлотская д. 4",работы[Квартал],"3")+SUMIFS(работы[Затраты],работы[Адрес],"Краснофлотская д. 4",работы[Квартал],"4") -> 6,820 ₽ | P28: 2,838.13 ₽ | Q28: 2,070.26 ₽ | R28: 2,070.26 ₽ | S28: 4,253.55 ₽ | T28: 2,070.26 ₽ | U28: 2,183.29 ₽ | V28: 1,957.23 ₽ | W28: 1,957.23 ₽ | X28: 1,799.66 ₽ | Y28: 2,453.89 ₽
A29: 28 | B29: Краснофлотская д. 5 | C29: 420.93 | D29: 5.50 | E29: =остаток[[#This Row],[Общеполезная жилая площадь, м²]]*остаток[[#This Row],[Тариф на текущий ремонт, руб/м²]]*12 -> 27,781 ₽ | F29: =SUM(остаток[[#This Row],[январь]:[март]]) -> 8,495 ₽ | G29: =SUM(остаток[[#This Row],[январь]:[июнь]]) -> 12,412 ₽ | H29: =SUM(остаток[[#This Row],[январь]:[сентябрь]]) -> 18,254 ₽ | I29: =SUM(остаток[[#This Row],[январь]:[декабрь]]) -> 24,628 ₽ | J29: 108,688 | K29: ='12 мес'!I1167 -> 127,864 | L29: =SUMIFS(работы[Затраты],работы[Адрес],"Краснофлотская д. 5",работы[Квартал],"1") -> 5,452 ₽ | M29: =SUMIFS(работы[Затраты],работы[Адрес],"Краснофлотская д. 5",работы[Квартал],"1")+SUMIFS(работы[Затраты],работы[Адрес],"Краснофлотская д. 5",работы[Квартал],"2") -> 5,452 ₽ | N29: =SUMIFS(работы[Затраты],работы[Адрес],"Краснофлотская д. 5",работы[Квартал],"1")+SUMIFS(работы[Затраты],работы[Адрес],"Краснофлотская д. 5",работы[Квартал],"2")+SUMIFS(работы[Затраты],работы[Адрес],"Краснофлотская д. 5",работы[Квартал],"3") -> 5,452 ₽ | O29: =SUMIFS(работы[Затраты],работы[Адрес],"Краснофлотская д. 5",работы[Квартал],"1")+SUMIFS(работы[Затраты],работы[Адрес],"Краснофлотская д. 5",работы[Квартал],"2")+SUMIFS(работы[Затраты],работы[Адрес],"Краснофлотская д. 5",работы[Квартал],"3")+SUMIFS(работы[Затраты],работы[Адрес],"Краснофлотская д. 5",работы[Квартал],"4") -> 5,452 ₽ | P29: 4,533.64 ₽ | Q29: 1,762.75 ₽ | R29: 2,198.25 ₽ | S29: 3,917.20 ₽ | T29: 2,036.10 ₽ | U29: 1,769.90 ₽ | V29: 2,036.04 ₽ | W29: 1,769.90 ₽ | X29: 2,301.09 ₽ | Y29: 2,303.57 ₽
A30: 29 | B30: Краснофлотская д. 6 | C30: 440.40 | D30: 5.50 | E30: =остаток[[#This Row],[Общеполезная жилая площадь, м²]]*остаток[[#This Row],[Тариф на текущий ремонт, руб/м²]]*12 -> 29,066 ₽ | F30: =SUM(остаток[[#This Row],[январь]:[март]]) -> 6,233 ₽ | G30: =SUM(остаток[[#This Row],[январь]:[июнь]]) -> 11,597 ₽ | H30: =SUM(остаток[[#This Row],[январь]:[сентябрь]]) -> 19,027 ₽ | I30: =SUM(остаток[[#This Row],[январь]:[декабрь]]) -> 24,907 ₽ | J30: 16,772 | K30: ='12 мес'!I1217 -> 41,679 | L30: =SUMIFS(работы[Затраты],работы[Адрес],"Краснофлотская д. 6",работы[Квартал],"1") -> 0 ₽ | M30: =SUMIFS(работы[Затраты],работы[Адрес],"Краснофлотская д. 6",работы[Квартал],"1")+SUMIFS(работы[Затраты],работы[Адрес],"Краснофлотская д. 6",работы[Квартал],"2") -> 0 ₽ | N30: =SUMIFS(работы[Затраты],работы[Адрес],"Краснофлотская д. 6",работы[Квартал],"1")+SUMIFS(работы[Затраты],работы[Адрес],"Краснофлотская д. 6",работы[Квартал],"2")+SUMIFS(работы[Затраты],работы[Адрес],"Краснофлотская д. 6",работы[Квартал],"3") -> 0 ₽ | O30: =SUMIFS(работы[Затраты],работы[Адрес],"Краснофлотская д. 6",работы[Квартал],"1")+SUMIFS(работы[Затраты],работы[Адрес],"Краснофлотская д. 6",работы[Квартал],"2")+SUMIFS(работы[Затраты],работы[Адрес],"Краснофлотская д. 6",работы[Квартал],"3")+SUMIFS(работы[Затраты],работы[Адрес],"Краснофлотская д. 6",работы[Квартал],"4") -> 0 ₽ | P30: 2,204.58 ₽ | Q30: 2,015.05 ₽ | R30: 2,013.18 ₽ | S30: 5,363.92 ₽ | T30: 2,278.60 ₽ | U30: 1,726.95 ₽ | V30: 3,424.32 ₽ | W30: 1,726.95 ₽ | X30: 2,236.18 ₽ | Y30: 1,917.25 ₽
A31: 30 | B31: Ладожская д. 9 | C31: 4,898.26 | D31: 5.00 | E31: =остаток[[#This Row],[Общеполезная жилая площадь, м²]]*остаток[[#This Row],[Тариф на текущий ремонт, руб/м²]]*12 -> 293,896 ₽ | F31: =SUM(остаток[[#This Row],[январь]:[март]]) -> 64,369 ₽ | G31: =SUM(остаток[[#This Row],[январь]:[июнь]]) -> 114,454 ₽ | H31: =SUM(остаток[[#This Row],[январь]:[сентябрь]]) -> 205,094 ₽ | I31: =SUM(остаток[[#This Row],[январь]:[декабрь]]) -> 281,652 ₽ | J31: 344,037 | K31: ='12 мес'!I1271 -> 479,692 | L31: =SUMIFS(работы[Затраты],работы[Адрес],"Ладожская д. 9",работы[Квартал],"1") -> 22,978 ₽ | M31: =SUMIFS(работы[Затраты],работы[Адрес],"Ладожская д. 9",работы[Квартал],"1")+SUMIFS(работы[Затраты],работы[Адрес],"Ладожская д. 9",работы[Квартал],"2") -> 32,710 ₽ | N31: =SUMIFS(работы[Затраты],работы[Адрес],"Ладожская д. 9",работы[Квартал],"1")+SUMIFS(работы[Затраты],работы[Адрес],"Ладожская д. 9",работы[Квартал],"2")+SUMIFS(работы[Затраты],работы[Адрес],"Ладожская д. 9",работы[Квартал],"3") -> 64,388 ₽ | O31: =SUMIFS(работы[Затраты],работы[Адрес],"Ладожская д. 9",работы[Квартал],"1")+SUMIFS(работы[Затраты],работы[Адрес],"Ладожская д. 9",работы[Квартал],"2")+SUMIFS(работы[Затраты],работы[Адрес],"Ладожская д. 9",работы[Квартал],"3")+SUMIFS(работы[Затраты],работы[Адрес],"Ладожская д. 9",работы[Квартал],"4") -> 180,505 ₽ | P31: 23,628.03 ₽ | Q31: 20,538.92 ₽ | R31: 20,201.63 ₽ | S31: 50,085.02 ₽ | T31: 32,622.03 ₽ | U31: 28,035.51 ₽ | V31: 29,982.75 ₽ | W31: 21,389.99 ₽ | X31: 20,226.96 ₽ | Y31: 34,941.39 ₽
A32: 31 | B32: Ладожская д. 12 | C32: 6,157.35 | D32: 5.50 | E32: =остаток[[#This Row],[Общеполезная жилая площадь, м²]]*остаток[[#This Row],[Тариф на текущий ремонт, руб/м²]]*12 -> 406,385 ₽ | F32: =SUM(остаток[[#This Row],[январь]:[март]]) -> 110,751 ₽ | G32: =SUM(остаток[[#This Row],[январь]:[июнь]]) -> 175,706 ₽ | H32: =SUM(остаток[[#This Row],[январь]:[сентябрь]]) -> 274,521 ₽ | I32: =SUM(остаток[[#This Row],[январь]:[декабрь]]) -> 382,666 ₽ | J32: -79,155 | K32: ='12 мес'!I1317 -> 24,668 | L32: =SUMIFS(работы[Затраты],работы[Адрес],"Ладожская д. 12",работы[Квартал],"1") -> 30,044 ₽ | M32: =SUMIFS(работы[Затраты],работы[Адрес],"Ладожская д. 12",работы[Квартал],"1")+SUMIFS(работы[Затраты],работы[Адрес],"Ладожская д. 12",работы[Квартал],"2") -> 42,233 ₽ | N32: =SUMIFS(работы[Затраты],работы[Адрес],"Ладожская д. 12",работы[Квартал],"1")+SUMIFS(работы[Затраты],работы[Адрес],"Ладожская д. 12",работы[Квартал],"2")+SUMIFS(работы[Затраты],работы[Адрес],"Ладожская д. 12",работы[Квартал],"3") -> 267,730 ₽ | O32: =SUMIFS(работы[Затраты],работы[Адрес],"Ладожская д. 12",работы[Квартал],"1")+SUMIFS(работы[Затраты],работы[Адрес],"Ладожская д. 12",работы[Квартал],"2")+SUMIFS(работы[Затраты],работы[Адрес],"Ладожская д. 12",работы[Квартал],"3")+SUMIFS(работы[Затраты],работы[Адрес],"Ладожская д. 12",работы[Квартал],"4") -> 278,843 ₽ | P32: 42,952.89 ₽ | Q32: 34,582.47 ₽ | R32: 33,215.26 ₽ | S32: 64,955.07 ₽ | T32: 32,170.87 ₽ | U32: 34,550.34 ₽ | V32: 32,094.31 ₽ | W32: 35,827.43 ₽ | X32: 34,087.20 ₽ | Y32: 38,230.29 ₽
A33: 32 | B33: Ладожская д. 14 | C33: 6,165.83 | D33: 5.50 | E33: =остаток[[#This Row],[Общеполезная жилая площадь, м²]]*остаток[[#This Row],[Тариф на текущий ремонт, руб/м²]]*12 -> 406,945 ₽ | F33: =SUM(остаток[[#This Row],[январь]:[март]]) -> 119,897 ₽ | G33: =SUM(остаток[[#This Row],[январь]:[июнь]]) -> 185,554 ₽ | H33: =SUM(остаток[[#This Row],[январь]:[сентябрь]]) -> 281,194 ₽ | I33: =SUM(остаток[[#This Row],[январь]:[декабрь]]) -> 379,774 ₽ | J33: 574,546 | K33: ='12 мес'!I1371 -> 266,558 | L33: =SUMIFS(работы[Затраты],работы[Адрес],"Ладожская д. 14",работы[Квартал],"1") -> 12,918 ₽ | M33: =SUMIFS(работы[Затраты],работы[Адрес],"Ладожская д. 14",работы[Квартал],"1")+SUMIFS(работы[Затраты],работы[Адрес],"Ладожская д. 14",работы[Квартал],"2") -> 25,823 ₽ | N33: =SUMIFS(работы[Затраты],работы[Адрес],"Ладожская д. 14",работы[Квартал],"1")+SUMIFS(работы[Затраты],работы[Адрес],"Ладожская д. 14",работы[Квартал],"2")+SUMIFS(работы[Затраты],работы[Адрес],"Ладожская д. 14",работы[Квартал],"3") -> 169,662 ₽ | O33: =SUMIFS(работы[Затраты],работы[Адрес],"Ладожская д. 14",работы[Квартал],"1")+SUMIFS(работы[Затраты],работы[Адрес],"Ладожская д. 14",работы[Квартал],"2")+SUMIFS(работы[Затраты],работы[Адрес],"Ладожская д. 14",работы[Квартал],"3")+SUMIFS(работы[Затраты],работы[Адрес],"Ладожская д. 14",работы[Квартал],"4") -> 712,345 ₽ | P33: 54,755.94 ₽ | Q33: 27,851.39 ₽ | R33: 37,289.68 ₽ | S33: 65,656.80 ₽ | T33: 30,648.88 ₽ | U33: 31,965.99 ₽ | V33: 33,025.34 ₽ | W33: 33,395.38 ₽ | X33: 31,959.94 ₽ | Y33: 33,224.18 ₽
A34: 33 | B34: Ладожская д. 18 | C34: 2,101.99 | D34: 5.00 | E34: =остаток[[#This Row],[Общеполезная жилая площадь, м²]]*остаток[[#This Row],[Тариф на текущий ремонт, руб/м²]]*12 -> 126,119 ₽ | F34: =SUM(остаток[[#This Row],[январь]:[март]]) -> 32,403 ₽ | G34: =SUM(остаток[[#This Row],[январь]:[июнь]]) -> 53,069 ₽ | H34: =SUM(остаток[[#This Row],[январь]:[сентябрь]]) -> 83,949 ₽ | I34: =SUM(остаток[[#This Row],[январь]:[декабрь]]) -> 114,859 ₽ | J34: -153,130 | K34: ='12 мес'!I1417 -> -81,622 | L34: =SUMIFS(работы[Затраты],работы[Адрес],"Ладожская д. 18",работы[Квартал],"1") -> 0 ₽ | M34: =SUMIFS(работы[Затраты],работы[Адрес],"Ладожская д. 18",работы[Квартал],"1")+SUMIFS(работы[Затраты],работы[Адрес],"Ладожская д. 18",работы[Квартал],"2") -> 903 ₽ | N34: =SUMIFS(работы[Затраты],работы[Адрес],"Ладожская д. 18",работы[Квартал],"1")+SUMIFS(работы[Затраты],работы[Адрес],"Ладожская д. 18",работы[Квартал],"2")+SUMIFS(работы[Затраты],работы[Адрес],"Ладожская д. 18",работы[Квартал],"3") -> 39,429 ₽ | O34: =SUMIFS(работы[Затраты],работы[Адрес],"Ладожская д. 18",работы[Квартал],"1")+SUMIFS(работы[Затраты],работы[Адрес],"Ладожская д. 18",работы[Квартал],"2")+SUMIFS(работы[Затраты],работы[Адрес],"Ладожская д. 18",работы[Квартал],"3")+SUMIFS(работы[Затраты],работы[Адрес],"Ладожская д. 18",работы[Квартал],"4") -> 43,351 ₽ | P34: 11,867.39 ₽ | Q34: 11,691.38 ₽ | R34: 8,844.01 ₽ | S34: 20,665.77 ₽ | T34: 10,699.95 ₽ | U34: 10,315.42 ₽ | V34: 9,865.55 ₽ | W34: 10,502.60 ₽ | X34: 9,920.18 ₽ | Y34: 10,486.86 ₽
A35: 34 | B35: Ладожская д. 20 | C35: 14,618.08 | D35: 7.00 | E35: =остаток[[#This Row],[Общеполезная жилая площадь, м²]]*остаток[[#This Row],[Тариф на текущий ремонт, руб/м²]]*12 -> 1,227,919 ₽ | F35: =SUM(остаток[[#This Row],[январь]:[март]]) -> 306,838 ₽ | G35: =SUM(остаток[[#This Row],[январь]:[июнь]]) -> 493,318 ₽ | H35: =SUM(остаток[[#This Row],[январь]:[сентябрь]]) -> 794,656 ₽ | I35: =SUM(остаток[[#This Row],[январь]:[декабрь]]) -> 1,105,473 ₽ | J35: 189,552 | K35: ='12 мес'!I1467 -> -207,547 | L35: =SUMIFS(работы[Затраты],работы[Адрес],"Ладожская д. 20",работы[Квартал],"1") -> 41,961 ₽ | M35: =SUMIFS(работы[Затраты],работы[Адрес],"Ладожская д. 20",работы[Квартал],"1")+SUMIFS(работы[Затраты],работы[Адрес],"Ладожская д. 20",работы[Квартал],"2") -> 138,993 ₽ | N35: =SUMIFS(работы[Затраты],работы[Адрес],"Ладожская д. 20",работы[Квартал],"1")+SUMIFS(работы[Затраты],работы[Адрес],"Ладожская д. 20",работы[Квартал],"2")+SUMIFS(работы[Затраты],работы[Адрес],"Ладожская д. 20",работы[Квартал],"3") -> 729,440 ₽ | O35: =SUMIFS(работы[Затраты],работы[Адрес],"Ладожская д. 20",работы[Квартал],"1")+SUMIFS(работы[Затраты],работы[Адрес],"Ладожская д. 20",работы[Квартал],"2")+SUMIFS(работы[Затраты],работы[Адрес],"Ладожская д. 20",работы[Квартал],"3")+SUMIFS(работы[Затраты],работы[Адрес],"Ладожская д. 20",работы[Квартал],"4") -> 1,502,572 ₽ | P35: 107,266.32 ₽ | Q35: 98,521.74 ₽ | R35: 101,049.93 ₽ | S35: 186,479.55 ₽ | T35: 99,103.81 ₽ | U35: 96,403.85 ₽ | V35: 105,831.13 ₽ | W35: 97,920.15 ₽ | X35: 101,283.00 ₽ | Y35: 111,613.79 ₽
A36: 35 | B36: Ладожская д. 22 | C36: 8,186.06 | D36: 5.00 | E36: =остаток[[#This Row],[Общеполезная жилая площадь, м²]]*остаток[[#This Row],[Тариф на текущий ремонт, руб/м²]]*12 -> 491,164 ₽ | F36: =SUM(остаток[[#This Row],[январь]:[март]]) -> 115,962 ₽ | G36: =SUM(остаток[[#This Row],[январь]:[июнь]]) -> 193,299 ₽ | H36: =SUM(остаток[[#This Row],[январь]:[сентябрь]]) -> 309,865 ₽ | I36: =SUM(остаток[[#This Row],[январь]:[декабрь]]) -> 426,741 ₽ | J36: 55,980 | K36: ='12 мес'!I1517 -> 82,796 | L36: =SUMIFS(работы[Затраты],работы[Адрес],"Ладожская д. 22",работы[Квартал],"1") -> 41,552 ₽ | M36: =SUMIFS(работы[Затраты],работы[Адрес],"Ладожская д. 22",работы[Квартал],"1")+SUMIFS(работы[Затраты],работы[Адрес],"Ладожская д. 22",работы[Квартал],"2") -> 64,357 ₽ | N36: =SUMIFS(работы[Затраты],работы[Адрес],"Ладожская д. 22",работы[Квартал],"1")+SUMIFS(работы[Затраты],работы[Адрес],"Ладожская д. 22",работы[Квартал],"2")+SUMIFS(работы[Затраты],работы[Адрес],"Ладожская д. 22",работы[Квартал],"3") -> 381,241 ₽ | O36: =SUMIFS(работы[Затраты],работы[Адрес],"Ладожская д. 22",работы[Квартал],"1")+SUMIFS(работы[Затраты],работы[Адрес],"Ладожская д. 22",работы[Квартал],"2")+SUMIFS(работы[Затраты],работы[Адрес],"Ладожская д. 22",работы[Квартал],"3")+SUMIFS(работы[Затраты],работы[Адрес],"Ладожская д. 22",работы[Квартал],"4") -> 399,925 ₽ | P36: 37,814.21 ₽ | Q36: 40,225.32 ₽ | R36: 37,922.65 ₽ | S36: 77,336.91 ₽ | T36: 40,224.83 ₽ | U36: 36,782.33 ₽ | V36: 39,558.68 ₽ | W36: 38,894.70 ₽ | X36: 40,093.45 ₽ | Y36: 37,888.09 ₽
A37: 36 | B37: Молодежная д. 18 | C37: 4,632.85 | D37: 5.50 | E37: =остаток[[#This Row],[Общеполезная жилая площадь, м²]]*остаток[[#This Row],[Тариф на текущий ремонт, руб/м²]]*12 -> 305,768 ₽ | F37: =SUM(остаток[[#This Row],[январь]:[март]]) -> 77,935 ₽ | G37: =SUM(остаток[[#This Row],[январь]:[июнь]]) -> 125,761 ₽ | H37: =SUM(остаток[[#This Row],[январь]:[сентябрь]]) -> 201,434 ₽ | I37: =SUM(остаток[[#This Row],[январь]:[декабрь]]) -> 279,353 ₽ | J37: 185,393 | K37: ='12 мес'!I1567 -> 144,211 | L37: =SUMIFS(работы[Затраты],работы[Адрес],"Молодежная д. 18",работы[Квартал],"1") -> 903 ₽ | M37: =SUMIFS(работы[Затраты],работы[Адрес],"Молодежная д. 18",работы[Квартал],"1")+SUMIFS(работы[Затраты],работы[Адрес],"Молодежная д. 18",работы[Квартал],"2") -> 81,592 ₽ | N37: =SUMIFS(работы[Затраты],работы[Адрес],"Молодежная д. 18",работы[Квартал],"1")+SUMIFS(работы[Затраты],работы[Адрес],"Молодежная д. 18",работы[Квартал],"2")+SUMIFS(работы[Затраты],работы[Адрес],"Молодежная д. 18",работы[Квартал],"3") -> 311,024 ₽ | O37: =SUMIFS(работы[Затраты],работы[Адрес],"Молодежная д. 18",работы[Квартал],"1")+SUMIFS(работы[Затраты],работы[Адрес],"Молодежная д. 18",работы[Квартал],"2")+SUMIFS(работы[Затраты],работы[Адрес],"Молодежная д. 18",работы[Квартал],"3")+SUMIFS(работы[Затраты],работы[Адрес],"Молодежная д. 18",работы[Квартал],"4") -> 320,535 ₽ | P37: 24,470.34 ₽ | Q37: 27,493.48 ₽ | R37: 25,971.49 ₽ | S37: 47,825.99 ₽ | T37: 25,292.86 ₽ | U37: 23,908.41 ₽ | V37: 26,471.81 ₽ | W37: 24,880.21 ₽ | X37: 25,165.98 ₽ | Y37: 27,872.37 ₽
A38: 37 | B38: Новая д. 3 | C38: 5,982.43 | D38: 5.00 | E38: =остаток[[#This Row],[Общеполезная жилая площадь, м²]]*остаток[[#This Row],[Тариф на текущий ремонт, руб/м²]]*12 -> 358,946 ₽ | F38: =SUM(остаток[[#This Row],[январь]:[март]]) -> 89,445 ₽ | G38: =SUM(остаток[[#This Row],[январь]:[июнь]]) -> 144,986 ₽ | H38: =SUM(остаток[[#This Row],[январь]:[сентябрь]]) -> 241,305 ₽ | I38: =SUM(остаток[[#This Row],[январь]:[декабрь]]) -> 335,069 ₽ | J38: 955,551 | K38: ='12 мес'!I2021 -> 1,386,386 | L38: =SUMIFS(работы[Затраты],работы[Адрес],"Новая д. 3",работы[Квартал],"1") -> 7,074 ₽ | M38: =SUMIFS(работы[Затраты],работы[Адрес],"Новая д. 3",работы[Квартал],"1")+SUMIFS(работы[Затраты],работы[Адрес],"Новая д. 3",работы[Квартал],"2") -> 10,798 ₽ | N38: =SUMIFS(работы[Затраты],работы[Адрес],"Новая д. 3",работы[Квартал],"1")+SUMIFS(работы[Затраты],работы[Адрес],"Новая д. 3",работы[Квартал],"2")+SUMIFS(работы[Затраты],работы[Адрес],"Новая д. 3",работы[Квартал],"3") -> 137,999 ₽ | O38: =SUMIFS(работы[Затраты],работы[Адрес],"Новая д. 3",работы[Квартал],"1")+SUMIFS(работы[Затраты],работы[Адрес],"Новая д. 3",работы[Квартал],"2")+SUMIFS(работы[Затраты],работы[Адрес],"Новая д. 3",работы[Квартал],"3")+SUMIFS(работы[Затраты],работы[Адрес],"Новая д. 3",работы[Квартал],"4") -> 150,295 ₽ | P38: 29,169.21 ₽ | Q38: 29,118.66 ₽ | R38: 31,157.46 ₽ | S38: 55,540.88 ₽ | T38: 29,427.54 ₽ | U38: 35,584.42 ₽ | V38: 31,306.48 ₽ | W38: 28,633.04 ₽ | X38: 33,148.93 ₽ | Y38: 31,982.45 ₽
A39: 38 | B39: Новая д. 7 | C39: 7,536.70 | D39: 5.00 | E39: =остаток[[#This Row],[Общеполезная жилая площадь, м²]]*остаток[[#This Row],[Тариф на текущий ремонт, руб/м²]]*12 -> 452,202 ₽ | F39: =SUM(остаток[[#This Row],[январь]:[март]]) -> 105,393 ₽ | G39: =SUM(остаток[[#This Row],[январь]:[июнь]]) -> 173,000 ₽ | H39: =SUM(остаток[[#This Row],[январь]:[сентябрь]]) -> 282,995 ₽ | I39: =SUM(остаток[[#This Row],[январь]:[декабрь]]) -> 395,561 ₽ | J39: -159,928 | K39: ='12 мес'!I2071 -> 84,210 | L39: =SUMIFS(работы[Затраты],работы[Адрес],"Новая д. 7",работы[Квартал],"1") -> 15,123 ₽ | M39: =SUMIFS(работы[Затраты],работы[Адрес],"Новая д. 7",работы[Квартал],"1")+SUMIFS(работы[Затраты],работы[Адрес],"Новая д. 7",работы[Квартал],"2") -> 33,969 ₽ | N39: =SUMIFS(работы[Затраты],работы[Адрес],"Новая д. 7",работы[Квартал],"1")+SUMIFS(работы[Затраты],работы[Адрес],"Новая д. 7",работы[Квартал],"2")+SUMIFS(работы[Затраты],работы[Адрес],"Новая д. 7",работы[Квартал],"3") -> 110,101 ₽ | O39: =SUMIFS(работы[Затраты],работы[Адрес],"Новая д. 7",работы[Квартал],"1")+SUMIFS(работы[Затраты],работы[Адрес],"Новая д. 7",работы[Квартал],"2")+SUMIFS(работы[Затраты],работы[Адрес],"Новая д. 7",работы[Квартал],"3")+SUMIFS(работы[Затраты],работы[Адрес],"Новая д. 7",работы[Квартал],"4") -> 162,338 ₽ | P39: 36,920.24 ₽ | Q39: 34,410.86 ₽ | R39: 34,061.81 ₽ | S39: 67,606.60 ₽ | T39: 33,613.57 ₽ | U39: 40,530.30 ₽ | V39: 35,851.53 ₽ | W39: 35,661.19 ₽ | X39: 36,639.49 ₽ | Y39: 40,265.28 ₽
A40: 39 | B40: Новая д. 9 | C40: 6,110.92 | D40: 5.50 | E40: =остаток[[#This Row],[Общеполезная жилая площадь, м²]]*остаток[[#This Row],[Тариф на текущий ремонт, руб/м²]]*12 -> 403,321 ₽ | F40: =SUM(остаток[[#This Row],[январь]:[март]]) -> 96,987 ₽ | G40: =SUM(остаток[[#This Row],[январь]:[июнь]]) -> 160,575 ₽ | H40: =SUM(остаток[[#This Row],[январь]:[сентябрь]]) -> 258,434 ₽ | I40: =SUM(остаток[[#This Row],[январь]:[декабрь]]) -> 358,677 ₽ | J40: 258,236 | K40: ='12 мес'!I2121 -> 337,993 | L40: =SUMIFS(работы[Затраты],работы[Адрес],"Новая д. 9",работы[Квартал],"1") -> 30,022 ₽ | M40: =SUMIFS(работы[Затраты],работы[Адрес],"Новая д. 9",работы[Квартал],"1")+SUMIFS(работы[Затраты],работы[Адрес],"Новая д. 9",работы[Квартал],"2") -> 33,174 ₽ | N40: =SUMIFS(работы[Затраты],работы[Адрес],"Новая д. 9",работы[Квартал],"1")+SUMIFS(работы[Затраты],работы[Адрес],"Новая д. 9",работы[Квартал],"2")+SUMIFS(работы[Затраты],работы[Адрес],"Новая д. 9",работы[Квартал],"3") -> 239,117 ₽ | O40: =SUMIFS(работы[Затраты],работы[Адрес],"Новая д. 9",работы[Квартал],"1")+SUMIFS(работы[Затраты],работы[Адрес],"Новая д. 9",работы[Квартал],"2")+SUMIFS(работы[Затраты],работы[Адрес],"Новая д. 9",работы[Квартал],"3")+SUMIFS(работы[Затраты],работы[Адрес],"Новая д. 9",работы[Квартал],"4") -> 291,313 ₽ | P40: 29,116.84 ₽ | Q40: 33,928.72 ₽ | R40: 33,941.74 ₽ | S40: 63,587.78 ₽ | T40: 33,757.42 ₽ | U40: 30,931.59 ₽ | V40: 33,169.60 ₽ | W40: 33,912.73 ₽ | X40: 34,386.37 ₽ | Y40: 31,944.56 ₽
A41: 40 | B41: Новая д. 19 | C41: 4,359.01 | D41: 5.50 | E41: =остаток[[#This Row],[Общеполезная жилая площадь, м²]]*остаток[[#This Row],[Тариф на текущий ремонт, руб/м²]]*12 -> 287,695 ₽ | F41: =SUM(остаток[[#This Row],[январь]:[март]]) -> 68,900 ₽ | G41: =SUM(остаток[[#This Row],[январь]:[июнь]]) -> 113,674 ₽ | H41: =SUM(остаток[[#This Row],[январь]:[сентябрь]]) -> 180,466 ₽ | I41: =SUM(остаток[[#This Row],[январь]:[декабрь]]) -> 244,248 ₽ | J41: 420,073 | K41: ='12 мес'!I2167 -> 13,483 | L41: =SUMIFS(работы[Затраты],работы[Адрес],"Новая д. 19",работы[Квартал],"1") -> 8,611 ₽ | M41: =SUMIFS(работы[Затраты],работы[Адрес],"Новая д. 19",работы[Квартал],"1")+SUMIFS(работы[Затраты],работы[Адрес],"Новая д. 19",работы[Квартал],"2") -> 213,854 ₽ | N41: =SUMIFS(работы[Затраты],работы[Адрес],"Новая д. 19",работы[Квартал],"1")+SUMIFS(работы[Затраты],работы[Адрес],"Новая д. 19",работы[Квартал],"2")+SUMIFS(работы[Затраты],работы[Адрес],"Новая д. 19",работы[Квартал],"3") -> 629,089 ₽ | O41: =SUMIFS(работы[Затраты],работы[Адрес],"Новая д. 19",работы[Квартал],"1")+SUMIFS(работы[Затраты],работы[Адрес],"Новая д. 19",работы[Квартал],"2")+SUMIFS(работы[Затраты],работы[Адрес],"Новая д. 19",работы[Квартал],"3")+SUMIFS(работы[Затраты],работы[Адрес],"Новая д. 19",работы[Квартал],"4") -> 650,838 ₽ | P41: 22,901.64 ₽ | Q41: 23,849.83 ₽ | R41: 22,148.75 ₽ | S41: 44,773.97 ₽ | T41: 24,117.32 ₽ | U41: 20,432.57 ₽ | V41: 22,242.16 ₽ | W41: 21,183.72 ₽ | X41: 21,789.62 ₽ | Y41: 20,807.96 ₽
A42: 41 | B42: Новая д. 20 | C42: 4,455.28 | D42: 5.50 | E42: =остаток[[#This Row],[Общеполезная жилая площадь, м²]]*остаток[[#This Row],[Тариф на текущий ремонт, руб/м²]]*12 -> 294,048 ₽ | F42: =SUM(остаток[[#This Row],[январь]:[март]]) -> 71,870 ₽ | G42: =SUM(остаток[[#This Row],[январь]:[июнь]]) -> 118,859 ₽ | H42: =SUM(остаток[[#This Row],[январь]:[сентябрь]]) -> 192,195 ₽ | I42: =SUM(остаток[[#This Row],[январь]:[декабрь]]) -> 262,340 ₽ | J42: 4,901 | K42: ='12 мес'!I2217 -> -523,426 | L42: =SUMIFS(работы[Затраты],работы[Адрес],"Новая д. 20",работы[Квартал],"1") -> 156,619 ₽ | M42: =SUMIFS(работы[Затраты],работы[Адрес],"Новая д. 20",работы[Квартал],"1")+SUMIFS(работы[Затраты],работы[Адрес],"Новая д. 20",работы[Квартал],"2") -> 714,066 ₽ | N42: =SUMIFS(работы[Затраты],работы[Адрес],"Новая д. 20",работы[Квартал],"1")+SUMIFS(работы[Затраты],работы[Адрес],"Новая д. 20",работы[Квартал],"2")+SUMIFS(работы[Затраты],работы[Адрес],"Новая д. 20",работы[Квартал],"3") -> 757,070 ₽ | O42: =SUMIFS(работы[Затраты],работы[Адрес],"Новая д. 20",работы[Квартал],"1")+SUMIFS(работы[Затраты],работы[Адрес],"Новая д. 20",работы[Квартал],"2")+SUMIFS(работы[Затраты],работы[Адрес],"Новая д. 20",работы[Квартал],"3")+SUMIFS(работы[Затраты],работы[Адрес],"Новая д. 20",работы[Квартал],"4") -> 790,667 ₽ | P42: 23,609.37 ₽ | Q42: 23,352.23 ₽ | R42: 24,908.55 ₽ | S42: 46,989.16 ₽ | T42: 24,391.11 ₽ | U42: 23,824.78 ₽ | V42: 25,119.99 ₽ | W42: 24,439.60 ₽ | X42: 22,569.56 ₽ | Y42: 23,136.01 ₽
A43: 42 | B43: Новая д. 22 | C43: 2,117.04 | D43: 5.50 | E43: =остаток[[#This Row],[Общеполезная жилая площадь, м²]]*остаток[[#This Row],[Тариф на текущий ремонт, руб/м²]]*12 -> 139,725 ₽ | F43: =SUM(остаток[[#This Row],[январь]:[март]]) -> 21,481 ₽ | G43: =SUM(остаток[[#This Row],[январь]:[июнь]]) -> 44,935 ₽ | H43: =SUM(остаток[[#This Row],[январь]:[сентябрь]]) -> 91,427 ₽ | I43: =SUM(остаток[[#This Row],[январь]:[декабрь]]) -> 116,331 ₽ | J43: 660,082 | K43: ='12 мес'!I2271 -> 724,906 | L43: =SUMIFS(работы[Затраты],работы[Адрес],"Новая д. 22",работы[Квартал],"1") -> 29,870 ₽ | M43: =SUMIFS(работы[Затраты],работы[Адрес],"Новая д. 22",работы[Квартал],"1")+SUMIFS(работы[Затраты],работы[Адрес],"Новая д. 22",работы[Квартал],"2") -> 29,870 ₽ | N43: =SUMIFS(работы[Затраты],работы[Адрес],"Новая д. 22",работы[Квартал],"1")+SUMIFS(работы[Затраты],работы[Адрес],"Новая д. 22",работы[Квартал],"2")+SUMIFS(работы[Затраты],работы[Адрес],"Новая д. 22",работы[Квартал],"3") -> 57,033 ₽ | O43: =SUMIFS(работы[Затраты],работы[Адрес],"Новая д. 22",работы[Квартал],"1")+SUMIFS(работы[Затраты],работы[Адрес],"Новая д. 22",работы[Квартал],"2")+SUMIFS(работы[Затраты],работы[Адрес],"Новая д. 22",работы[Квартал],"3")+SUMIFS(работы[Затраты],работы[Адрес],"Новая д. 22",работы[Квартал],"4") -> 66,869 ₽ | P43: 7,333.43 ₽ | Q43: 7,503.39 ₽ | R43: 6,644.14 ₽ | S43: 23,453.85 ₽ | T43: 8,373.72 ₽ | U43: 30,208.17 ₽ | V43: 7,910.60 ₽ | W43: 8,338.02 ₽ | X43: 8,055.65 ₽ | Y43: 8,510.48 ₽
A44: 43 | B44: Новая д. 24 | C44: 2,395.32 | D44: 5.50 | E44: =остаток[[#This Row],[Общеполезная жилая площадь, м²]]*остаток[[#This Row],[Тариф на текущий ремонт, руб/м²]]*12 -> 158,091 ₽ | F44: =SUM(остаток[[#This Row],[январь]:[март]]) -> 40,155 ₽ | G44: =SUM(остаток[[#This Row],[январь]:[июнь]]) -> 63,177 ₽ | H44: =SUM(остаток[[#This Row],[январь]:[сентябрь]]) -> 103,254 ₽ | I44: =SUM(остаток[[#This Row],[январь]:[декабрь]]) -> 140,409 ₽ | J44: 115,911 | K44: ='12 мес'!I2317 -> -62,385 | L44: =SUMIFS(работы[Затраты],работы[Адрес],"Новая д. 24",работы[Квартал],"1") -> 53,412 ₽ | M44: =SUMIFS(работы[Затраты],работы[Адрес],"Новая д. 24",работы[Квартал],"1")+SUMIFS(работы[Затраты],работы[Адрес],"Новая д. 24",работы[Квартал],"2") -> 87,570 ₽ | N44: =SUMIFS(работы[Затраты],работы[Адрес],"Новая д. 24",работы[Квартал],"1")+SUMIFS(работы[Затраты],работы[Адрес],"Новая д. 24",работы[Квартал],"2")+SUMIFS(работы[Затраты],работы[Адрес],"Новая д. 24",работы[Квартал],"3") -> 318,705 ₽ | O44: =SUMIFS(работы[Затраты],работы[Адрес],"Новая д. 24",работы[Квартал],"1")+SUMIFS(работы[Затраты],работы[Адрес],"Новая д. 24",работы[Квартал],"2")+SUMIFS(работы[Затраты],работы[Адрес],"Новая д. 24",работы[Квартал],"3")+SUMIFS(работы[Затраты],работы[Адрес],"Новая д. 24",работы[Квартал],"4") -> 318,705 ₽ | P44: 13,620.82 ₽ | Q44: 11,289.45 ₽ | R44: 15,244.90 ₽ | S44: 23,021.60 ₽ | T44: 13,840.41 ₽ | U44: 12,892.52 ₽ | V44: 13,344.49 ₽ | W44: 11,362.05 ₽ | X44: 12,471.10 ₽ | Y44: 13,321.50 ₽
A45: 44 | B45: Новая д. 28 | C45: 4,156.60 | D45: 5.50 | E45: =остаток[[#This Row],[Общеполезная жилая площадь, м²]]*остаток[[#This Row],[Тариф на текущий ремонт, руб/м²]]*12 -> 274,336 ₽ | F45: =SUM(остаток[[#This Row],[январь]:[март]]) -> 65,455 ₽ | G45: =SUM(остаток[[#This Row],[январь]:[июнь]]) -> 109,418 ₽ | H45: =SUM(остаток[[#This Row],[январь]:[сентябрь]]) -> 179,157 ₽ | I45: =SUM(остаток[[#This Row],[январь]:[декабрь]]) -> 249,133 ₽ | J45: 355,297 | K45: ='12 мес'!I2371 -> 492,265 | L45: =SUMIFS(работы[Затраты],работы[Адрес],"Новая д. 28",работы[Квартал],"1") -> 0 ₽ | M45: =SUMIFS(работы[Затраты],работы[Адрес],"Новая д. 28",работы[Квартал],"1")+SUMIFS(работы[Затраты],работы[Адрес],"Новая д. 28",работы[Квартал],"2") -> 19,313 ₽ | N45: =SUMIFS(работы[Затраты],работы[Адрес],"Новая д. 28",работы[Квартал],"1")+SUMIFS(работы[Затраты],работы[Адрес],"Новая д. 28",работы[Квартал],"2")+SUMIFS(работы[Затраты],работы[Адрес],"Новая д. 28",работы[Квартал],"3") -> 99,179 ₽ | O45: =SUMIFS(работы[Затраты],работы[Адрес],"Новая д. 28",работы[Квартал],"1")+SUMIFS(работы[Затраты],работы[Адрес],"Новая д. 28",работы[Квартал],"2")+SUMIFS(работы[Затраты],работы[Адрес],"Новая д. 28",работы[Квартал],"3")+SUMIFS(работы[Затраты],работы[Адрес],"Новая д. 28",работы[Квартал],"4") -> 122,064 ₽ | P45: 22,635.03 ₽ | Q45: 20,536.32 ₽ | R45: 22,283.67 ₽ | S45: 43,963.08 ₽ | T45: 21,785.96 ₽ | U45: 24,508.47 ₽ | V45: 23,444.76 ₽ | W45: 22,441.31 ₽ | X45: 24,098.86 ₽ | Y45: 23,435.20 ₽
A46: 45 | B46: Новая д. 30 | C46: 2,443.18 | D46: 5.50 | E46: =остаток[[#This Row],[Общеполезная жилая площадь, м²]]*остаток[[#This Row],[Тариф на текущий ремонт, руб/м²]]*12 -> 161,250 ₽ | F46: =SUM(остаток[[#This Row],[январь]:[март]]) -> 37,933 ₽ | G46: =SUM(остаток[[#This Row],[январь]:[июнь]]) -> 61,414 ₽ | H46: =SUM(остаток[[#This Row],[январь]:[сентябрь]]) -> 101,017 ₽ | I46: =SUM(остаток[[#This Row],[январь]:[декабрь]]) -> 139,017 ₽ | J46: 10,490 | K46: ='12 мес'!I2421 -> -25,795 | L46: =SUMIFS(работы[Затраты],работы[Адрес],"Новая д. 30",работы[Квартал],"1") -> 153,474 ₽ | M46: =SUMIFS(работы[Затраты],работы[Адрес],"Новая д. 30",работы[Квартал],"1")+SUMIFS(работы[Затраты],работы[Адрес],"Новая д. 30",работы[Квартал],"2") -> 161,125 ₽ | N46: =SUMIFS(работы[Затраты],работы[Адрес],"Новая д. 30",работы[Квартал],"1")+SUMIFS(работы[Затраты],работы[Адрес],"Новая д. 30",работы[Квартал],"2")+SUMIFS(работы[Затраты],работы[Адрес],"Новая д. 30",работы[Квартал],"3") -> 231,824 ₽ | O46: =SUMIFS(работы[Затраты],работы[Адрес],"Новая д. 30",работы[Квартал],"1")+SUMIFS(работы[Затраты],работы[Адрес],"Новая д. 30",работы[Квартал],"2")+SUMIFS(работы[Затраты],работы[Адрес],"Новая д. 30",работы[Квартал],"3")+SUMIFS(работы[Затраты],работы[Адрес],"Новая д. 30",работы[Квартал],"4") -> 235,827 ₽ | P46: 9,879.49 ₽ | Q46: 14,058.66 ₽ | R46: 13,994.97 ₽ | S46: 23,480.51 ₽ | T46: 11,614.26 ₽ | U46: 15,562.24 ₽ | V46: 12,427.35 ₽ | W46: 14,571.22 ₽ | X46: 11,635.29 ₽ | Y46: 11,792.54 ₽
A47: 46 | B47: Новая д. 38 | C47: 3,636.69 | D47: 5.00 | E47: =остаток[[#This Row],[Общеполезная жилая площадь, м²]]*остаток[[#This Row],[Тариф на текущий ремонт, руб/м²]]*12 -> 218,201 ₽ | F47: =SUM(остаток[[#This Row],[январь]:[март]]) -> 48,031 ₽ | G47: =SUM(остаток[[#This Row],[январь]:[июнь]]) -> 82,886 ₽ | H47: =SUM(остаток[[#This Row],[январь]:[сентябрь]]) -> 131,908 ₽ | I47: =SUM(остаток[[#This Row],[январь]:[декабрь]]) -> 182,635 ₽ | J47: 47,510 | K47: ='12 мес'!I2471 -> 37,234 | L47: =SUMIFS(работы[Затраты],работы[Адрес],"Новая д. 38",работы[Квартал],"1") -> 210,108 ₽ | M47: =SUMIFS(работы[Затраты],работы[Адрес],"Новая д. 38",работы[Квартал],"1")+SUMIFS(работы[Затраты],работы[Адрес],"Новая д. 38",работы[Квартал],"2") -> 211,127 ₽ | N47: =SUMIFS(работы[Затраты],работы[Адрес],"Новая д. 38",работы[Квартал],"1")+SUMIFS(работы[Затраты],работы[Адрес],"Новая д. 38",работы[Квартал],"2")+SUMIFS(работы[Затраты],работы[Адрес],"Новая д. 38",работы[Квартал],"3") -> 277,025 ₽ | O47: =SUMIFS(работы[Затраты],работы[Адрес],"Новая д. 38",работы[Квартал],"1")+SUMIFS(работы[Затраты],работы[Адрес],"Новая д. 38",работы[Квартал],"2")+SUMIFS(работы[Затраты],работы[Адрес],"Новая д. 38",работы[Квартал],"3")+SUMIFS(работы[Затраты],работы[Адрес],"Новая д. 38",работы[Квартал],"4") -> 296,938 ₽ | P47: 15,230.89 ₽ | Q47: 14,637.56 ₽ | R47: 18,162.78 ₽ | S47: 34,854.46 ₽ | T47: 15,864.66 ₽ | U47: 17,917.15 ₽ | V47: 15,240.27 ₽ | W47: 17,055.89 ₽ | X47: 15,727.12 ₽ | Y47: 17,944.46 ₽
A48: 47 | B48: БПС д. 1 | C48: 6,886.10 | D48: 5.00 | E48: =остаток[[#This Row],[Общеполезная жилая площадь, м²]]*остаток[[#This Row],[Тариф на текущий ремонт, руб/м²]]*12 -> 413,166 ₽ | F48: =SUM(остаток[[#This Row],[январь]:[март]]) -> 14,103 ₽ | G48: =SUM(остаток[[#This Row],[январь]:[июнь]]) -> 51,802 ₽ | H48: =SUM(остаток[[#This Row],[январь]:[сентябрь]]) -> 131,704 ₽ | I48: =SUM(остаток[[#This Row],[январь]:[декабрь]]) -> 220,658 ₽ | J48: 0 | K48: ='12 мес'!I21 -> 145,617 | L48: =SUMIFS(работы[Затраты],работы[Адрес],"БПС д. 1",работы[Квартал],"1") -> 56,878 ₽ | M48: =SUMIFS(работы[Затраты],работы[Адрес],"БПС д. 1",работы[Квартал],"1")+SUMIFS(работы[Затраты],работы[Адрес],"БПС д. 1",работы[Квартал],"2") -> 57,894 ₽ | N48: =SUMIFS(работы[Затраты],работы[Адрес],"БПС д. 1",работы[Квартал],"1")+SUMIFS(работы[Затраты],работы[Адрес],"БПС д. 1",работы[Квартал],"2")+SUMIFS(работы[Затраты],работы[Адрес],"БПС д. 1",работы[Квартал],"3") -> 57,894 ₽ | O48: =SUMIFS(работы[Затраты],работы[Адрес],"БПС д. 1",работы[Квартал],"1")+SUMIFS(работы[Затраты],работы[Адрес],"БПС д. 1",работы[Квартал],"2")+SUMIFS(работы[Затраты],работы[Адрес],"БПС д. 1",работы[Квартал],"3")+SUMIFS(работы[Затраты],работы[Адрес],"БПС д. 1",работы[Квартал],"4") -> 84,831 ₽ | P48: 0.00 ₽ | Q48: 0.00 ₽ | R48: 14,103.48 ₽ | S48: 37,698.81 ₽ | T48: 28,112.30 ₽ | U48: 25,357.65 ₽ | V48: 26,431.41 ₽ | W48: 29,038.45 ₽ | X48: 30,137.61 ₽ | Y48: 29,777.80 ₽
A49: 48 | B49: БПС д. 3 | C49: 18,304.16 | D49: 0.00 | E49: =остаток[[#This Row],[Общеполезная жилая площадь, м²]]*остаток[[#This Row],[Тариф на текущий ремонт, руб/м²]]*12 -> 0 ₽ | F49: =SUM(остаток[[#This Row],[январь]:[март]]) -> 71,249 ₽ | G49: =SUM(остаток[[#This Row],[январь]:[июнь]]) -> 76,112 ₽ | H49: =SUM(остаток[[#This Row],[январь]:[сентябрь]]) -> 78,694 ₽ | I49: =SUM(остаток[[#This Row],[январь]:[декабрь]]) -> 87,196 ₽ | J49: 811,169 | K49: ='12 мес'!I71 -> 484,821 | L49: =SUMIFS(работы[Затраты],работы[Адрес],"БПС д. 3",работы[Квартал],"1") -> 79,970 ₽ | M49: =SUMIFS(работы[Затраты],работы[Адрес],"БПС д. 3",работы[Квартал],"1")+SUMIFS(работы[Затраты],работы[Адрес],"БПС д. 3",работы[Квартал],"2") -> 115,463 ₽ | N49: =SUMIFS(работы[Затраты],работы[Адрес],"БПС д. 3",работы[Квартал],"1")+SUMIFS(работы[Затраты],работы[Адрес],"БПС д. 3",работы[Квартал],"2")+SUMIFS(работы[Затраты],работы[Адрес],"БПС д. 3",работы[Квартал],"3") -> 375,474 ₽ | O49: =SUMIFS(работы[Затраты],работы[Адрес],"БПС д. 3",работы[Квартал],"1")+SUMIFS(работы[Затраты],работы[Адрес],"БПС д. 3",работы[Квартал],"2")+SUMIFS(работы[Затраты],работы[Адрес],"БПС д. 3",работы[Квартал],"3")+SUMIFS(работы[Затраты],работы[Адрес],"БПС д. 3",работы[Квартал],"4") -> 413,544 ₽ | P49: 57,483.97 ₽ | Q49: 10,061.22 ₽ | R49: 3,703.91 ₽ | S49: 4,863.21 ₽ | T49: 1,256.10 ₽ | U49: 373.27 ₽ | V49: 952.57 ₽ | W49: 5,999.88 ₽ | X49: 2,124.54 ₽ | Y49: 377.31 ₽
A50: 49 | B50: БПС д. 5 | C50: 2,557.00 | D50: 3.00 | E50: =остаток[[#This Row],[Общеполезная жилая площадь, м²]]*остаток[[#This Row],[Тариф на текущий ремонт, руб/м²]]*12 -> 92,052 ₽ | F50: =SUM(остаток[[#This Row],[январь]:[март]]) -> 21,143 ₽ | G50: =SUM(остаток[[#This Row],[январь]:[июнь]]) -> 36,939 ₽ | H50: =SUM(остаток[[#This Row],[январь]:[сентябрь]]) -> 61,093 ₽ | I50: =SUM(остаток[[#This Row],[январь]:[декабрь]]) -> 83,927 ₽ | J50: 187,249 | K50: ='12 мес'!I121 -> 195,433 | L50: =SUMIFS(работы[Затраты],работы[Адрес],"БПС д. 5",работы[Квартал],"1") -> 0 ₽ | M50: =SUMIFS(работы[Затраты],работы[Адрес],"БПС д. 5",работы[Квартал],"1")+SUMIFS(работы[Затраты],работы[Адрес],"БПС д. 5",работы[Квартал],"2") -> 994 ₽ | N50: =SUMIFS(работы[Затраты],работы[Адрес],"БПС д. 5",работы[Квартал],"1")+SUMIFS(работы[Затраты],работы[Адрес],"БПС д. 5",работы[Квартал],"2")+SUMIFS(работы[Затраты],работы[Адрес],"БПС д. 5",работы[Квартал],"3") -> 51,316 ₽ | O50: =SUMIFS(работы[Затраты],работы[Адрес],"БПС д. 5",работы[Квартал],"1")+SUMIFS(работы[Затраты],работы[Адрес],"БПС д. 5",работы[Квартал],"2")+SUMIFS(работы[Затраты],работы[Адрес],"БПС д. 5",работы[Квартал],"3")+SUMIFS(работы[Затраты],работы[Адрес],"БПС д. 5",работы[Квартал],"4") -> 90,246 ₽ | P50: 7,341.74 ₽ | Q50: 7,138.75 ₽ | R50: 6,662.10 ₽ | S50: 15,796.52 ₽ | T50: 8,555.60 ₽ | U50: 8,818.04 ₽ | V50: 6,780.66 ₽ | W50: 7,250.01 ₽ | X50: 8,226.30 ₽ | Y50: 7,357.54 ₽
A51: 50 | B51: Петуниной д. 1 | C51: 83.90 | D51: 5.50 | E51: =остаток[[#This Row],[Общеполезная жилая площадь, м²]]*остаток[[#This Row],[Тариф на текущий ремонт, руб/м²]]*12 -> 5,537 ₽ | F51: =SUM(остаток[[#This Row],[январь]:[март]]) -> 683 ₽ | G51: =SUM(остаток[[#This Row],[январь]:[июнь]]) -> 1,139 ₽ | H51: =SUM(остаток[[#This Row],[январь]:[сентябрь]]) -> 1,822 ₽ | I51: =SUM(остаток[[#This Row],[январь]:[декабрь]]) -> 2,505 ₽ | J51: 16,906 | K51: ='12 мес'!I2517 -> 19,411 | L51: =SUMIFS(работы[Затраты],работы[Адрес],"Петуниной д. 1",работы[Квартал],"1") -> 0 ₽ | M51: =SUMIFS(работы[Затраты],работы[Адрес],"Петуниной д. 1",работы[Квартал],"1")+SUMIFS(работы[Затраты],работы[Адрес],"Петуниной д. 1",работы[Квартал],"2") -> 0 ₽ | N51: =SUMIFS(работы[Затраты],работы[Адрес],"Петуниной д. 1",работы[Квартал],"1")+SUMIFS(работы[Затраты],работы[Адрес],"Петуниной д. 1",работы[Квартал],"2")+SUMIFS(работы[Затраты],работы[Адрес],"Петуниной д. 1",работы[Квартал],"3") -> 0 ₽ | O51: =SUMIFS(работы[Затраты],работы[Адрес],"Петуниной д. 1",работы[Квартал],"1")+SUMIFS(работы[Затраты],работы[Адрес],"Петуниной д. 1",работы[Квартал],"2")+SUMIFS(работы[Затраты],работы[Адрес],"Петуниной д. 1",работы[Квартал],"3")+SUMIFS(работы[Затраты],работы[Адрес],"Петуниной д. 1",работы[Квартал],"4") -> 0 ₽ | P51: 227.70 ₽ | Q51: 227.70 ₽ | R51: 227.70 ₽ | S51: 455.40 ₽ | T51: 455.40 ₽ | U51: 0.00 ₽ | V51: 227.70 ₽ | W51: 227.70 ₽ | X51: 227.70 ₽ | Y51: 227.70 ₽
A52: 51 | B52: Петуниной д. 2 | C52: 81.59 | D52: 5.50 | E52: =остаток[[#This Row],[Общеполезная жилая площадь, м²]]*остаток[[#This Row],[Тариф на текущий ремонт, руб/м²]]*12 -> 5,385 ₽ | F52: =SUM(остаток[[#This Row],[январь]:[март]]) -> 1,346 ₽ | G52: =SUM(остаток[[#This Row],[январь]:[июнь]]) -> 2,028 ₽ | H52: =SUM(остаток[[#This Row],[январь]:[сентябрь]]) -> 3,374 ₽ | I52: =SUM(остаток[[#This Row],[январь]:[декабрь]]) -> 4,720 ₽ | J52: 15,928 | K52: ='12 мес'!I2567 -> 20,648 | L52: =SUMIFS(работы[Затраты],работы[Адрес],"Петуниной д. 2",работы[Квартал],"1") -> 0 ₽ | M52: =SUMIFS(работы[Затраты],работы[Адрес],"Петуниной д. 2",работы[Квартал],"1")+SUMIFS(работы[Затраты],работы[Адрес],"Петуниной д. 2",работы[Квартал],"2") -> 0 ₽ | N52: =SUMIFS(работы[Затраты],работы[Адрес],"Петуниной д. 2",работы[Квартал],"1")+SUMIFS(работы[Затраты],работы[Адрес],"Петуниной д. 2",работы[Квартал],"2")+SUMIFS(работы[Затраты],работы[Адрес],"Петуниной д. 2",работы[Квартал],"3") -> 0 ₽ | O52: =SUMIFS(работы[Затраты],работы[Адрес],"Петуниной д. 2",работы[Квартал],"1")+SUMIFS(работы[Затраты],работы[Адрес],"Петуниной д. 2",работы[Квартал],"2")+SUMIFS(работы[Затраты],работы[Адрес],"Петуниной д. 2",работы[Квартал],"3")+SUMIFS(работы[Затраты],работы[Адрес],"Петуниной д. 2",работы[Квартал],"4") -> 0 ₽ | P52: 448.75 ₽ | Q52: 448.75 ₽ | R52: 448.75 ₽ | S52: 681.40 ₽ | T52: 448.75 ₽ | U52: 448.75 ₽ | V52: 448.75 ₽ | W52: 448.75 ₽ | X52: 448.75 ₽ | Y52: 448.75 ₽
A53: 52 | B53: Петуниной д. 3 | C53: 98.00 | D53: 5.50 | E53: =остаток[[#This Row],[Общеполезная жилая площадь, м²]]*остаток[[#This Row],[Тариф на текущий ремонт, руб/м²]]*12 -> 6,468 ₽ | F53: =SUM(остаток[[#This Row],[январь]:[март]]) -> 1,617 ₽ | G53: =SUM(остаток[[#This Row],[январь]:[июнь]]) -> 2,695 ₽ | H53: =SUM(остаток[[#This Row],[январь]:[сентябрь]]) -> 4,312 ₽ | I53: =SUM(остаток[[#This Row],[январь]:[декабрь]]) -> 5,929 ₽ | J53: 32,184 | K53: ='12 мес'!I2617 -> 38,113 | L53: =SUMIFS(работы[Затраты],работы[Адрес],"Петуниной д. 3",работы[Квартал],"1") -> 0 ₽ | M53: =SUMIFS(работы[Затраты],работы[Адрес],"Петуниной д. 3",работы[Квартал],"1")+SUMIFS(работы[Затраты],работы[Адрес],"Петуниной д. 3",работы[Квартал],"2") -> 0 ₽ | N53: =SUMIFS(работы[Затраты],работы[Адрес],"Петуниной д. 3",работы[Квартал],"1")+SUMIFS(работы[Затраты],работы[Адрес],"Петуниной д. 3",работы[Квартал],"2")+SUMIFS(работы[Затраты],работы[Адрес],"Петуниной д. 3",работы[Квартал],"3") -> 0 ₽ | O53: =SUMIFS(работы[Затраты],работы[Адрес],"Петуниной д. 3",работы[Квартал],"1")+SUMIFS(работы[Затраты],работы[Адрес],"Петуниной д. 3",работы[Квартал],"2")+SUMIFS(работы[Затраты],работы[Адрес],"Петуниной д. 3",работы[Квартал],"3")+SUMIFS(работы[Затраты],работы[Адрес],"Петуниной д. 3",работы[Квартал],"4") -> 0 ₽ | P53: 539.01 ₽ | Q53: 539.01 ₽ | R53: 539.01 ₽ | S53: 1,078.02 ₽ | T53: 539.01 ₽ | U53: 539.01 ₽ | V53: 539.01 ₽ | W53: 539.01 ₽ | X53: 268.02 ₽ | Y53: 810.00 ₽
A54: 53 | B54: Пионерская д. 1 | C54: 9,067.24 | D54: 5.50 | E54: =остаток[[#This Row],[Общеполезная жилая площадь, м²]]*остаток[[#This Row],[Тариф на текущий ремонт, руб/м²]]*12 -> 598,438 ₽ | F54: =SUM(остаток[[#This Row],[январь]:[март]]) -> 147,772 ₽ | G54: =SUM(остаток[[#This Row],[январь]:[июнь]]) -> 240,543 ₽ | H54: =SUM(остаток[[#This Row],[январь]:[сентябрь]]) -> 389,075 ₽ | I54: =SUM(остаток[[#This Row],[январь]:[декабрь]]) -> 543,486 ₽ | J54: 857,321 | K54: ='12 мес'!I2671 -> 971,542 | L54: =SUMIFS(работы[Затраты],работы[Адрес],"Пионерская д. 1",работы[Квартал],"1") -> 120,245 ₽ | M54: =SUMIFS(работы[Затраты],работы[Адрес],"Пионерская д. 1",работы[Квартал],"1")+SUMIFS(работы[Затраты],работы[Адрес],"Пионерская д. 1",работы[Квартал],"2") -> 142,710 ₽ | N54: =SUMIFS(работы[Затраты],работы[Адрес],"Пионерская д. 1",работы[Квартал],"1")+SUMIFS(работы[Затраты],работы[Адрес],"Пионерская д. 1",работы[Квартал],"2")+SUMIFS(работы[Затраты],работы[Адрес],"Пионерская д. 1",работы[Квартал],"3") -> 286,953 ₽ | O54: =SUMIFS(работы[Затраты],работы[Адрес],"Пионерская д. 1",работы[Квартал],"1")+SUMIFS(работы[Затраты],работы[Адрес],"Пионерская д. 1",работы[Квартал],"2")+SUMIFS(работы[Затраты],работы[Адрес],"Пионерская д. 1",работы[Квартал],"3")+SUMIFS(работы[Затраты],работы[Адрес],"Пионерская д. 1",работы[Квартал],"4") -> 700,239 ₽ | P54: 46,629.05 ₽ | Q54: 51,285.72 ₽ | R54: 49,857.31 ₽ | S54: 92,770.79 ₽ | T54: 48,216.12 ₽ | U54: 51,961.12 ₽ | V54: 48,355.38 ₽ | W54: 52,850.59 ₽ | X54: 50,823.70 ₽ | Y54: 50,736.36 ₽
A55: 54 | B55: Победы д. 1 | C55: 3,017.76 | D55: 5.50 | E55: =остаток[[#This Row],[Общеполезная жилая площадь, м²]]*остаток[[#This Row],[Тариф на текущий ремонт, руб/м²]]*12 -> 199,172 ₽ | F55: =SUM(остаток[[#This Row],[январь]:[март]]) -> 43,682 ₽ | G55: =SUM(остаток[[#This Row],[январь]:[июнь]]) -> 73,007 ₽ | H55: =SUM(остаток[[#This Row],[январь]:[сентябрь]]) -> 115,355 ₽ | I55: =SUM(остаток[[#This Row],[январь]:[декабрь]]) -> 163,153 ₽ | J55: 24,746 | K55: ='12 мес'!I2721 -> 71,681 | L55: =SUMIFS(работы[Затраты],работы[Адрес],"Победы д. 1",работы[Квартал],"1") -> 50,657 ₽ | M55: =SUMIFS(работы[Затраты],работы[Адрес],"Победы д. 1",работы[Квартал],"1")+SUMIFS(работы[Затраты],работы[Адрес],"Победы д. 1",работы[Квартал],"2") -> 50,657 ₽ | N55: =SUMIFS(работы[Затраты],работы[Адрес],"Победы д. 1",работы[Квартал],"1")+SUMIFS(работы[Затраты],работы[Адрес],"Победы д. 1",работы[Квартал],"2")+SUMIFS(работы[Затраты],работы[Адрес],"Победы д. 1",работы[Квартал],"3") -> 87,346 ₽ | O55: =SUMIFS(работы[Затраты],работы[Адрес],"Победы д. 1",работы[Квартал],"1")+SUMIFS(работы[Затраты],работы[Адрес],"Победы д. 1",работы[Квартал],"2")+SUMIFS(работы[Затраты],работы[Адрес],"Победы д. 1",работы[Квартал],"3")+SUMIFS(работы[Затраты],работы[Адрес],"Победы д. 1",работы[Квартал],"4") -> 131,781 ₽ | P55: 12,660.78 ₽ | Q55: 17,257.11 ₽ | R55: 13,764.11 ₽ | S55: 29,324.87 ₽ | T55: 14,757.57 ₽ | U55: 14,040.50 ₽ | V55: 13,549.87 ₽ | W55: 18,423.54 ₽ | X55: 14,405.46 ₽ | Y55: 14,969.00 ₽
A56: 55 | B56: Победы д. 3 | C56: 3,042.48 | D56: 5.50 | E56: =остаток[[#This Row],[Общеполезная жилая площадь, м²]]*остаток[[#This Row],[Тариф на текущий ремонт, руб/м²]]*12 -> 200,804 ₽ | F56: =SUM(остаток[[#This Row],[январь]:[март]]) -> 44,129 ₽ | G56: =SUM(остаток[[#This Row],[январь]:[июнь]]) -> 77,413 ₽ | H56: =SUM(остаток[[#This Row],[январь]:[сентябрь]]) -> 119,098 ₽ | I56: =SUM(остаток[[#This Row],[январь]:[декабрь]]) -> 163,111 ₽ | J56: 392,774 | K56: ='12 мес'!I2771 -> -100,795 | L56: =SUMIFS(работы[Затраты],работы[Адрес],"Победы д. 3",работы[Квартал],"1") -> 140,167 ₽ | M56: =SUMIFS(работы[Затраты],работы[Адрес],"Победы д. 3",работы[Квартал],"1")+SUMIFS(работы[Затраты],работы[Адрес],"Победы д. 3",работы[Квартал],"2") -> 254,055 ₽ | N56: =SUMIFS(работы[Затраты],работы[Адрес],"Победы д. 3",работы[Квартал],"1")+SUMIFS(работы[Затраты],работы[Адрес],"Победы д. 3",работы[Квартал],"2")+SUMIFS(работы[Затраты],работы[Адрес],"Победы д. 3",работы[Квартал],"3") -> 646,901 ₽ | O56: =SUMIFS(работы[Затраты],работы[Адрес],"Победы д. 3",работы[Квартал],"1")+SUMIFS(работы[Затраты],работы[Адрес],"Победы д. 3",работы[Квартал],"2")+SUMIFS(работы[Затраты],работы[Адрес],"Победы д. 3",работы[Квартал],"3")+SUMIFS(работы[Затраты],работы[Адрес],"Победы д. 3",работы[Квартал],"4") -> 676,934 ₽ | P56: 15,689.63 ₽ | Q56: 14,352.62 ₽ | R56: 14,086.28 ₽ | S56: 33,284.85 ₽ | T56: 15,075.87 ₽ | U56: 13,554.99 ₽ | V56: 13,053.51 ₽ | W56: 14,053.00 ₽ | X56: 14,299.30 ₽ | Y56: 15,660.97 ₽
A57: 56 | B57: Победы д. 4 | C57: 2,022.79 | D57: 5.50 | E57: =остаток[[#This Row],[Общеполезная жилая площадь, м²]]*остаток[[#This Row],[Тариф на текущий ремонт, руб/м²]]*12 -> 133,504 ₽ | F57: =SUM(остаток[[#This Row],[январь]:[март]]) -> 32,081 ₽ | G57: =SUM(остаток[[#This Row],[январь]:[июнь]]) -> 50,419 ₽ | H57: =SUM(остаток[[#This Row],[январь]:[сентябрь]]) -> 84,143 ₽ | I57: =SUM(остаток[[#This Row],[январь]:[декабрь]]) -> 116,248 ₽ | J57: 56,249 | K57: ='12 мес'!I2817 -> 41,549 | L57: =SUMIFS(работы[Затраты],работы[Адрес],"Победы д. 4",работы[Квартал],"1") -> 76,368 ₽ | M57: =SUMIFS(работы[Затраты],работы[Адрес],"Победы д. 4",работы[Квартал],"1")+SUMIFS(работы[Затраты],работы[Адрес],"Победы д. 4",работы[Квартал],"2") -> 76,368 ₽ | N57: =SUMIFS(работы[Затраты],работы[Адрес],"Победы д. 4",работы[Квартал],"1")+SUMIFS(работы[Затраты],работы[Адрес],"Победы д. 4",работы[Квартал],"2")+SUMIFS(работы[Затраты],работы[Адрес],"Победы д. 4",работы[Квартал],"3") -> 127,701 ₽ | O57: =SUMIFS(работы[Затраты],работы[Адрес],"Победы д. 4",работы[Квартал],"1")+SUMIFS(работы[Затраты],работы[Адрес],"Победы д. 4",работы[Квартал],"2")+SUMIFS(работы[Затраты],работы[Адрес],"Победы д. 4",работы[Квартал],"3")+SUMIFS(работы[Затраты],работы[Адрес],"Победы д. 4",работы[Квартал],"4") -> 130,948 ₽ | P57: 10,762.51 ₽ | Q57: 9,968.74 ₽ | R57: 11,349.60 ₽ | S57: 18,338.16 ₽ | T57: 11,779.57 ₽ | U57: 10,631.46 ₽ | V57: 11,312.64 ₽ | W57: 9,428.21 ₽ | X57: 12,197.68 ₽ | Y57: 10,479.49 ₽
A58: 57 | B58: Победы д. 5 | C58: 3,081.85 | D58: 5.50 | E58: =остаток[[#This Row],[Общеполезная жилая площадь, м²]]*остаток[[#This Row],[Тариф на текущий ремонт, руб/м²]]*12 -> 203,402 ₽ | F58: =SUM(остаток[[#This Row],[январь]:[март]]) -> 42,706 ₽ | G58: =SUM(остаток[[#This Row],[январь]:[июнь]]) -> 70,821 ₽ | H58: =SUM(остаток[[#This Row],[январь]:[сентябрь]]) -> 115,347 ₽ | I58: =SUM(остаток[[#This Row],[январь]:[декабрь]]) -> 157,837 ₽ | J58: 263,581 | K58: ='12 мес'!I2871 -> 122,801 | L58: =SUMIFS(работы[Затраты],работы[Адрес],"Победы д. 5",работы[Квартал],"1") -> 23,083 ₽ | M58: =SUMIFS(работы[Затраты],работы[Адрес],"Победы д. 5",работы[Квартал],"1")+SUMIFS(работы[Затраты],работы[Адрес],"Победы д. 5",работы[Квартал],"2") -> 183,051 ₽ | N58: =SUMIFS(работы[Затраты],работы[Адрес],"Победы д. 5",работы[Квартал],"1")+SUMIFS(работы[Затраты],работы[Адрес],"Победы д. 5",работы[Квартал],"2")+SUMIFS(работы[Затраты],работы[Адрес],"Победы д. 5",работы[Квартал],"3") -> 264,044 ₽ | O58: =SUMIFS(работы[Затраты],работы[Адрес],"Победы д. 5",работы[Квартал],"1")+SUMIFS(работы[Затраты],работы[Адрес],"Победы д. 5",работы[Квартал],"2")+SUMIFS(работы[Затраты],работы[Адрес],"Победы д. 5",работы[Квартал],"3")+SUMIFS(работы[Затраты],работы[Адрес],"Победы д. 5",работы[Квартал],"4") -> 314,699 ₽ | P58: 14,615.83 ₽ | Q58: 14,118.93 ₽ | R58: 13,971.41 ₽ | S58: 28,114.57 ₽ | T58: 14,270.86 ₽ | U58: 16,718.22 ₽ | V58: 13,537.19 ₽ | W58: 12,502.51 ₽ | X58: 14,851.46 ₽ | Y58: 15,135.95 ₽
A59: 58 | B59: Победы д. 7 | C59: 3,139.59 | D59: 5.50 | E59: =остаток[[#This Row],[Общеполезная жилая площадь, м²]]*остаток[[#This Row],[Тариф на текущий ремонт, руб/м²]]*12 -> 207,213 ₽ | F59: =SUM(остаток[[#This Row],[январь]:[март]]) -> 57,280 ₽ | G59: =SUM(остаток[[#This Row],[январь]:[июнь]]) -> 86,400 ₽ | H59: =SUM(остаток[[#This Row],[январь]:[сентябрь]]) -> 133,512 ₽ | I59: =SUM(остаток[[#This Row],[январь]:[декабрь]]) -> 183,694 ₽ | J59: 41,781 | K59: ='12 мес'!I2921 -> 148,866 | L59: =SUMIFS(работы[Затраты],работы[Адрес],"Победы д. 7",работы[Квартал],"1") -> 24,427 ₽ | M59: =SUMIFS(работы[Затраты],работы[Адрес],"Победы д. 7",работы[Квартал],"1")+SUMIFS(работы[Затраты],работы[Адрес],"Победы д. 7",работы[Квартал],"2") -> 61,943 ₽ | N59: =SUMIFS(работы[Затраты],работы[Адрес],"Победы д. 7",работы[Квартал],"1")+SUMIFS(работы[Затраты],работы[Адрес],"Победы д. 7",работы[Квартал],"2")+SUMIFS(работы[Затраты],работы[Адрес],"Победы д. 7",работы[Квартал],"3") -> 76,006 ₽ | O59: =SUMIFS(работы[Затраты],работы[Адрес],"Победы д. 7",работы[Квартал],"1")+SUMIFS(работы[Затраты],работы[Адрес],"Победы д. 7",работы[Квартал],"2")+SUMIFS(работы[Затраты],работы[Адрес],"Победы д. 7",работы[Квартал],"3")+SUMIFS(работы[Затраты],работы[Адрес],"Победы д. 7",работы[Квартал],"4") -> 91,265 ₽ | P59: 14,928.38 ₽ | Q59: 17,651.13 ₽ | R59: 24,700.05 ₽ | S59: 29,120.87 ₽ | T59: 16,780.65 ₽ | U59: 15,814.34 ₽ | V59: 14,517.05 ₽ | W59: 14,834.37 ₽ | X59: 16,605.01 ₽ | Y59: 18,742.16 ₽
A60: 59 | B60: Победы д. 9 | C60: 3,479.90 | D60: 5.50 | E60: =остаток[[#This Row],[Общеполезная жилая площадь, м²]]*остаток[[#This Row],[Тариф на текущий ремонт, руб/м²]]*12 -> 229,673 ₽ | F60: =SUM(остаток[[#This Row],[январь]:[март]]) -> 59,581 ₽ | G60: =SUM(остаток[[#This Row],[январь]:[июнь]]) -> 100,485 ₽ | H60: =SUM(остаток[[#This Row],[январь]:[сентябрь]]) -> 162,004 ₽ | I60: =SUM(остаток[[#This Row],[январь]:[декабрь]]) -> 214,947 ₽ | J60: 643,774 | K60: ='12 мес'!I2967 -> 827,721 | L60: =SUMIFS(работы[Затраты],работы[Адрес],"Победы д. 9",работы[Квартал],"1") -> 0 ₽ | M60: =SUMIFS(работы[Затраты],работы[Адрес],"Победы д. 9",работы[Квартал],"1")+SUMIFS(работы[Затраты],работы[Адрес],"Победы д. 9",работы[Квартал],"2") -> 25,971 ₽ | N60: =SUMIFS(работы[Затраты],работы[Адрес],"Победы д. 9",работы[Квартал],"1")+SUMIFS(работы[Затраты],работы[Адрес],"Победы д. 9",работы[Квартал],"2")+SUMIFS(работы[Затраты],работы[Адрес],"Победы д. 9",работы[Квартал],"3") -> 27,971 ₽ | O60: =SUMIFS(работы[Затраты],работы[Адрес],"Победы д. 9",работы[Квартал],"1")+SUMIFS(работы[Затраты],работы[Адрес],"Победы д. 9",работы[Квартал],"2")+SUMIFS(работы[Затраты],работы[Адрес],"Победы д. 9",работы[Квартал],"3")+SUMIFS(работы[Затраты],работы[Адрес],"Победы д. 9",работы[Квартал],"4") -> 31,000 ₽ | P60: 22,651.16 ₽ | Q60: 21,281.19 ₽ | R60: 15,649.01 ₽ | S60: 40,903.22 ₽ | T60: 18,853.59 ₽ | U60: 22,888.38 ₽ | V60: 19,777.74 ₽ | W60: 17,099.52 ₽ | X60: 17,006.77 ₽ | Y60: 18,836.71 ₽
A61: 60 | B61: Победы д. 11 | C61: 2,454.47 | D61: 5.50 | E61: =остаток[[#This Row],[Общеполезная жилая площадь, м²]]*остаток[[#This Row],[Тариф на текущий ремонт, руб/м²]]*12 -> 161,995 ₽ | F61: =SUM(остаток[[#This Row],[январь]:[март]]) -> 35,908 ₽ | G61: =SUM(остаток[[#This Row],[январь]:[июнь]]) -> 58,692 ₽ | H61: =SUM(остаток[[#This Row],[январь]:[сентябрь]]) -> 97,847 ₽ | I61: =SUM(остаток[[#This Row],[январь]:[декабрь]]) -> 131,629 ₽ | J61: 342,432 | K61: ='12 мес'!I3021 -> 409,156 | L61: =SUMIFS(работы[Затраты],работы[Адрес],"Победы д. 11",работы[Квартал],"1") -> 49,198 ₽ | M61: =SUMIFS(работы[Затраты],работы[Адрес],"Победы д. 11",работы[Квартал],"1")+SUMIFS(работы[Затраты],работы[Адрес],"Победы д. 11",работы[Квартал],"2") -> 74,771 ₽ | N61: =SUMIFS(работы[Затраты],работы[Адрес],"Победы д. 11",работы[Квартал],"1")+SUMIFS(работы[Затраты],работы[Адрес],"Победы д. 11",работы[Квартал],"2")+SUMIFS(работы[Затраты],работы[Адрес],"Победы д. 11",работы[Квартал],"3") -> 111,015 ₽ | O61: =SUMIFS(работы[Затраты],работы[Адрес],"Победы д. 11",работы[Квартал],"1")+SUMIFS(работы[Затраты],работы[Адрес],"Победы д. 11",работы[Квартал],"2")+SUMIFS(работы[Затраты],работы[Адрес],"Победы д. 11",работы[Квартал],"3")+SUMIFS(работы[Затраты],работы[Адрес],"Победы д. 11",работы[Квартал],"4") -> 117,426 ₽ | P61: 13,822.32 ₽ | Q61: 11,244.35 ₽ | R61: 10,841.04 ₽ | S61: 22,784.58 ₽ | T61: 11,402.17 ₽ | U61: 13,136.00 ₽ | V61: 14,616.93 ₽ | W61: 11,594.98 ₽ | X61: 9,362.84 ₽ | Y61: 12,824.10 ₽
A62: 61 | B62: Победы д. 13 | C62: 730.35 | D62: 5.50 | E62: =остаток[[#This Row],[Общеполезная жилая площадь, м²]]*остаток[[#This Row],[Тариф на текущий ремонт, руб/м²]]*12 -> 48,203 ₽ | F62: =SUM(остаток[[#This Row],[январь]:[март]]) -> 11,436 ₽ | G62: =SUM(остаток[[#This Row],[январь]:[июнь]]) -> 17,366 ₽ | H62: =SUM(остаток[[#This Row],[январь]:[сентябрь]]) -> 28,248 ₽ | I62: =SUM(остаток[[#This Row],[январь]:[декабрь]]) -> 41,457 ₽ | J62: -24,231 | K62: ='12 мес'!I3067 -> 7,698 | L62: =SUMIFS(работы[Затраты],работы[Адрес],"Победы д. 13",работы[Квартал],"1") -> 2,360 ₽ | M62: =SUMIFS(работы[Затраты],работы[Адрес],"Победы д. 13",работы[Квартал],"1")+SUMIFS(работы[Затраты],работы[Адрес],"Победы д. 13",работы[Квартал],"2") -> 4,051 ₽ | N62: =SUMIFS(работы[Затраты],работы[Адрес],"Победы д. 13",работы[Квартал],"1")+SUMIFS(работы[Затраты],работы[Адрес],"Победы д. 13",работы[Квартал],"2")+SUMIFS(работы[Затраты],работы[Адрес],"Победы д. 13",работы[Квартал],"3") -> 4,051 ₽ | O62: =SUMIFS(работы[Затраты],работы[Адрес],"Победы д. 13",работы[Квартал],"1")+SUMIFS(работы[Затраты],работы[Адрес],"Победы д. 13",работы[Квартал],"2")+SUMIFS(работы[Затраты],работы[Адрес],"Победы д. 13",работы[Квартал],"3")+SUMIFS(работы[Затраты],работы[Адрес],"Победы д. 13",работы[Квартал],"4") -> 9,528 ₽ | P62: 4,005.80 ₽ | Q62: 3,881.57 ₽ | R62: 3,549.08 ₽ | S62: 5,929.22 ₽ | T62: 3,857.83 ₽ | U62: 3,475.61 ₽ | V62: 3,548.80 ₽ | W62: 4,852.81 ₽ | X62: 4,724.47 ₽ | Y62: 3,632.26 ₽
A63: 62 | B63: Победы д. 14 | C63: 3,858.53 | D63: 5.50 | E63: =остаток[[#This Row],[Общеполезная жилая площадь, м²]]*остаток[[#This Row],[Тариф на текущий ремонт, руб/м²]]*12 -> 254,663 ₽ | F63: =SUM(остаток[[#This Row],[январь]:[март]]) -> 60,308 ₽ | G63: =SUM(остаток[[#This Row],[январь]:[июнь]]) -> 98,445 ₽ | H63: =SUM(остаток[[#This Row],[январь]:[сентябрь]]) -> 154,471 ₽ | I63: =SUM(остаток[[#This Row],[январь]:[декабрь]]) -> 208,200 ₽ | J63: 266,547 | K63: ='12 мес'!I3121 -> 204,339 | L63: =SUMIFS(работы[Затраты],работы[Адрес],"Победы д. 14",работы[Квартал],"1") -> 162,913 ₽ | M63: =SUMIFS(работы[Затраты],работы[Адрес],"Победы д. 14",работы[Квартал],"1")+SUMIFS(работы[Затраты],работы[Адрес],"Победы д. 14",работы[Квартал],"2") -> 371,051 ₽ | N63: =SUMIFS(работы[Затраты],работы[Адрес],"Победы д. 14",работы[Квартал],"1")+SUMIFS(работы[Затраты],работы[Адрес],"Победы д. 14",работы[Квартал],"2")+SUMIFS(работы[Затраты],работы[Адрес],"Победы д. 14",работы[Квартал],"3") -> 412,282 ₽ | O63: =SUMIFS(работы[Затраты],работы[Адрес],"Победы д. 14",работы[Квартал],"1")+SUMIFS(работы[Затраты],работы[Адрес],"Победы д. 14",работы[Квартал],"2")+SUMIFS(работы[Затраты],работы[Адрес],"Победы д. 14",работы[Квартал],"3")+SUMIFS(работы[Затраты],работы[Адрес],"Победы д. 14",работы[Квартал],"4") -> 416,438 ₽ | P63: 22,237.11 ₽ | Q63: 19,704.95 ₽ | R63: 18,365.67 ₽ | S63: 38,137.20 ₽ | T63: 21,674.33 ₽ | U63: 17,719.63 ₽ | V63: 16,631.72 ₽ | W63: 17,870.85 ₽ | X63: 17,892.40 ₽ | Y63: 17,966.02 ₽
A64: 63 | B64: Победы д. 15 | C64: 420.52 | D64: 5.50 | E64: =остаток[[#This Row],[Общеполезная жилая площадь, м²]]*остаток[[#This Row],[Тариф на текущий ремонт, руб/м²]]*12 -> 27,754 ₽ | F64: =SUM(остаток[[#This Row],[январь]:[март]]) -> 6,963 ₽ | G64: =SUM(остаток[[#This Row],[январь]:[июнь]]) -> 11,353 ₽ | H64: =SUM(остаток[[#This Row],[январь]:[сентябрь]]) -> 18,699 ₽ | I64: =SUM(остаток[[#This Row],[январь]:[декабрь]]) -> 25,285 ₽ | J64: 55,967 | K64: ='12 мес'!I3167 -> 81,252 | L64: =SUMIFS(работы[Затраты],работы[Адрес],"Победы д. 15",работы[Квартал],"1") -> 0 ₽ | M64: =SUMIFS(работы[Затраты],работы[Адрес],"Победы д. 15",работы[Квартал],"1")+SUMIFS(работы[Затраты],работы[Адрес],"Победы д. 15",работы[Квартал],"2") -> 0 ₽ | N64: =SUMIFS(работы[Затраты],работы[Адрес],"Победы д. 15",работы[Квартал],"1")+SUMIFS(работы[Затраты],работы[Адрес],"Победы д. 15",работы[Квартал],"2")+SUMIFS(работы[Затраты],работы[Адрес],"Победы д. 15",работы[Квартал],"3") -> 0 ₽ | O64: =SUMIFS(работы[Затраты],работы[Адрес],"Победы д. 15",работы[Квартал],"1")+SUMIFS(работы[Затраты],работы[Адрес],"Победы д. 15",работы[Квартал],"2")+SUMIFS(работы[Затраты],работы[Адрес],"Победы д. 15",работы[Квартал],"3")+SUMIFS(работы[Затраты],работы[Адрес],"Победы д. 15",работы[Квартал],"4") -> 0 ₽ | P64: 2,843.49 ₽ | Q64: 2,022.60 ₽ | R64: 2,096.78 ₽ | S64: 4,390.59 ₽ | T64: 3,126.20 ₽ | U64: 2,218.08 ₽ | V64: 2,001.17 ₽ | W64: 2,421.01 ₽ | X64: 2,135.53 ₽ | Y64: 2,030.02 ₽
A65: 64 | B65: Победы д. 17 | C65: 624.82 | D65: 5.50 | E65: =остаток[[#This Row],[Общеполезная жилая площадь, м²]]*остаток[[#This Row],[Тариф на текущий ремонт, руб/м²]]*12 -> 41,238 ₽ | F65: =SUM(остаток[[#This Row],[январь]:[март]]) -> 10,199 ₽ | G65: =SUM(остаток[[#This Row],[январь]:[июнь]]) -> 16,328 ₽ | H65: =SUM(остаток[[#This Row],[январь]:[сентябрь]]) -> 27,150 ₽ | I65: =SUM(остаток[[#This Row],[январь]:[декабрь]]) -> 36,488 ₽ | J65: 86,908 | K65: ='12 мес'!I3217 -> 105,103 | L65: =SUMIFS(работы[Затраты],работы[Адрес],"Победы д. 17",работы[Квартал],"1") -> 10,023 ₽ | M65: =SUMIFS(работы[Затраты],работы[Адрес],"Победы д. 17",работы[Квартал],"1")+SUMIFS(работы[Затраты],работы[Адрес],"Победы д. 17",работы[Квартал],"2") -> 18,293 ₽ | N65: =SUMIFS(работы[Затраты],работы[Адрес],"Победы д. 17",работы[Квартал],"1")+SUMIFS(работы[Затраты],работы[Адрес],"Победы д. 17",работы[Квартал],"2")+SUMIFS(работы[Затраты],работы[Адрес],"Победы д. 17",работы[Квартал],"3") -> 18,293 ₽ | O65: =SUMIFS(работы[Затраты],работы[Адрес],"Победы д. 17",работы[Квартал],"1")+SUMIFS(работы[Затраты],работы[Адрес],"Победы д. 17",работы[Квартал],"2")+SUMIFS(работы[Затраты],работы[Адрес],"Победы д. 17",работы[Квартал],"3")+SUMIFS(работы[Затраты],работы[Адрес],"Победы д. 17",работы[Квартал],"4") -> 18,293 ₽ | P65: 3,912.60 ₽ | Q65: 3,049.16 ₽ | R65: 3,236.95 ₽ | S65: 6,129.09 ₽ | T65: 3,124.25 ₽ | U65: 4,338.18 ₽ | V65: 3,359.88 ₽ | W65: 3,275.14 ₽ | X65: 3,049.44 ₽ | Y65: 3,012.82 ₽
A66: 65 | B66: Победы д. 19 | C66: 415.40 | D66: 5.50 | E66: =остаток[[#This Row],[Общеполезная жилая площадь, м²]]*остаток[[#This Row],[Тариф на текущий ремонт, руб/м²]]*12 -> 27,416 ₽ | F66: =SUM(остаток[[#This Row],[январь]:[март]]) -> 6,592 ₽ | G66: =SUM(остаток[[#This Row],[январь]:[июнь]]) -> 11,424 ₽ | H66: =SUM(остаток[[#This Row],[январь]:[сентябрь]]) -> 17,818 ₽ | I66: =SUM(остаток[[#This Row],[январь]:[декабрь]]) -> 24,869 ₽ | J66: 144,900 | K66: ='12 мес'!I3267 -> 110,948 | L66: =SUMIFS(работы[Затраты],работы[Адрес],"Победы д. 19",работы[Квартал],"1") -> 0 ₽ | M66: =SUMIFS(работы[Затраты],работы[Адрес],"Победы д. 19",работы[Квартал],"1")+SUMIFS(работы[Затраты],работы[Адрес],"Победы д. 19",работы[Квартал],"2") -> 58,821 ₽ | N66: =SUMIFS(работы[Затраты],работы[Адрес],"Победы д. 19",работы[Квартал],"1")+SUMIFS(работы[Затраты],работы[Адрес],"Победы д. 19",работы[Квартал],"2")+SUMIFS(работы[Затраты],работы[Адрес],"Победы д. 19",работы[Квартал],"3") -> 58,821 ₽ | O66: =SUMIFS(работы[Затраты],работы[Адрес],"Победы д. 19",работы[Квартал],"1")+SUMIFS(работы[Затраты],работы[Адрес],"Победы д. 19",работы[Квартал],"2")+SUMIFS(работы[Затраты],работы[Адрес],"Победы д. 19",работы[Квартал],"3")+SUMIFS(работы[Затраты],работы[Адрес],"Победы д. 19",работы[Квартал],"4") -> 58,821 ₽ | P66: 2,022.35 ₽ | Q66: 2,547.05 ₽ | R66: 2,022.35 ₽ | S66: 4,831.75 ₽ | T66: 1,756.70 ₽ | U66: 2,558.49 ₽ | V66: 2,079.40 ₽ | W66: 2,744.21 ₽ | X66: 2,284.70 ₽ | Y66: 2,022.35 ₽
A67: 66 | B67: Победы д. 21 | C67: 700.60 | D67: 5.50 | E67: =остаток[[#This Row],[Общеполезная жилая площадь, м²]]*остаток[[#This Row],[Тариф на текущий ремонт, руб/м²]]*12 -> 46,240 ₽ | F67: =SUM(остаток[[#This Row],[январь]:[март]]) -> 11,404 ₽ | G67: =SUM(остаток[[#This Row],[январь]:[июнь]]) -> 17,984 ₽ | H67: =SUM(остаток[[#This Row],[январь]:[сентябрь]]) -> 28,619 ₽ | I67: =SUM(остаток[[#This Row],[январь]:[декабрь]]) -> 49,855 ₽ | J67: 80,656 | K67: ='12 мес'!I3317 -> 61,914 | L67: =SUMIFS(работы[Затраты],работы[Адрес],"Победы д. 21",работы[Квартал],"1") -> 0 ₽ | M67: =SUMIFS(работы[Затраты],работы[Адрес],"Победы д. 21",работы[Квартал],"1")+SUMIFS(работы[Затраты],работы[Адрес],"Победы д. 21",работы[Квартал],"2") -> 32,949 ₽ | N67: =SUMIFS(работы[Затраты],работы[Адрес],"Победы д. 21",работы[Квартал],"1")+SUMIFS(работы[Затраты],работы[Адрес],"Победы д. 21",работы[Квартал],"2")+SUMIFS(работы[Затраты],работы[Адрес],"Победы д. 21",работы[Квартал],"3") -> 68,597 ₽ | O67: =SUMIFS(работы[Затраты],работы[Адрес],"Победы д. 21",работы[Квартал],"1")+SUMIFS(работы[Затраты],работы[Адрес],"Победы д. 21",работы[Квартал],"2")+SUMIFS(работы[Затраты],работы[Адрес],"Победы д. 21",работы[Квартал],"3")+SUMIFS(работы[Затраты],работы[Адрес],"Победы д. 21",работы[Квартал],"4") -> 68,597 ₽ | P67: 3,406.73 ₽ | Q67: 3,704.37 ₽ | R67: 4,293.06 ₽ | S67: 6,579.47 ₽ | T67: 4,171.92 ₽ | U67: 3,773.98 ₽ | V67: 2,689.23 ₽ | W67: 5,402.50 ₽ | X67: 11,715.18 ₽ | Y67: 4,118.43 ₽
A68: 67 | B68: Победы д. 23 | C68: 709.90 | D68: 5.50 | E68: =остаток[[#This Row],[Общеполезная жилая площадь, м²]]*остаток[[#This Row],[Тариф на текущий ремонт, руб/м²]]*12 -> 46,853 ₽ | F68: =SUM(остаток[[#This Row],[январь]:[март]]) -> 14,937 ₽ | G68: =SUM(остаток[[#This Row],[январь]:[июнь]]) -> 23,956 ₽ | H68: =SUM(остаток[[#This Row],[январь]:[сентябрь]]) -> 35,082 ₽ | I68: =SUM(остаток[[#This Row],[январь]:[декабрь]]) -> 46,657 ₽ | J68: 47,130 | K68: ='12 мес'!I3367 -> 72,786 | L68: =SUMIFS(работы[Затраты],работы[Адрес],"Победы д. 23",работы[Квартал],"1") -> 5,519 ₽ | M68: =SUMIFS(работы[Затраты],работы[Адрес],"Победы д. 23",работы[Квартал],"1")+SUMIFS(работы[Затраты],работы[Адрес],"Победы д. 23",работы[Квартал],"2") -> 7,961 ₽ | N68: =SUMIFS(работы[Затраты],работы[Адрес],"Победы д. 23",работы[Квартал],"1")+SUMIFS(работы[Затраты],работы[Адрес],"Победы д. 23",работы[Квартал],"2")+SUMIFS(работы[Затраты],работы[Адрес],"Победы д. 23",работы[Квартал],"3") -> 21,001 ₽ | O68: =SUMIFS(работы[Затраты],работы[Адрес],"Победы д. 23",работы[Квартал],"1")+SUMIFS(работы[Затраты],работы[Адрес],"Победы д. 23",работы[Квартал],"2")+SUMIFS(работы[Затраты],работы[Адрес],"Победы д. 23",работы[Квартал],"3")+SUMIFS(работы[Затраты],работы[Адрес],"Победы д. 23",работы[Квартал],"4") -> 21,001 ₽ | P68: 4,754.73 ₽ | Q68: 6,735.22 ₽ | R68: 3,447.40 ₽ | S68: 9,018.21 ₽ | T68: 3,883.55 ₽ | U68: 3,599.75 ₽ | V68: 3,642.97 ₽ | W68: 3,717.17 ₽ | X68: 3,415.56 ₽ | Y68: 4,442.66 ₽
A69: 68 | B69: Победы д. 25 | C69: 372.00 | D69: 5.50 | E69: =остаток[[#This Row],[Общеполезная жилая площадь, м²]]*остаток[[#This Row],[Тариф на текущий ремонт, руб/м²]]*12 -> 24,552 ₽ | F69: =SUM(остаток[[#This Row],[январь]:[март]]) -> 6,644 ₽ | G69: =SUM(остаток[[#This Row],[январь]:[июнь]]) -> 10,492 ₽ | H69: =SUM(остаток[[#This Row],[январь]:[сентябрь]]) -> 16,895 ₽ | I69: =SUM(остаток[[#This Row],[январь]:[декабрь]]) -> 22,618 ₽ | J69: 92,445 | K69: ='12 мес'!I3417 -> -65,697 | L69: =SUMIFS(работы[Затраты],работы[Адрес],"Победы д. 25",работы[Квартал],"1") -> 3,157 ₽ | M69: =SUMIFS(работы[Затраты],работы[Адрес],"Победы д. 25",работы[Квартал],"1")+SUMIFS(работы[Затраты],работы[Адрес],"Победы д. 25",работы[Квартал],"2") -> 3,157 ₽ | N69: =SUMIFS(работы[Затраты],работы[Адрес],"Победы д. 25",работы[Квартал],"1")+SUMIFS(работы[Затраты],работы[Адрес],"Победы д. 25",работы[Квартал],"2")+SUMIFS(работы[Затраты],работы[Адрес],"Победы д. 25",работы[Квартал],"3") -> 3,157 ₽ | O69: =SUMIFS(работы[Затраты],работы[Адрес],"Победы д. 25",работы[Квартал],"1")+SUMIFS(работы[Затраты],работы[Адрес],"Победы д. 25",работы[Квартал],"2")+SUMIFS(работы[Затраты],работы[Адрес],"Победы д. 25",работы[Квартал],"3")+SUMIFS(работы[Затраты],работы[Адрес],"Победы д. 25",работы[Квартал],"4") -> 180,760 ₽ | P69: 1,827.69 ₽ | Q69: 2,514.27 ₽ | R69: 2,301.72 ₽ | S69: 3,847.83 ₽ | T69: 2,706.61 ₽ | U69: 1,441.03 ₽ | V69: 2,255.49 ₽ | W69: 2,052.93 ₽ | X69: 1,321.67 ₽ | Y69: 2,348.59 ₽
A70: 69 | B70: Победы д. 27 | C70: 714.12 | D70: 5.50 | E70: =остаток[[#This Row],[Общеполезная жилая площадь, м²]]*остаток[[#This Row],[Тариф на текущий ремонт, руб/м²]]*12 -> 47,132 ₽ | F70: =SUM(остаток[[#This Row],[январь]:[март]]) -> 9,257 ₽ | G70: =SUM(остаток[[#This Row],[январь]:[июнь]]) -> 16,898 ₽ | H70: =SUM(остаток[[#This Row],[январь]:[сентябрь]]) -> 26,469 ₽ | I70: =SUM(остаток[[#This Row],[январь]:[декабрь]]) -> 37,791 ₽ | J70: -61,674 | K70: ='12 мес'!I3467 -> -51,253 | L70: =SUMIFS(работы[Затраты],работы[Адрес],"Победы д. 27",работы[Квартал],"1") -> 3,873 ₽ | M70: =SUMIFS(работы[Затраты],работы[Адрес],"Победы д. 27",работы[Квартал],"1")+SUMIFS(работы[Затраты],работы[Адрес],"Победы д. 27",работы[Квартал],"2") -> 6,831 ₽ | N70: =SUMIFS(работы[Затраты],работы[Адрес],"Победы д. 27",работы[Квартал],"1")+SUMIFS(работы[Затраты],работы[Адрес],"Победы д. 27",работы[Квартал],"2")+SUMIFS(работы[Затраты],работы[Адрес],"Победы д. 27",работы[Квартал],"3") -> 19,076 ₽ | O70: =SUMIFS(работы[Затраты],работы[Адрес],"Победы д. 27",работы[Квартал],"1")+SUMIFS(работы[Затраты],работы[Адрес],"Победы д. 27",работы[Квартал],"2")+SUMIFS(работы[Затраты],работы[Адрес],"Победы д. 27",работы[Квартал],"3")+SUMIFS(работы[Затраты],работы[Адрес],"Победы д. 27",работы[Квартал],"4") -> 27,370 ₽ | P70: 3,148.20 ₽ | Q70: 2,778.28 ₽ | R70: 3,330.98 ₽ | S70: 7,640.43 ₽ | T70: 3,325.48 ₽ | U70: 3,581.17 ₽ | V70: 2,664.87 ₽ | W70: 3,893.31 ₽ | X70: 4,372.89 ₽ | Y70: 3,055.64 ₽
A71: 70 | B71: Победы д. 40 | C71: 265.90 | D71: 5.50 | E71: =остаток[[#This Row],[Общеполезная жилая площадь, м²]]*остаток[[#This Row],[Тариф на текущий ремонт, руб/м²]]*12 -> 17,549 ₽ | F71: =SUM(остаток[[#This Row],[январь]:[март]]) -> 3,794 ₽ | G71: =SUM(остаток[[#This Row],[январь]:[июнь]]) -> 6,949 ₽ | H71: =SUM(остаток[[#This Row],[январь]:[сентябрь]]) -> 11,228 ₽ | I71: =SUM(остаток[[#This Row],[январь]:[декабрь]]) -> 14,839 ₽ | J71: 22,874 | K71: ='12 мес'!I3517 -> 34,642 | L71: =SUMIFS(работы[Затраты],работы[Адрес],"Победы д. 40",работы[Квартал],"1") -> 0 ₽ | M71: =SUMIFS(работы[Затраты],работы[Адрес],"Победы д. 40",работы[Квартал],"1")+SUMIFS(работы[Затраты],работы[Адрес],"Победы д. 40",работы[Квартал],"2") -> 0 ₽ | N71: =SUMIFS(работы[Затраты],работы[Адрес],"Победы д. 40",работы[Квартал],"1")+SUMIFS(работы[Затраты],работы[Адрес],"Победы д. 40",работы[Квартал],"2")+SUMIFS(работы[Затраты],работы[Адрес],"Победы д. 40",работы[Квартал],"3") -> 0 ₽ | O71: =SUMIFS(работы[Затраты],работы[Адрес],"Победы д. 40",работы[Квартал],"1")+SUMIFS(работы[Затраты],работы[Адрес],"Победы д. 40",работы[Квартал],"2")+SUMIFS(работы[Затраты],работы[Адрес],"Победы д. 40",работы[Квартал],"3")+SUMIFS(работы[Затраты],работы[Адрес],"Победы д. 40",работы[Квартал],"4") -> 3,071 ₽ | P71: 911.78 ₽ | Q71: 1,381.43 ₽ | R71: 1,500.84 ₽ | S71: 3,154.51 ₽ | T71: 1,341.21 ₽ | U71: 1,619.68 ₽ | V71: 1,318.75 ₽ | W71: 1,264.82 ₽ | X71: 837.57 ₽ | Y71: 1,508.70 ₽
A72: 71 | B72: Северная д. 15 | C72: 4,588.08 | D72: 5.50 | E72: =остаток[[#This Row],[Общеполезная жилая площадь, м²]]*остаток[[#This Row],[Тариф на текущий ремонт, руб/м²]]*12 -> 302,813 ₽ | F72: =SUM(остаток[[#This Row],[январь]:[март]]) -> 68,254 ₽ | G72: =SUM(остаток[[#This Row],[январь]:[июнь]]) -> 112,908 ₽ | H72: =SUM(остаток[[#This Row],[январь]:[сентябрь]]) -> 194,723 ₽ | I72: =SUM(остаток[[#This Row],[январь]:[декабрь]]) -> 272,551 ₽ | J72: 216,518 | K72: ='12 мес'!I3567 -> 195,757 | L72: =SUMIFS(работы[Затраты],работы[Адрес],"Северная д. 15",работы[Квартал],"1") -> 7,996 ₽ | M72: =SUMIFS(работы[Затраты],работы[Адрес],"Северная д. 15",работы[Квартал],"1")+SUMIFS(работы[Затраты],работы[Адрес],"Северная д. 15",работы[Квартал],"2") -> 18,577 ₽ | N72: =SUMIFS(работы[Затраты],работы[Адрес],"Северная д. 15",работы[Квартал],"1")+SUMIFS(работы[Затраты],работы[Адрес],"Северная д. 15",работы[Квартал],"2")+SUMIFS(работы[Затраты],работы[Адрес],"Северная д. 15",работы[Квартал],"3") -> 111,756 ₽ | O72: =SUMIFS(работы[Затраты],работы[Адрес],"Северная д. 15",работы[Квартал],"1")+SUMIFS(работы[Затраты],работы[Адрес],"Северная д. 15",работы[Квартал],"2")+SUMIFS(работы[Затраты],работы[Адрес],"Северная д. 15",работы[Квартал],"3")+SUMIFS(работы[Затраты],работы[Адрес],"Северная д. 15",работы[Квартал],"4") -> 293,312 ₽ | P72: 21,124.06 ₽ | Q72: 24,299.64 ₽ | R72: 22,829.83 ₽ | S72: 44,654.82 ₽ | T72: 27,746.40 ₽ | U72: 25,456.83 ₽ | V72: 28,611.51 ₽ | W72: 22,207.07 ₽ | X72: 25,542.76 ₽ | Y72: 30,078.06 ₽
A73: 72 | B73: Северная д. 17 | C73: 8,393.87 | D73: 7.00 | E73: =остаток[[#This Row],[Общеполезная жилая площадь, м²]]*остаток[[#This Row],[Тариф на текущий ремонт, руб/м²]]*12 -> 705,085 ₽ | F73: =SUM(остаток[[#This Row],[январь]:[март]]) -> 192,100 ₽ | G73: =SUM(остаток[[#This Row],[январь]:[июнь]]) -> 300,949 ₽ | H73: =SUM(остаток[[#This Row],[январь]:[сентябрь]]) -> 479,080 ₽ | I73: =SUM(остаток[[#This Row],[январь]:[декабрь]]) -> 652,033 ₽ | J73: 112,554 | K73: ='12 мес'!I3617 -> 260,241 | L73: =SUMIFS(работы[Затраты],работы[Адрес],"Северная д. 17",работы[Квартал],"1") -> 46,305 ₽ | M73: =SUMIFS(работы[Затраты],работы[Адрес],"Северная д. 17",работы[Квартал],"1")+SUMIFS(работы[Затраты],работы[Адрес],"Северная д. 17",работы[Квартал],"2") -> 65,267 ₽ | N73: =SUMIFS(работы[Затраты],работы[Адрес],"Северная д. 17",работы[Квартал],"1")+SUMIFS(работы[Затраты],работы[Адрес],"Северная д. 17",работы[Квартал],"2")+SUMIFS(работы[Затраты],работы[Адрес],"Северная д. 17",работы[Квартал],"3") -> 481,008 ₽ | O73: =SUMIFS(работы[Затраты],работы[Адрес],"Северная д. 17",работы[Квартал],"1")+SUMIFS(работы[Затраты],работы[Адрес],"Северная д. 17",работы[Квартал],"2")+SUMIFS(работы[Затраты],работы[Адрес],"Северная д. 17",работы[Квартал],"3")+SUMIFS(работы[Затраты],работы[Адрес],"Северная д. 17",работы[Квартал],"4") -> 504,346 ₽ | P73: 76,053.02 ₽ | Q73: 56,618.66 ₽ | R73: 59,428.66 ₽ | S73: 108,848.83 ₽ | T73: 60,346.41 ₽ | U73: 58,500.53 ₽ | V73: 59,283.97 ₽ | W73: 54,461.68 ₽ | X73: 56,695.04 ₽ | Y73: 61,796.03 ₽
A74: 73 | B74: Северная д. 21 | C74: 3,081.22 | D74: 5.50 | E74: =остаток[[#This Row],[Общеполезная жилая площадь, м²]]*остаток[[#This Row],[Тариф на текущий ремонт, руб/м²]]*12 -> 203,361 ₽ | F74: =SUM(остаток[[#This Row],[январь]:[март]]) -> 50,081 ₽ | G74: =SUM(остаток[[#This Row],[январь]:[июнь]]) -> 83,017 ₽ | H74: =SUM(остаток[[#This Row],[январь]:[сентябрь]]) -> 134,073 ₽ | I74: =SUM(остаток[[#This Row],[январь]:[декабрь]]) -> 186,140 ₽ | J74: 245,524 | K74: ='12 мес'!I3667 -> 105,368 | L74: =SUMIFS(работы[Затраты],работы[Адрес],"Северная д. 21",работы[Квартал],"1") -> 125,189 ₽ | M74: =SUMIFS(работы[Затраты],работы[Адрес],"Северная д. 21",работы[Квартал],"1")+SUMIFS(работы[Затраты],работы[Адрес],"Северная д. 21",работы[Квартал],"2") -> 130,535 ₽ | N74: =SUMIFS(работы[Затраты],работы[Адрес],"Северная д. 21",работы[Квартал],"1")+SUMIFS(работы[Затраты],работы[Адрес],"Северная д. 21",работы[Квартал],"2")+SUMIFS(работы[Затраты],работы[Адрес],"Северная д. 21",работы[Квартал],"3") -> 304,982 ₽ | O74: =SUMIFS(работы[Затраты],работы[Адрес],"Северная д. 21",работы[Квартал],"1")+SUMIFS(работы[Затраты],работы[Адрес],"Северная д. 21",работы[Квартал],"2")+SUMIFS(работы[Затраты],работы[Адрес],"Северная д. 21",работы[Квартал],"3")+SUMIFS(работы[Затраты],работы[Адрес],"Северная д. 21",работы[Квартал],"4") -> 326,296 ₽ | P74: 17,985.41 ₽ | Q74: 14,573.54 ₽ | R74: 17,521.73 ₽ | S74: 32,935.93 ₽ | T74: 16,241.09 ₽ | U74: 19,038.65 ₽ | V74: 15,776.23 ₽ | W74: 16,097.23 ₽ | X74: 19,399.95 ₽ | Y74: 16,570.38 ₽
A75: 74 | B75: Советская д. 21 | C75: 4,405.81 | D75: 5.50 | E75: =остаток[[#This Row],[Общеполезная жилая площадь, м²]]*остаток[[#This Row],[Тариф на текущий ремонт, руб/м²]]*12 -> 290,783 ₽ | F75: =SUM(остаток[[#This Row],[январь]:[март]]) -> 75,802 ₽ | G75: =SUM(остаток[[#This Row],[январь]:[июнь]]) -> 122,692 ₽ | H75: =SUM(остаток[[#This Row],[январь]:[сентябрь]]) -> 192,158 ₽ | I75: =SUM(остаток[[#This Row],[январь]:[декабрь]]) -> 260,902 ₽ | J75: 160,061 | K75: ='12 мес'!I3717 -> 140,674 | L75: =SUMIFS(работы[Затраты],работы[Адрес],"Советская д. 21",работы[Квартал],"1") -> 18,525 ₽ | M75: =SUMIFS(работы[Затраты],работы[Адрес],"Советская д. 21",работы[Квартал],"1")+SUMIFS(работы[Затраты],работы[Адрес],"Советская д. 21",работы[Квартал],"2") -> 38,002 ₽ | N75: =SUMIFS(работы[Затраты],работы[Адрес],"Советская д. 21",работы[Квартал],"1")+SUMIFS(работы[Затраты],работы[Адрес],"Советская д. 21",работы[Квартал],"2")+SUMIFS(работы[Затраты],работы[Адрес],"Советская д. 21",работы[Квартал],"3") -> 105,036 ₽ | O75: =SUMIFS(работы[Затраты],работы[Адрес],"Советская д. 21",работы[Квартал],"1")+SUMIFS(работы[Затраты],работы[Адрес],"Советская д. 21",работы[Квартал],"2")+SUMIFS(работы[Затраты],работы[Адрес],"Советская д. 21",работы[Квартал],"3")+SUMIFS(работы[Затраты],работы[Адрес],"Советская д. 21",работы[Квартал],"4") -> 280,289 ₽ | P75: 30,974.80 ₽ | Q75: 23,411.93 ₽ | R75: 21,415.43 ₽ | S75: 46,889.89 ₽ | T75: 21,990.27 ₽ | U75: 24,146.12 ₽ | V75: 23,329.37 ₽ | W75: 22,861.82 ₽ | X75: 21,393.58 ₽ | Y75: 24,488.68 ₽
A76: 75 | B76: Десантника Исаева д. 1 | C76: 45.60 | D76: 0.00 | E76: =остаток[[#This Row],[Общеполезная жилая площадь, м²]]*остаток[[#This Row],[Тариф на текущий ремонт, руб/м²]]*12 -> 0 ₽ | F76: =SUM(остаток[[#This Row],[январь]:[март]]) -> 0 ₽ | G76: =SUM(остаток[[#This Row],[январь]:[июнь]]) -> 0 ₽ | H76: =SUM(остаток[[#This Row],[январь]:[сентябрь]]) -> 0 ₽ | I76: =SUM(остаток[[#This Row],[январь]:[декабрь]]) -> 0 ₽ | J76: -2,931 | K76: ='12 мес'!I267 -> -2,931 | L76: =SUMIFS(работы[Затраты],работы[Адрес],"Десантника Исаева д. 1",работы[Квартал],"1") -> 0 ₽ | M76: =SUMIFS(работы[Затраты],работы[Адрес],"Десантника Исаева д. 1",работы[Квартал],"1")+SUMIFS(работы[Затраты],работы[Адрес],"Десантника Исаева д. 1",работы[Квартал],"2") -> 0 ₽ | N76: =SUMIFS(работы[Затраты],работы[Адрес],"Десантника Исаева д. 1",работы[Квартал],"1")+SUMIFS(работы[Затраты],работы[Адрес],"Десантника Исаева д. 1",работы[Квартал],"2")+SUMIFS(работы[Затраты],работы[Адрес],"Десантника Исаева д. 1",работы[Квартал],"3") -> 0 ₽ | O76: =SUMIFS(работы[Затраты],работы[Адрес],"Десантника Исаева д. 1",работы[Квартал],"1")+SUMIFS(работы[Затраты],работы[Адрес],"Десантника Исаева д. 1",работы[Квартал],"2")+SUMIFS(работы[Затраты],работы[Адрес],"Десантника Исаева д. 1",работы[Квартал],"3")+SUMIFS(работы[Затраты],работы[Адрес],"Десантника Исаева д. 1",работы[Квартал],"4") -> 0 ₽ | P76: 0.00 ₽ | Q76: 0.00 ₽ | R76: 0.00 ₽ | S76: 0.00 ₽ | T76: 0.00 ₽ | U76: 0.00 ₽ | V76: 0.00 ₽ | W76: 0.00 ₽ | X76: 0.00 ₽ | Y76: 0.00 ₽
A77: Итог | E77: =SUBTOTAL(109,[Начислено за год]) -> 12,693,133 ₽ | F77: =SUBTOTAL(109,[Поступило за 3 месяца]) -> 3,086,812 ₽ | G77: =SUBTOTAL(109,[Поступило за 6 месяцев]) -> 5,023,133 ₽ | H77: =SUBTOTAL(109,[Поступило за 9 месяцев]) -> 8,117,074 ₽ | I77: =SUBTOTAL(109,[Поступило за 12 месяцев]) -> 11,235,629 ₽ | J77: =SUBTOTAL(109,[Остаток на начало года]) -> 11,553,330 ₽ | K77: =SUBTOTAL(109,[Остаток на 01.01.2021]) -> ₽10,506,482 | L77: =SUBTOTAL(109,[Работы за 3 месяца]) -> 2,403,811 ₽ | M77: =SUBTOTAL(109,[Работы за 6 месяцев]) -> 4,605,451 ₽ | N77: =SUBTOTAL(109,[Работы за 9 месяцев]) -> 9,929,563 ₽ | O77: =SUBTOTAL(109,[Работы за 12 месяцев]) -> 13,410,520 ₽ | P77: =SUBTOTAL(109,[январь]) -> 1,099,448.36 ₽ | Q77: =SUBTOTAL(109,[февраль]) -> 986,327.07 ₽ | R77: =SUBTOTAL(109,[март]) -> 1,001,036.22 ₽ | S77: =SUBTOTAL(109,[июнь]) -> 1,936,321.31 ₽ | T77: =SUBTOTAL(109,[июль]) -> 1,031,282.62 ₽ | U77: =SUBTOTAL(109,[август]) -> 1,043,248.47 ₽ | V77: =SUBTOTAL(109,[сентябрь]) -> 1,019,409.76 ₽ | W77: =SUBTOTAL(109,[октябрь]) -> 1,011,896.97 ₽ | X77: =SUBTOTAL(109,[ноябрь]) -> 1,020,682.01 ₽ | Y77: =SUBTOTAL(109,[декабрь]) -> 1,085,976.30 ₽
S78: за 2 квартал

Sheet powerquery (hidden)
A1: Адрес | B1: Группы работ | C1: Виды работ по текущему ремонту | D1: Место проведения | E1: Объем работ | F1: Единица измерения | G1: Затраты | H1: Месяц | J1: Адрес | K1: Группы работ | L1: Виды работ по текущему ремонту | M1: Место проведения | N1: Объем работ | O1: Единица измерения | P1: Затраты | Q1: Месяц
A2: БПС д. 1 | E2: 0 | G2: 0 | H2: январь | J2: БПС д. 1 | M2: ;; | N2: 0 | P2: 0 | Q2: январь,февраль,март
A3: БПС д. 3 | E3: 0 | G3: 0 | H3: январь | J3: БПС д. 3 | M3: ;; | N3: 0 | P3: 0 | Q3: январь,февраль,март
A4: БПС д. 5 | E4: 0 | G4: 0 | H4: январь | J4: БПС д. 5 | M4: ;; | N4: 0 | P4: 0 | Q4: январь,февраль,март
A5: Горького д. 5 | E5: 0 | G5: 0 | H5: январь | J5: Горького д. 5 | M5: ;; | N5: 0 | P5: 0 | Q5: январь,февраль,март
A6: Горького д. 7 | E6: 0 | G6: 0 | H6: январь | J6: Горького д. 7 | M6: ;; | N6: 0 | P6: 0 | Q6: январь,февраль,март
A7: Десантника Исаева д. 1 | E7: 0 | G7: 0 | H7: январь | J7: Десантника Исаева д. 1 | M7: ;; | N7: 0 | P7: 0 | Q7: январь,февраль,март
A8: Кирова д. 12 | E8: 0 | G8: 0 | H8: январь | J8: Кирова д. 12 | M8: ;; | N8: 0 | P8: 0 | Q8: январь,февраль,март
A9: Кирова д. 13 | E9: 0 | G9: 0 | H9: январь | J9: Кирова д. 13 | M9: ;; | N9: 0 | P9: 0 | Q9: январь,февраль,март
A10: Кирова д. 15 | E10: 0 | G10: 0 | H10: январь | J10: Кирова д. 15 | M10: ;; | N10: 0 | P10: 0 | Q10: январь,февраль,март
A11: Кирова д. 17 | E11: 0 | G11: 0 | H11: январь | J11: Кирова д. 17 | M11: ;; | N11: 0 | P11: 0 | Q11: январь,февраль,март
A12: Кирова д. 18 | E12: 0 | G12: 0 | H12: январь | J12: Кирова д. 18 | M12: ;; | N12: 0 | P12: 0 | Q12: январь,февраль,март
A13: Кирова д. 19 | E13: 0 | G13: 0 | H13: январь | J13: Кирова д. 19 | M13: ;; | N13: 0 | P13: 0 | Q13: январь,февраль,март
A14: Кирова д. 21 | E14: 0 | G14: 0 | H14: январь | J14: Кирова д. 21 | M14: ;; | N14: 0 | P14: 0 | Q14: январь,февраль,март
A15: Кирова д. 22 | E15: 0 | G15: 0 | H15: январь | J15: Кирова д. 22 | M15: ;; | N15: 0 | P15: 0 | Q15: январь,февраль,март
A16: Кирова д. 23 | E16: 0 | G16: 0 | H16: январь | J16: Кирова д. 23 | M16: ;; | N16: 0 | P16: 0 | Q16: январь,февраль,март
A17: Кирова д. 25 | E17: 0 | G17: 0 | H17: январь | J17: Кирова д. 25 | M17: ;; | N17: 0 | P17: 0 | Q17: январь,февраль,март
A18: Кирова д. 27 | E18: 0 | G18: 0 | H18: январь | J18: Кирова д. 27 | M18: ;; | N18: 0 | P18: 0 | Q18: январь,февраль,март
A19: Кирова д. 29 | E19: 0 | G19: 0 | H19: январь | J19: Кирова д. 29 | M19: ;; | N19: 0 | P19: 0 | Q19: январь,февраль,март
A20: Комсомольская д. 10 | E20: 0 | G20: 0 | H20: январь | J20: Комсомольская д. 10 | M20: ;; | N20: 0 | P20: 0 | Q20: январь,февраль,март
A21: Комсомольская д. 12 | E21: 0 | G21: 0 | H21: январь | J21: Комсомольская д. 12 | M21: ;; | N21: 0 | P21: 0 | Q21: январь,февраль,март
A22: Комсомольская д. 8 | E22: 0 | G22: 0 | H22: январь | J22: Комсомольская д. 8 | M22: ;; | N22: 0 | P22: 0 | Q22: январь,февраль,март
A23: Краснофлотская д. 3 | E23: 0 | G23: 0 | H23: январь | J23: Краснофлотская д. 3 | M23: ;; | N23: 0 | P23: 0 | Q23: январь,февраль,март
A24: Краснофлотская д. 4 | E24: 0 | G24: 0 | H24: январь | J24: Краснофлотская д. 4 | M24: ;; | N24: 0 | P24: 0 | Q24: январь,февраль,март
A25: Краснофлотская д. 5 | E25: 0 | G25: 0 | H25: январь | J25: Краснофлотская д. 5 | M25: ;; | N25: 0 | P25: 0 | Q25: январь,февраль,март
A26: Краснофлотская д. 6 | E26: 0 | G26: 0 | H26: январь | J26: Краснофлотская д. 6 | M26: ;; | N26: 0 | P26: 0 | Q26: январь,февраль,март
A27: Ладожская д. 12 | E27: 0 | G27: 0 | H27: январь | J27: Ладожская д. 12 | M27: ;; | N27: 0 | P27: 0 | Q27: январь,февраль,март
A28: Ладожская д. 14 | E28: 0 | G28: 0 | H28: январь | J28: Ладожская д. 14 | M28: ;; | N28: 0 | P28: 0 | Q28: январь,февраль,март
A29: Ладожская д. 18 | E29: 0 | G29: 0 | H29: январь | J29: Ладожская д. 18 | M29: ;; | N29: 0 | P29: 0 | Q29: январь,февраль,март
A30: Ладожская д. 20 | E30: 0 | G30: 0 | H30: январь | J30: Ладожская д. 20 | M30: ;; | N30: 0 | P30: 0 | Q30: январь,февраль,март
A31: Ладожская д. 22 | E31: 0 | G31: 0 | H31: январь | J31: Ладожская д. 22 | M31: ;; | N31: 0 | P31: 0 | Q31: январь,февраль,март
A32: Ладожская д. 9 | E32: 0 | G32: 0 | H32: январь | J32: Ладожская д. 9 | M32: ;; | N32: 0 | P32: 0 | Q32: январь,февраль,март
A33: Молодежная д. 18 | E33: 0 | G33: 0 | H33: январь | J33: Молодежная д. 18 | M33: ;; | N33: 0 | P33: 0 | Q33: январь,февраль,март
A34: Молодцово д. 1 | E34: 0 | G34: 0 | H34: январь | J34: Молодцово д. 1 | M34: ;; | N34: 0 | P34: 0 | Q34: январь,февраль,март
A35: Молодцово д. 2 | E35: 0 | G35: 0 | H35: январь | J35: Молодцово д. 2 | M35: ;; | N35: 0 | P35: 0 | Q35: январь,февраль,март
A36: Молодцово д. 3 | E36: 0 | G36: 0 | H36: январь | J36: Молодцово д. 3 | M36: ;; | N36: 0 | P36: 0 | Q36: январь,февраль,март
A37: Молодцово д. 4 | E37: 0 | G37: 0 | H37: январь | J37: Молодцово д. 4 | M37: ;; | N37: 0 | P37: 0 | Q37: январь,февраль,март
A38: Молодцово д. 5 | E38: 0 | G38: 0 | H38: январь | J38: Молодцово д. 5 | M38: ;; | N38: 0 | P38: 0 | Q38: январь,февраль,март
A39: Молодцово д. 6 | E39: 0 | G39: 0 | H39: январь | J39: Молодцово д. 6 | M39: ;; | N39: 0 | P39: 0 | Q39: январь,февраль,март
A40: Молодцово д. 7 | E40: 0 | G40: 0 | H40: январь | J40: Молодцово д. 7 | M40: ;; | N40: 0 | P40: 0 | Q40: январь,февраль,март
A41: Молодцово д. 8 | E41: 0 | G41: 0 | H41: январь | J41: Молодцово д. 8 | M41: ;; | N41: 0 | P41: 0 | Q41: январь,февраль,март
A42: Новая д. 19 | E42: 0 | G42: 0 | H42: январь | J42: Новая д. 19 | M42: ;; | N42: 0 | P42: 0 | Q42: январь,февраль,март
A43: Новая д. 20 | E43: 0 | G43: 0 | H43: январь | J43: Новая д. 20 | M43: ;; | N43: 0 | P43: 0 | Q43: январь,февраль,март
A44: Новая д. 22 | E44: 0 | G44: 0 | H44: январь | J44: Новая д. 22 | M44: ;; | N44: 0 | P44: 0 | Q44: январь,февраль,март
A45: Новая д. 24 | E45: 0 | G45: 0 | H45: январь | J45: Новая д. 24 | M45: ;; | N45: 0 | P45: 0 | Q45: январь,февраль,март
A46: Новая д. 28 | E46: 0 | G46: 0 | H46: январь | J46: Новая д. 28 | M46: ;; | N46: 0 | P46: 0 | Q46: январь,февраль,март
A47: Новая д. 3 | E47: 0 | G47: 0 | H47: январь | J47: Новая д. 3 | M47: ;; | N47: 0 | P47: 0 | Q47: январь,февраль,март
A48: Новая д. 30 | E48: 0 | G48: 0 | H48: январь | J48: Новая д. 30 | M48: ;; | N48: 0 | P48: 0 | Q48: январь,февраль,март
A49: Новая д. 38 | E49: 0 | G49: 0 | H49: январь | J49: Новая д. 38 | M49: ;; | N49: 0 | P49: 0 | Q49: январь,февраль,март
A50: Новая д. 7 | E50: 0 | G50: 0 | H50: январь | J50: Новая д. 7 | M50: ;; | N50: 0 | P50: 0 | Q50: январь,февраль,март
A51: Новая д. 9 | E51: 0 | G51: 0 | H51: январь | J51: Новая д. 9 | M51: ;; | N51: 0 | P51: 0 | Q51: январь,февраль,март
A52: Петуниной д. 1 | E52: 0 | G52: 0 | H52: январь | J52: Петуниной д. 1 | M52: ;; | N52: 0 | P52: 0 | Q52: январь,февраль,март
A53: Петуниной д. 2 | E53: 0 | G53: 0 | H53: январь | J53: Петуниной д. 2 | M53: ;; | N53: 0 | P53: 0 | Q53: январь,февраль,март
A54: Петуниной д. 3 | E54: 0 | G54: 0 | H54: январь | J54: Петуниной д. 3 | M54: ;; | N54: 0 | P54: 0 | Q54: январь,февраль,март
A55: Пионерская д. 1 | E55: 0 | G55: 0 | H55: январь | J55: Пионерская д. 1 | M55: ;; | N55: 0 | P55: 0 | Q55: январь,февраль,март
A56: Победы д. 1 | E56: 0 | G56: 0 | H56: январь | J56: Победы д. 1 | M56: ;; | N56: 0 | P56: 0 | Q56: январь,февраль,март
A57: Победы д. 11 | E57: 0 | G57: 0 | H57: январь | J57: Победы д. 11 | M57: ;; | N57: 0 | P57: 0 | Q57: январь,февраль,март
A58: Победы д. 13 | E58: 0 | G58: 0 | H58: январь | J58: Победы д. 13 | M58: ;; | N58: 0 | P58: 0 | Q58: январь,февраль,март
A59: Победы д. 14 | E59: 0 | G59: 0 | H59: январь | J59: Победы д. 14 | M59: ;; | N59: 0 | P59: 0 | Q59: январь,февраль,март
A60: Победы д. 15 | E60: 0 | G60: 0 | H60: январь | J60: Победы д. 15 | M60: ;; | N60: 0 | P60: 0 | Q60: январь,февраль,март
A61: Победы д. 17 | E61: 0 | G61: 0 | H61: январь | J61: Победы д. 17 | M61: ;; | N61: 0 | P61: 0 | Q61: январь,февраль,март
A62: Победы д. 19 | E62: 0 | G62: 0 | H62: январь | J62: Победы д. 19 | M62: ;; | N62: 0 | P62: 0 | Q62: январь,февраль,март
A63: Победы д. 21 | E63: 0 | G63: 0 | H63: январь | J63: Победы д. 21 | M63: ;; | N63: 0 | P63: 0 | Q63: январь,февраль,март
A64: Победы д. 23 | E64: 0 | G64: 0 | H64: январь | J64: Победы д. 23 | M64: ;; | N64: 0 | P64: 0 | Q64: январь,февраль,март
A65: Победы д. 25 | E65: 0 | G65: 0 | H65: январь | J65: Победы д. 25 | M65: ;; | N65: 0 | P65: 0 | Q65: январь,февраль,март
A66: Победы д. 27 | E66: 0 | G66: 0 | H66: январь | J66: Победы д. 27 | M66: ;; | N66: 0 | P66: 0 | Q66: январь,февраль,март
A67: Победы д. 3 | E67: 0 | G67: 0 | H67: январь | J67: Победы д. 3 | M67: ;; | N67: 0 | P67: 0 | Q67: январь,февраль,март
A68: Победы д. 4 | E68: 0 | G68: 0 | H68: январь | J68: Победы д. 4 | M68: ;; | N68: 0 | P68: 0 | Q68: январь,февраль,март
A69: Победы д. 40 | E69: 0 | G69: 0 | H69: январь | J69: Победы д. 40 | M69: ;; | N69: 0 | P69: 0 | Q69: январь,февраль,март
A70: Победы д. 5 | E70: 0 | G70: 0 | H70: январь | J70: Победы д. 5 | M70: ;; | N70: 0 | P70: 0 | Q70: январь,февраль,март
A71: Победы д. 7 | E71: 0 | G71: 0 | H71: январь | J71: Победы д. 7 | M71: ;; | N71: 0 | P71: 0 | Q71: январь,февраль,март
A72: Победы д. 9 | E72: 0 | G72: 0 | H72: январь | J72: Победы д. 9 | M72: ;; | N72: 0 | P72: 0 | Q72: январь,февраль,март
A73: Северная д. 15 | E73: 0 | G73: 0 | H73: январь | J73: Северная д. 15 | M73: ;; | N73: 0 | P73: 0 | Q73: январь,февраль,март
A74: Северная д. 17 | E74: 0 | G74: 0 | H74: январь | J74: Северная д. 17 | M74: ;; | N74: 0 | P74: 0 | Q74: январь,февраль,март
A75: Северная д. 21 | E75: 0 | G75: 0 | H75: январь | J75: Северная д. 21 | M75: ;; | N75: 0 | P75: 0 | Q75: январь,февраль,март
A76: Советская д. 21 | E76: 0 | G76: 0 | H76: январь | J76: Советская д. 21 | M76: ;; | N76: 0 | P76: 0 | Q76: январь,февраль,март
A77: БПС д. 1 | E77: 0 | G77: 0 | H77: февраль | J77: Северная д. 17 | K77: общестрой | L77: Устройство продухов подвала | M77: п-л | N77: 19 | O77: шт | P77: 38185 | Q77: январь
A78: БПС д. 3 | E78: 0 | G78: 0 | H78: февраль | J78: Победы д. 4 | K78: общестрой | L78: Косметический ремонт МОП | M78: п.3 | N78: 1 | O78: шт | P78: 76368 | Q78: январь
A79: БПС д. 5 | E79: 0 | G79: 0 | H79: февраль | J79: Новая д. 38 | K79: общестрой | L79: Косметический ремонт МОП | M79: п-д | N79: 1 | O79: шт | P79: 168166 | Q79: январь
A80: Горького д. 5 | E80: 0 | G80: 0 | H80: февраль | J80: Новая д. 20 | K80: общестрой | L80: Косметический ремонт МОП | M80: п.1 | N80: 1 | O80: шт | P80: 93156 | Q80: январь
A81: Горького д. 7 | E81: 0 | G81: 0 | H81: февраль | J81: Новая д. 20 | K81: общестрой | L81: Смена оконных блоков | M81: п.1 | N81: 1 | O81: шт | P81: 10226 | Q81: январь
A82: Десантника Исаева д. 1 | E82: 0 | G82: 0 | H82: февраль | J82: Новая д. 20 | K82: общестрой | L82: Устройство деревянных поручней | M82: п.1 | N82: 30 | O82: м | P82: 9504 | Q82: январь
A83: Кирова д. 12 | E83: 0 | G83: 0 | H83: февраль | J83: Новая д. 20 | K83: общестрой | L83: Устройство плиточных полов | M83: п.1 | N83: 6.362 | O83: м² | P83: 20717 | Q83: январь
A84: Кирова д. 13 | E84: 0 | G84: 0 | H84: февраль | J84: Горького д. 7 | K84: общестрой | L84: Косметический ремонт МОП | M84: п.1,2 | N84: 2 | O84: шт | P84: 79813 | Q84: январь
A85: Кирова д. 15 | E85: 0 | G85: 0 | H85: февраль | J85: Горького д. 7 | K85: общестрой | L85: Смена оконных блоков | M85: п.1,2 | N85: 2 | O85: шт | P85: 48034 | Q85: январь
A86: Кирова д. 17 | E86: 0 | G86: 0 | H86: февраль | J86: Молодцово д. 4 | K86: общестрой | L86: Герметизация межпанельных швов | M86: фасад | N86: 320 | O86: м | P86: 327018 | Q86: январь
A87: Кирова д. 18 | E87: 0 | G87: 0 | H87: февраль | J87: БПС д. 1 | K87: сантехника | L87: Прокладка подпиточной линии ЦО | M87: ТП | N87: 2 | O87: мп | P87: 8714 | Q87: январь
A88: Кирова д. 19 | E88: 0 | G88: 0 | H88: февраль | J88: Пионерская д. 1 | K88: сантехника | L88: Смена запорной арматуры | M88: 84;ТП | N88: 18 | O88: шт | P88: 116175 | Q88: январь,февраль
A89: Кирова д. 21 | E89: 0 | G89: 0 | H89: февраль | J89: Молодцово д. 3 | K89: сантехника | L89: Смена трубопровода ЦО | M89: 1;48(п-л) | N89: 4.5 | O89: мп | P89: 7633 | Q89: январь,март
A90: Кирова д. 22 | E90: 0 | G90: 0 | H90: февраль | J90: Новая д. 20 | K90: сантехника | L90: Смена канализации | M90: 56 | N90: 2 | O90: м | P90: 2882 | Q90: январь
A91: Кирова д. 23 | E91: 0 | G91: 0 | H91: февраль | J91: Новая д. 19 | K91: сантехника | L91: Смена запорной арматуры | M91: 6 | N91: 1 | O91: шт | P91: 903 | Q91: январь
A92: Кирова д. 25 | E92: 0 | G92: 0 | H92: февраль | J92: БПС д. 3 | K92: общестрой | L92: Смена почтовых замков | M92: 147,359;359 | N92: 3 | O92: шт | P92: 1623 | Q92: январь,февраль
A93: Кирова д. 27 | E93: 0 | G93: 0 | H93: февраль | J93: Победы д. 13 | K93: сантехника | L93: Смена запорной арматуры | M93: 5 | N93: 1 | O93: шт | P93: 903 | Q93: январь
A94: Кирова д. 29 | E94: 0 | G94: 0 | H94: февраль | J94: БПС д. 3 | K94: сантехника | L94: Смена запорной арматуры | M94: 144;220 | N94: 3 | O94: шт | P94: 2357 | Q94: январь,февраль
A95: Комсомольская д. 10 | E95: 0 | G95: 0 | H95: февраль | J95: Пионерская д. 1 | K95: сантехника | L95: Смена (ремонт) радиаторов отопления | M95: 150 | N95: 1 | O95: шт | P95: 2416 | Q95: январь
A96: Комсомольская д. 12 | E96: 0 | G96: 0 | H96: февраль | J96: Северная д. 17 | K96: сантехника | L96: Смена трубопровода ХВС | M96: 117 | N96: 2 | O96: мп | P96: 3957 | Q96: январь
A97: Комсомольская д. 8 | E97: 0 | G97: 0 | H97: февраль | J97: Новая д. 20 | K97: сантехника | L97: Смена запорной арматуры | M97: 73(п-л) | N97: 2 | O97: шт | P97: 8794 | Q97: январь
A98: Краснофлотская д. 3 | E98: 0 | G98: 0 | H98: февраль | J98: Победы д. 1 | K98: общестрой | L98: Смена оконных ручек | M98: 52 | N98: 1 | O98: шт | P98: 316 | Q98: январь
A99: Краснофлотская д. 4 | E99: 0 | G99: 0 | H99: февраль | J99: Победы д. 7 | K99: общестрой | L99: Смена стекол в МОП | M99: 17 | N99: 0.16 | O99: м² | P99: 253 | Q99: январь
A100: Краснофлотская д. 5 | E100: 0 | G100: 0 | H100: февраль | J100: Кирова д. 13 | K100: сантехника | L100: Смена (ремонт) радиаторов отопления | M100: 6 | N100: 1 | O100: шт | P100: 1922 | Q100: январь
A101: Краснофлотская д. 6 | E101: 0 | G101: 0 | H101: февраль | J101: Новая д. 30 | K101: сантехника | L101: Смена (ремонт) полотенцесушителя | M101: 14 | N101: 1 | O101: шт | P101: 3564 | Q101: январь
A102: Ладожская д. 12 | E102: 0 | G102: 0 | H102: февраль | J102: Победы д. 14 | K102: сантехника | L102: Установка дренажного насоса | M102: п-л | N102: 1 | O102: шт | P102: 5300 | Q102: январь
A103: Ладожская д. 14 | E103: 0 | G103: 0 | H103: февраль | J103: Новая д. 20 | K103: сантехника | L103: Смена трубопровода ГВС | M103: 73 | N103: 4 | O103: мп | P103: 5284 | Q103: январь
A104: Ладожская д. 18 | E104: 0 | G104: 0 | H104: февраль | J104: Новая д. 19 | K104: сантехника | L104: Смена трубопровода ХВС | M104: 61,64 | N104: 4 | O104: мп | P104: 6112 | Q104: январь
A105: Ладожская д. 20 | E105: 0 | G105: 0 | H105: февраль | J105: Северная д. 21 | K105: сантехника | L105: Смена запорной арматуры | M105: 24 | N105: 1 | O105: шт | P105: 994 | Q105: январь
A106: Ладожская д. 22 | E106: 0 | G106: 0 | H106: февраль | J106: Ладожская д. 20 | K106: сантехника | L106: Смена трубопровода ХВС | M106: 123,274;231 | N106: 11 | O106: мп | P106: 18629 | Q106: февраль
A107: Ладожская д. 9 | E107: 0 | G107: 0 | H107: февраль | J107: Ладожская д. 20 | K107: общестрой | L107: Смена замков | M107: п.4 | N107: 1 | O107: шт | P107: 1987 | Q107: январь
A108: Молодежная д. 18 | E108: 0 | G108: 0 | H108: февраль | J108: Ладожская д. 14 | K108: сантехника | L108: Смена трубопровода ХВС | M108: 24 | N108: 4 | O108: мп | P108: 6109 | Q108: январь
A109: Молодцово д. 1 | E109: 0 | G109: 0 | H109: февраль | J109: Краснофлотская д. 3 | K109: сантехника | L109: Смена запорной арматуры | M109: 8 | N109: 1 | O109: шт | P109: 630 | Q109: январь
A110: Молодцово д. 2 | E110: 0 | G110: 0 | H110: февраль | J110: БПС д. 3 | K110: общестрой | L110: Смена стекол в МОП | M110: п.2,3 | N110: 3.3 | O110: м² | P110: 5977 | Q110: март
A111: Молодцово д. 3 | E111: 0 | G111: 0 | H111: февраль | J111: БПС д. 3 | K111: сантехника | L111: Смена трубопровода ГВС | M111: 247 | N111: 2 | O111: мп | P111: 2575 | Q111: январь
A112: Молодцово д. 4 | E112: 0 | G112: 0 | H112: февраль | J112: Кирова д. 12 | K112: общестрой | L112: Изготовление и установка труб вентиляции | M112: 6 | N112: 1.25 | O112: м | P112: 859 | Q112: январь
A113: Молодцово д. 5 | E113: 0 | G113: 0 | H113: февраль | J113: Ладожская д. 14 | K113: сантехника | L113: Смена канализации | M113: 106 | N113: 1 | O113: м | P113: 3741 | Q113: январь
A114: Молодцово д. 6 | E114: 0 | G114: 0 | H114: февраль | J114: Победы д. 1 | K114: сантехника | L114: Смена трубопровода ЦО | M114: 37 | N114: 1 | O114: мп | P114: 2057 | Q114: январь
A115: Молодцово д. 7 | E115: 0 | G115: 0 | H115: февраль | J115: Пионерская д. 1 | K115: общестрой | L115: Промазка битумной мастикой кровли | M115: 39 | N115: 5 | O115: м² | P115: 811 | Q115: январь
A116: Молодцово д. 8 | E116: 0 | G116: 0 | H116: февраль | J116: Победы д. 3 | K116: общестрой | L116: Установка труб вентиляции | M116: 7 | N116: 4 | O116: м | P116: 3126 | Q116: январь
A117: Новая д. 19 | E117: 0 | G117: 0 | H117: февраль | J117: Победы д. 3 | K117: сантехника | L117: Смена трубопровода ЦО | M117: п.6 | N117: 22 | O117: мп | P117: 31835 | Q117: январь
A118: Новая д. 20 | E118: 0 | G118: 0 | H118: февраль | J118: Победы д. 3 | K118: сантехника | L118: Смена (ремонт) радиаторов отопления | M118: п.6 | N118: 3 | O118: шт | P118: 14129 | Q118: январь
A119: Новая д. 22 | E119: 0 | G119: 0 | H119: февраль | J119: Новая д. 20 | K119: общестрой | L119: Промазка битумной мастикой примыканий | M119: 59 | N119: 10 | O119: мп | P119: 2336 | Q119: январь
A120: Новая д. 24 | E120: 0 | G120: 0 | H120: февраль | J120: Новая д. 30 | K120: общестрой | L120: Промазка битумной мастикой примыканий | M120: 47 | N120: 10 | O120: мп | P120: 1999 | Q120: январь
A121: Новая д. 28 | E121: 0 | G121: 0 | H121: февраль | J121: Победы д. 14 | K121: сантехника | L121: Смена канализации | M121: п.5,6 | N121: 42 | O121: м | P121: 54443 | Q121: март
A122: Новая д. 3 | E122: 0 | G122: 0 | H122: февраль | J122: Новая д. 9 | K122: сантехника | L122: Смена канализации | M122: 49,52 | N122: 4 | O122: м | P122: 5464 | Q122: март
A123: Новая д. 30 | E123: 0 | G123: 0 | H123: февраль | J123: Новая д. 9 | K123: сантехника | L123: Смена трубопровода ХВС | M123: 23,26,29 | N123: 5.5 | O123: мп | P123: 9064 | Q123: февраль
A124: Новая д. 38 | E124: 0 | G124: 0 | H124: февраль | J124: Победы д. 3 | K124: сантехника | L124: Смена трубопровода ГВС | M124: 35 | N124: 2 | O124: мп | P124: 2584 | Q124: март
A125: Новая д. 7 | E125: 0 | G125: 0 | H125: февраль | J125: Новая д. 9 | K125: общестрой | L125: Установка (ремонт) перил | M125: п.4 | N125: 1.9 | O125: м | P125: 7034 | Q125: февраль
A126: Новая д. 9 | E126: 0 | G126: 0 | H126: февраль | J126: Победы д. 3 | K126: общестрой | L126: Изготовление и установка оконных рам | M126: п.4 | N126: 2 | O126: шт | P126: 8796 | Q126: январь
A127: Петуниной д. 1 | E127: 0 | G127: 0 | H127: февраль | J127: Новая д. 9 | K127: общестрой | L127: Установка и изготовление скамеек | M127: п.4 | N127: 1 | O127: шт | P127: 7393 | Q127: февраль
A128: Петуниной д. 2 | E128: 0 | G128: 0 | H128: февраль | J128: Ладожская д. 9 | K128: сантехника | L128: Смена запорной арматуры | M128: 343 | N128: 1 | O128: шт | P128: 1001 | Q128: февраль
A129: Петуниной д. 3 | E129: 0 | G129: 0 | H129: февраль | J129: Победы д. 14 | K129: общестрой | L129: Смена оконных блоков | M129: п.4 | N129: 5 | O129: шт | P129: 103170 | Q129: март
A130: Пионерская д. 1 | E130: 0 | G130: 0 | H130: февраль | J130: Победы д. 3 | K130: общестрой | L130: Смена оконных блоков | M130: п.6 | N130: 3 | O130: шт | P130: 71667 | Q130: март
A131: Победы д. 1 | E131: 0 | G131: 0 | H131: февраль | J131: Молодцово д. 1 | K131: сантехника | L131: Смена запорной арматуры | M131: п-л;69 | N131: 3 | O131: шт | P131: 4161 | Q131: февраль,март
A132: Победы д. 11 | E132: 0 | G132: 0 | H132: февраль | J132: Молодежная д. 18 | K132: сантехника | L132: Смена запорной арматуры | M132: 49 | N132: 1 | O132: шт | P132: 903 | Q132: март
A133: Победы д. 13 | E133: 0 | G133: 0 | H133: февраль | J133: Ладожская д. 22 | K133: сантехника | L133: Смена запорной арматуры | M133: 14 | N133: 1 | O133: шт | P133: 903 | Q133: март
A134: Победы д. 14 | E134: 0 | G134: 0 | H134: февраль | J134: Победы д. 1 | K134: сантехника | L134: Смена запорной арматуры | M134: 52,57 | N134: 2 | O134: шт | P134: 3152 | Q134: февраль
A135: Победы д. 15 | E135: 0 | G135: 0 | H135: февраль | J135: Краснофлотская д. 3 | K135: сантехника | L135: Смена канализации | M135: 8 | N135: 1.5 | O135: м | P135: 2473 | Q135: март
A136: Победы д. 17 | E136: 0 | G136: 0 | H136: февраль | J136: Ладожская д. 20 | K136: сантехника | L136: Смена трубопровода ГВС | M136: 253 | N136: 1.5 | O136: мп | P136: 2022 | Q136: март
A137: Победы д. 19 | E137: 0 | G137: 0 | H137: февраль | J137: Победы д. 13 | K137: сантехника | L137: Смена трубопровода ЦО | M137: 5 | N137: 1 | O137: мп | P137: 1457 | Q137: февраль
A138: Победы д. 21 | E138: 0 | G138: 0 | H138: февраль | J138: Кирова д. 21 | K138: сантехника | L138: Смена канализации | M138: 3,6 | N138: 2 | O138: м | P138: 2297 | Q138: февраль
A139: Победы д. 23 | E139: 0 | G139: 0 | H139: февраль | J139: Победы д. 27 | K139: сантехника | L139: Смена канализации | M139: 6 | N139: 6 | O139: м | P139: 3873 | Q139: февраль
A140: Победы д. 25 | E140: 0 | G140: 0 | H140: февраль | J140: Северная д. 15 | K140: сантехника | L140: Смена трубопровода ГВС | M140: 57,60 | N140: 3 | O140: мп | P140: 4083 | Q140: февраль
A141: Победы д. 27 | E141: 0 | G141: 0 | H141: февраль | J141: Северная д. 15 | K141: сантехника | L141: Установка обжимных муфт (гебо) | M141: 28 | N141: 1 | O141: шт | P141: 1549 | Q141: февраль
A142: Победы д. 3 | E142: 0 | G142: 0 | H142: февраль | J142: Молодцово д. 2 | K142: сантехника | L142: Смена задвижек | M142: ТП | N142: 1 | O142: шт | P142: 4202 | Q142: февраль
A143: Победы д. 4 | E143: 0 | G143: 0 | H143: февраль | J143: Кирова д. 13 | K143: сантехника | L143: Смена канализации | M143: 8,9 | N143: 2.5 | O143: м | P143: 2866 | Q143: февраль
A144: Победы д. 40 | E144: 0 | G144: 0 | H144: февраль | J144: Победы д. 7 | K144: сантехника | L144: Смена трубопровода ЦО | M144: 38 | N144: 2 | O144: мп | P144: 3338 | Q144: февраль
A145: Победы д. 5 | E145: 0 | G145: 0 | H145: февраль | J145: Кирова д. 19 | K145: сантехника | L145: Смена трубопровода ХВС | M145: 7 | N145: 4 | O145: мп | P145: 6588 | Q145: февраль
A146: Победы д. 7 | E146: 0 | G146: 0 | H146: февраль | J146: Северная д. 21 | K146: сантехника | L146: Смена трубопровода ГВС | M146: 48,51 | N146: 6 | O146: мп | P146: 10076 | Q146: февраль
A147: Победы д. 9 | E147: 0 | G147: 0 | H147: февраль | J147: Ладожская д. 9 | K147: сантехника | L147: Смена трубопровода ЦО | M147: п-д | N147: 2 | O147: мп | P147: 3425 | Q147: февраль
A148: Северная д. 15 | E148: 0 | G148: 0 | H148: февраль | J148: Ладожская д. 9 | K148: сантехника | L148: Смена (ремонт) радиаторов отопления | M148: п-д | N148: 1 | O148: шт | P148: 5044 | Q148: февраль
A149: Северная д. 17 | E149: 0 | G149: 0 | H149: февраль | J149: БПС д. 3 | K149: сантехника | L149: Смена расширительного бака | M149: п-л | N149: 1 | O149: шт | P149: 8946 | Q149: февраль
A150: Северная д. 21 | E150: 0 | G150: 0 | H150: февраль | J150: БПС д. 3 | K150: сантехника | L150: Смена трубопровода ХВС | M150: п-л | N150: 4 | O150: мп | P150: 6667 | Q150: февраль
A151: Советская д. 21 | E151: 0 | G151: 0 | H151: февраль | J151: Ладожская д. 14 | K151: сантехника | L151: Установка обжимных муфт (гебо) | M151: 25 | N151: 1 | O151: шт | P151: 1549 | Q151: февраль
A152: БПС д. 1 | E152: 0 | G152: 0 | H152: март | J152: Ладожская д. 9 | K152: сантехника | L152: Смена канализации | M152: 934 | N152: 3 | O152: м | P152: 3133 | Q152: февраль
A153: БПС д. 3 | E153: 0 | G153: 0 | H153: март | J153: Северная д. 21 | K153: сантехника | L153: Смена ливневой канализации | M153: п.4 | N153: 8 | O153: м | P153: 10778 | Q153: февраль
A154: БПС д. 5 | E154: 0 | G154: 0 | H154: март | J154: Ладожская д. 12 | K154: сантехника | L154: Смена трубопровода ХВС | M154: 17,20,23,26,29 | N154: 12 | O154: мп | P154: 20703 | Q154: февраль
A155: Горького д. 5 | E155: 0 | G155: 0 | H155: март | J155: Новая д. 38 | K155: сантехника | L155: Смена трубопровода ЦО | M155: 3 | N155: 2 | O155: мп | P155: 3846 | Q155: февраль
A156: Горького д. 7 | E156: 0 | G156: 0 | H156: март | J156: Победы д. 11 | K156: общестрой | L156: Ремонт потолка | M156: 7,8 | N156: 14.5 | O156: м² | P156: 48043 | Q156: февраль
A157: Десантника Исаева д. 1 | E157: 0 | G157: 0 | H157: март | J157: БПС д. 3 | K157: общестрой | L157: Переклейка дефектной плитки | M157: п.4 | N157: 1 | O157: м² | P157: 1611 | Q157: март
A158: Кирова д. 12 | E158: 0 | G158: 0 | H158: март | J158: Победы д. 1 | K158: общестрой | L158: Ремонт полов дощатых | M158: 52;к-р,51 | N158: 14.5 | O158: м² | P158: 32526 | Q158: март,январь
A159: Кирова д. 13 | E159: 0 | G159: 0 | H159: март | J159: Победы д. 1 | K159: общестрой | L159: Ремонт дверных заполнений | M159: к-р | N159: 1 | O159: шт | P159: 8449 | Q159: январь
A160: Кирова д. 15 | E160: 0 | G160: 0 | H160: март | J160: Победы д. 1 | K160: общестрой | L160: Ремонт потолка | M160: к-р | N160: 5.05 | O160: м² | P160: 4157 | Q160: январь
A161: Кирова д. 17 | E161: 0 | G161: 0 | H161: март | J161: Комсомольская д. 8 | K161: общестрой | L161: Ремонт ливневой канализации | M161: 1 | N161: 2 | O161: м | P161: 13442 | Q161: январь
A162: Кирова д. 18 | E162: 0 | G162: 0 | H162: март | J162: Новая д. 7 | K162: общестрой | L162: Уборка и вывоз мусора с чердака | M162: ч-к | N162: 1100 | O162: кг | P162: 4727 | Q162: январь
A163: Кирова д. 19 | E163: 0 | G163: 0 | H163: март | J163: Победы д. 11 | K163: общестрой | L163: Ремонт полов дощатых | M163: 37 | N163: 1.4 | O163: м² | P163: 1155 | Q163: март
A164: Кирова д. 21 | E164: 0 | G164: 0 | H164: март | J164: Новая д. 20 | K164: общестрой | L164: Устройство грязезащитной дорожки | M164: п.1 | N164: 3 | O164: м² | P164: 1850 | Q164: февраль
A165: Кирова д. 22 | E165: 0 | G165: 0 | H165: март | J165: Новая д. 20 | K165: общестрой | L165: Ремонт кровли | M165: п.1(парапет) | N165: 1.15 | O165: м² | P165: 1870 | Q165: февраль
A166: Кирова д. 23 | E166: 0 | G166: 0 | H166: март | J166: Горького д. 5 | K166: общестрой | L166: Ремонт системы вентиляции | M166: 15 | N166: 4 | O166: шт | P166: 3009 | Q166: февраль
A167: Кирова д. 25 | E167: 0 | G167: 0 | H167: март | J167: Краснофлотская д. 5 | K167: общестрой | L167: Ремонт полов дощатых | M167: 1 | N167: 5.7 | O167: м² | P167: 5452 | Q167: февраль
A168: Кирова д. 27 | E168: 0 | G168: 0 | H168: март | J168: Ладожская д. 22 | K168: сантехника | L168: Изготовление и установка регистров | M168: п.1 | N168: 4 | O168: шт | P168: 39053 | Q168: март
A169: Кирова д. 29 | E169: 0 | G169: 0 | H169: март | J169: Победы д. 7 | K169: общестрой | L169: Ремонт полов дощатых | M169: 48 | N169: 8 | O169: м² | P169: 20836 | Q169: март
A170: Комсомольская д. 10 | E170: 0 | G170: 0 | H170: март | J170: Новая д. 30 | K170: общестрой | L170: Устройство наливных полов | M170: п.1-4 | N170: 27.6 | O170: м² | P170: 16414 | Q170: февраль
A171: Комсомольская д. 12 | E171: 0 | G171: 0 | H171: март | J171: Новая д. 24 | K171: общестрой | L171: Ремонт кровли | M171: п.2,3 | N171: 4.3 | O171: м² | P171: 3635 | Q171: февраль
A172: Комсомольская д. 8 | E172: 0 | G172: 0 | H172: март | J172: Советская д. 21 | K172: общестрой | L172: Утепление стен | M172: 4 | N172: 10.5 | O172: м² | P172: 18525 | Q172: март
A173: Краснофлотская д. 3 | E173: 0 | G173: 0 | H173: март | J173: Северная д. 17 | K173: общестрой | L173: Изготовление и установка колпаков | M173: 30 | N173: 1 | O173: шт | P173: 2744 | Q173: март
A174: Краснофлотская д. 4 | E174: 0 | G174: 0 | H174: март | J174: Молодцово д. 4 | K174: общестрой | L174: Промазка битумной мастикой кровли | M174: 7,9 | N174: 1 | O174: м² | P174: 849 | Q174: март
A175: Краснофлотская д. 5 | E175: 0 | G175: 0 | H175: март | J175: Северная д. 17 | K175: общестрой | L175: Устройство примыканий кровли | M175: 35 | N175: 1.04 | O175: м² | P175: 1119 | Q175: февраль
A176: Краснофлотская д. 6 | E176: 0 | G176: 0 | H176: март | J176: Ладожская д. 12 | K176: общестрой | L176: Установка труб вентиляции | M176: 12 | N176: 2 | O176: м | P176: 1236 | Q176: март
A177: Ладожская д. 12 | E177: 0 | G177: 0 | H177: март | J177: Молодцово д. 4 | K177: общестрой | L177: Изготовление и установка колпаков | M177: 7,8 | N177: 3 | O177: шт | P177: 7434 | Q177: февраль
A178: Ладожская д. 14 | E178: 0 | G178: 0 | H178: март | J178: Северная д. 17 | K178: общестрой | L178: Промазка битумной мастикой кровли | M178: 105 | N178: 1 | O178: м² | P178: 300 | Q178: февраль
A179: Ладожская д. 18 | E179: 0 | G179: 0 | H179: март | J179: Новая д. 24 | K179: общестрой | L179: Изготовление люка выхода на кровлю | M179: п.2 | N179: 1 | O179: шт | P179: 3015 | Q179: март
A180: Ладожская д. 20 | E180: 0 | G180: 0 | H180: март | J180: Новая д. 38 | K180: общестрой | L180: Устройство поручней | M180: п-д | N180: 85 | O180: м | P180: 32796 | Q180: март
A181: Ладожская д. 22 | E181: 0 | G181: 0 | H181: март | J181: Кирова д. 19 | K181: электрика | L181: Смена светильников | M181: п.1,2 | N181: 2 | O181: шт | P181: 3157 | Q181: январь
A182: Ладожская д. 9 | E182: 0 | G182: 0 | H182: март | J182: Кирова д. 19 | K182: электрика | L182: Смена выключателей | M182: п.1,2 | N182: 3 | O182: шт | P182: 588 | Q182: январь
A183: Молодежная д. 18 | E183: 0 | G183: 0 | H183: март | J183: Молодцово д. 6 | K183: электрика | L183: Смена светильников | M183: 8;п.2 | N183: 2 | O183: шт | P183: 3192 | Q183: январь,февраль
A184: Молодцово д. 1 | E184: 0 | G184: 0 | H184: март | J184: Новая д. 3 | K184: электрика | L184: Смена светильников | M184: п.2,3 | N184: 3 | O184: шт | P184: 4755 | Q184: февраль
A185: Молодцово д. 2 | E185: 0 | G185: 0 | H185: март | J185: Новая д. 3 | K185: электрика | L185: Прокладка (замена) электропроводки | M185: п.2 | N185: 8 | O185: м | P185: 2319 | Q185: февраль
A186: Молодцово д. 3 | E186: 0 | G186: 0 | H186: март | J186: Новая д. 19 | K186: электрика | L186: Смена светильников | M186: 84 | N186: 1 | O186: шт | P186: 1596 | Q186: февраль
A187: Молодцово д. 4 | E187: 0 | G187: 0 | H187: март | J187: Молодцово д. 2 | K187: электрика | L187: Смена светильников | M187: 60 | N187: 1 | O187: шт | P187: 1596 | Q187: февраль
A188: Молодцово д. 5 | E188: 0 | G188: 0 | H188: март | J188: Победы д. 25 | K188: электрика | L188: Смена светильников | M188: 4 | N188: 2 | O188: шт | P188: 3157 | Q188: февраль
A189: Молодцово д. 6 | E189: 0 | G189: 0 | H189: март | J189: Новая д. 7 | K189: электрика | L189: Смена светильников | M189: 61,п.2,3 | N189: 4 | O189: шт | P189: 6346 | Q189: январь
A190: Молодцово д. 7 | E190: 0 | G190: 0 | H190: март | J190: Новая д. 7 | K190: электрика | L190: Смена выключателей | M190: 61,п.2,3 | N190: 3 | O190: шт | P190: 588 | Q190: январь
A191: Молодцово д. 8 | E191: 0 | G191: 0 | H191: март | J191: Кирова д. 29 | K191: электрика | L191: Смена светильников | M191: п.1 | N191: 2 | O191: шт | P191: 3157 | Q191: февраль
A192: Новая д. 19 | E192: 0 | G192: 0 | H192: март | J192: Кирова д. 29 | K192: электрика | L192: Смена выключателей | M192: п.1 | N192: 1 | O192: шт | P192: 271 | Q192: февраль
A193: Новая д. 20 | E193: 0 | G193: 0 | H193: март | J193: Новая д. 24 | K193: электрика | L193: Смена светильников | M193: п.1,2 | N193: 3 | O193: шт | P193: 4755 | Q193: февраль
A194: Новая д. 22 | E194: 0 | G194: 0 | H194: март | J194: Новая д. 30 | K194: электрика | L194: Смена светильников | M194: п.1-4 | N194: 28 | O194: шт | P194: 44608 | Q194: январь
A195: Новая д. 24 | E195: 0 | G195: 0 | H195: март | J195: Новая д. 7 | K195: электрика | L195: Прокладка (замена) электропроводки | M195: п.3 | N195: 8 | O195: м | P195: 2395 | Q195: февраль
A196: Новая д. 28 | E196: 0 | G196: 0 | H196: март | J196: Ладожская д. 22 | K196: электрика | L196: Смена светильников | M196: 62 | N196: 1 | O196: шт | P196: 1596 | Q196: март
A197: Новая д. 3 | E197: 0 | G197: 0 | H197: март | J197: Комсомольская д. 12 | K197: электрика | L197: Смена светильников | M197: 11 | N197: 1 | O197: шт | P197: 1819 | Q197: март
A198: Новая д. 30 | E198: 0 | G198: 0 | H198: март | J198: Новая д. 9 | K198: электрика | L198: Смена автоматических выключателей | M198: 44 | N198: 1 | O198: шт | P198: 1067 | Q198: март
A199: Новая д. 38 | E199: 0 | G199: 0 | H199: март | J199: Ладожская д. 20 | K199: электрика | L199: Смена автоматических выключателей | M199: 238 | N199: 1 | O199: шт | P199: 1067 | Q199: март
A200: Новая д. 7 | E200: 0 | G200: 0 | H200: март | J200: Новая д. 7 | K200: электрика | L200: Смена автоматических выключателей | M200: 125 | N200: 1 | O200: шт | P200: 1067 | Q200: март
... 3854 more rows

Sheet работы (hidden)
A2: Адрес | B2: Группы работ | C2: Виды работ по текущему ремонту | D2: Место проведения | E2: Объем работ | F2: Единица измерения | G2: Затраты | H2: Месяц | I2: Квартал | J2: Комментарий
A3: БПС д. 1 | E3: 0 | G3: 0 | H3: январь | I3: =IF(OR(H3="январь",H3="февраль",H3="март"),1,IF(OR(H3="апрель",H3="май",H3="июнь"),2,IF(OR(H3="июль",H3="август",H3="сентябрь"),3,IF(OR(H3="октябрь",H3="ноябрь",H3="декабрь"),4,"")))) -> 1
A4: БПС д. 3 | E4: 0 | G4: 0 | H4: январь | I4: 1
A5: БПС д. 5 | E5: 0 | G5: 0 | H5: январь | I5: 1
A6: Горького д. 5 | E6: 0 | G6: 0 | H6: январь | I6: 1
A7: Горького д. 7 | E7: 0 | G7: 0 | H7: январь | I7: 1
A8: Десантника Исаева д. 1 | E8: 0 | G8: 0 | H8: январь | I8: 1
A9: Кирова д. 12 | E9: 0 | G9: 0 | H9: январь | I9: 1
A10: Кирова д. 13 | E10: 0 | G10: 0 | H10: январь | I10: 1
A11: Кирова д. 15 | E11: 0 | G11: 0 | H11: январь | I11: 1
A12: Кирова д. 17 | E12: 0 | G12: 0 | H12: январь | I12: 1
A13: Кирова д. 18 | E13: 0 | G13: 0 | H13: январь | I13: 1
A14: Кирова д. 19 | E14: 0 | G14: 0 | H14: январь | I14: 1
A15: Кирова д. 21 | E15: 0 | G15: 0 | H15: январь | I15: 1
A16: Кирова д. 22 | E16: 0 | G16: 0 | H16: январь | I16: 1
A17: Кирова д. 23 | E17: 0 | G17: 0 | H17: январь | I17: 1
A18: Кирова д. 25 | E18: 0 | G18: 0 | H18: январь | I18: 1
A19: Кирова д. 27 | E19: 0 | G19: 0 | H19: январь | I19: 1
A20: Кирова д. 29 | E20: 0 | G20: 0 | H20: январь | I20: 1
A21: Комсомольская д. 10 | E21: 0 | G21: 0 | H21: январь | I21: 1
A22: Комсомольская д. 12 | E22: 0 | G22: 0 | H22: январь | I22: 1
A23: Комсомольская д. 8 | E23: 0 | G23: 0 | H23: январь | I23: 1
A24: Краснофлотская д. 3 | E24: 0 | G24: 0 | H24: январь | I24: 1
A25: Краснофлотская д. 4 | E25: 0 | G25: 0 | H25: январь | I25: 1
A26: Краснофлотская д. 5 | E26: 0 | G26: 0 | H26: январь | I26: 1
A27: Краснофлотская д. 6 | E27: 0 | G27: 0 | H27: январь | I27: 1
A28: Ладожская д. 12 | E28: 0 | G28: 0 | H28: январь | I28: 1
A29: Ладожская д. 14 | E29: 0 | G29: 0 | H29: январь | I29: 1
A30: Ладожская д. 18 | E30: 0 | G30: 0 | H30: январь | I30: 1
A31: Ладожская д. 20 | E31: 0 | G31: 0 | H31: январь | I31: 1
A32: Ладожская д. 22 | E32: 0 | G32: 0 | H32: январь | I32: 1
A33: Ладожская д. 9 | E33: 0 | G33: 0 | H33: январь | I33: 1
A34: Молодежная д. 18 | E34: 0 | G34: 0 | H34: январь | I34: 1
A35: Молодцово д. 1 | E35: 0 | G35: 0 | H35: январь | I35: 1
A36: Молодцово д. 2 | E36: 0 | G36: 0 | H36: январь | I36: 1
A37: Молодцово д. 3 | E37: 0 | G37: 0 | H37: январь | I37: 1
A38: Молодцово д. 4 | E38: 0 | G38: 0 | H38: январь | I38: 1
A39: Молодцово д. 5 | E39: 0 | G39: 0 | H39: январь | I39: 1
A40: Молодцово д. 6 | E40: 0 | G40: 0 | H40: январь | I40: 1
A41: Молодцово д. 7 | E41: 0 | G41: 0 | H41: январь | I41: 1
A42: Молодцово д. 8 | E42: 0 | G42: 0 | H42: январь | I42: 1
A43: Новая д. 19 | E43: 0 | G43: 0 | H43: январь | I43: 1
A44: Новая д. 20 | E44: 0 | G44: 0 | H44: январь | I44: 1
A45: Новая д. 22 | E45: 0 | G45: 0 | H45: январь | I45: 1
A46: Новая д. 24 | E46: 0 | G46: 0 | H46: январь | I46: 1
A47: Новая д. 28 | E47: 0 | G47: 0 | H47: январь | I47: 1
A48: Новая д. 3 | E48: 0 | G48: 0 | H48: январь | I48: 1
A49: Новая д. 30 | E49: 0 | G49: 0 | H49: январь | I49: 1
A50: Новая д. 38 | E50: 0 | G50: 0 | H50: январь | I50: 1
A51: Новая д. 7 | E51: 0 | G51: 0 | H51: январь | I51: 1
A52: Новая д. 9 | E52: 0 | G52: 0 | H52: январь | I52: 1
A53: Петуниной д. 1 | E53: 0 | G53: 0 | H53: январь | I53: 1
A54: Петуниной д. 2 | E54: 0 | G54: 0 | H54: январь | I54: 1
A55: Петуниной д. 3 | E55: 0 | G55: 0 | H55: январь | I55: 1
A56: Пионерская д. 1 | E56: 0 | G56: 0 | H56: январь | I56: 1
A57: Победы д. 1 | E57: 0 | G57: 0 | H57: январь | I57: 1
A58: Победы д. 11 | E58: 0 | G58: 0 | H58: январь | I58: 1
A59: Победы д. 13 | E59: 0 | G59: 0 | H59: январь | I59: 1
A60: Победы д. 14 | E60: 0 | G60: 0 | H60: январь | I60: 1
A61: Победы д. 15 | E61: 0 | G61: 0 | H61: январь | I61: 1
A62: Победы д. 17 | E62: 0 | G62: 0 | H62: январь | I62: 1
A63: Победы д. 19 | E63: 0 | G63: 0 | H63: январь | I63: 1
A64: Победы д. 21 | E64: 0 | G64: 0 | H64: январь | I64: 1
A65: Победы д. 23 | E65: 0 | G65: 0 | H65: январь | I65: 1
A66: Победы д. 25 | E66: 0 | G66: 0 | H66: январь | I66: 1
A67: Победы д. 27 | E67: 0 | G67: 0 | H67: январь | I67: =IF(OR(H67="январь",H67="февраль",H67="март"),1,IF(OR(H67="апрель",H67="май",H67="июнь"),2,IF(OR(H67="июль",H67="август",H67="сентябрь"),3,IF(OR(H67="октябрь",H67="ноябрь",H67="декабрь"),4,"")))) -> 1
A68: Победы д. 3 | E68: 0 | G68: 0 | H68: январь | I68: 1
A69: Победы д. 4 | E69: 0 | G69: 0 | H69: январь | I69: 1
A70: Победы д. 40 | E70: 0 | G70: 0 | H70: январь | I70: 1
A71: Победы д. 5 | E71: 0 | G71: 0 | H71: январь | I71: 1
A72: Победы д. 7 | E72: 0 | G72: 0 | H72: январь | I72: 1
A73: Победы д. 9 | E73: 0 | G73: 0 | H73: январь | I73: 1
A74: Северная д. 15 | E74: 0 | G74: 0 | H74: январь | I74: 1
A75: Северная д. 17 | E75: 0 | G75: 0 | H75: январь | I75: 1
A76: Северная д. 21 | E76: 0 | G76: 0 | H76: январь | I76: 1
A77: Советская д. 21 | E77: 0 | G77: 0 | H77: январь | I77: 1
A78: БПС д. 1 | E78: 0 | G78: 0 | H78: февраль | I78: 1
A79: БПС д. 3 | E79: 0 | G79: 0 | H79: февраль | I79: 1
A80: БПС д. 5 | E80: 0 | G80: 0 | H80: февраль | I80: 1
A81: Горького д. 5 | E81: 0 | G81: 0 | H81: февраль | I81: 1
A82: Горького д. 7 | E82: 0 | G82: 0 | H82: февраль | I82: 1
A83: Десантника Исаева д. 1 | E83: 0 | G83: 0 | H83: февраль | I83: 1
A84: Кирова д. 12 | E84: 0 | G84: 0 | H84: февраль | I84: 1
A85: Кирова д. 13 | E85: 0 | G85: 0 | H85: февраль | I85: 1
A86: Кирова д. 15 | E86: 0 | G86: 0 | H86: февраль | I86: 1
A87: Кирова д. 17 | E87: 0 | G87: 0 | H87: февраль | I87: 1
A88: Кирова д. 18 | E88: 0 | G88: 0 | H88: февраль | I88: 1
A89: Кирова д. 19 | E89: 0 | G89: 0 | H89: февраль | I89: 1
A90: Кирова д. 21 | E90: 0 | G90: 0 | H90: февраль | I90: 1
A91: Кирова д. 22 | E91: 0 | G91: 0 | H91: февраль | I91: 1
A92: Кирова д. 23 | E92: 0 | G92: 0 | H92: февраль | I92: 1
A93: Кирова д. 25 | E93: 0 | G93: 0 | H93: февраль | I93: 1
A94: Кирова д. 27 | E94: 0 | G94: 0 | H94: февраль | I94: 1
A95: Кирова д. 29 | E95: 0 | G95: 0 | H95: февраль | I95: 1
A96: Комсомольская д. 10 | E96: 0 | G96: 0 | H96: февраль | I96: 1
A97: Комсомольская д. 12 | E97: 0 | G97: 0 | H97: февраль | I97: 1
A98: Комсомольская д. 8 | E98: 0 | G98: 0 | H98: февраль | I98: 1
A99: Краснофлотская д. 3 | E99: 0 | G99: 0 | H99: февраль | I99: 1
A100: Краснофлотская д. 4 | E100: 0 | G100: 0 | H100: февраль | I100: 1
A101: Краснофлотская д. 5 | E101: 0 | G101: 0 | H101: февраль | I101: 1
A102: Краснофлотская д. 6 | E102: 0 | G102: 0 | H102: февраль | I102: 1
A103: Ладожская д. 12 | E103: 0 | G103: 0 | H103: февраль | I103: 1
A104: Ладожская д. 14 | E104: 0 | G104: 0 | H104: февраль | I104: 1
A105: Ладожская д. 18 | E105: 0 | G105: 0 | H105: февраль | I105: 1
A106: Ладожская д. 20 | E106: 0 | G106: 0 | H106: февраль | I106: 1
A107: Ладожская д. 22 | E107: 0 | G107: 0 | H107: февраль | I107: 1
A108: Ладожская д. 9 | E108: 0 | G108: 0 | H108: февраль | I108: 1
A109: Молодежная д. 18 | E109: 0 | G109: 0 | H109: февраль | I109: 1
A110: Молодцово д. 1 | E110: 0 | G110: 0 | H110: февраль | I110: 1
A111: Молодцово д. 2 | E111: 0 | G111: 0 | H111: февраль | I111: 1
A112: Молодцово д. 3 | E112: 0 | G112: 0 | H112: февраль | I112: 1
A113: Молодцово д. 4 | E113: 0 | G113: 0 | H113: февраль | I113: 1
A114: Молодцово д. 5 | E114: 0 | G114: 0 | H114: февраль | I114: 1
A115: Молодцово д. 6 | E115: 0 | G115: 0 | H115: февраль | I115: 1
A116: Молодцово д. 7 | E116: 0 | G116: 0 | H116: февраль | I116: 1
A117: Молодцово д. 8 | E117: 0 | G117: 0 | H117: февраль | I117: 1
A118: Новая д. 19 | E118: 0 | G118: 0 | H118: февраль | I118: 1
A119: Новая д. 20 | E119: 0 | G119: 0 | H119: февраль | I119: 1
A120: Новая д. 22 | E120: 0 | G120: 0 | H120: февраль | I120: 1
A121: Новая д. 24 | E121: 0 | G121: 0 | H121: февраль | I121: 1
A122: Новая д. 28 | E122: 0 | G122: 0 | H122: февраль | I122: 1
A123: Новая д. 3 | E123: 0 | G123: 0 | H123: февраль | I123: 1
A124: Новая д. 30 | E124: 0 | G124: 0 | H124: февраль | I124: 1
A125: Новая д. 38 | E125: 0 | G125: 0 | H125: февраль | I125: 1
A126: Новая д. 7 | E126: 0 | G126: 0 | H126: февраль | I126: 1
A127: Новая д. 9 | E127: 0 | G127: 0 | H127: февраль | I127: 1
A128: Петуниной д. 1 | E128: 0 | G128: 0 | H128: февраль | I128: 1
A129: Петуниной д. 2 | E129: 0 | G129: 0 | H129: февраль | I129: 1
A130: Петуниной д. 3 | E130: 0 | G130: 0 | H130: февраль | I130: 1
A131: Пионерская д. 1 | E131: 0 | G131: 0 | H131: февраль | I131: =IF(OR(H131="январь",H131="февраль",H131="март"),1,IF(OR(H131="апрель",H131="май",H131="июнь"),2,IF(OR(H131="июль",H131="август",H131="сентябрь"),3,IF(OR(H131="октябрь",H131="ноябрь",H131="декабрь"),4,"")))) -> 1
A132: Победы д. 1 | E132: 0 | G132: 0 | H132: февраль | I132: 1
A133: Победы д. 11 | E133: 0 | G133: 0 | H133: февраль | I133: 1
A134: Победы д. 13 | E134: 0 | G134: 0 | H134: февраль | I134: 1
A135: Победы д. 14 | E135: 0 | G135: 0 | H135: февраль | I135: 1
A136: Победы д. 15 | E136: 0 | G136: 0 | H136: февраль | I136: 1
A137: Победы д. 17 | E137: 0 | G137: 0 | H137: февраль | I137: 1
A138: Победы д. 19 | E138: 0 | G138: 0 | H138: февраль | I138: 1
A139: Победы д. 21 | E139: 0 | G139: 0 | H139: февраль | I139: 1
A140: Победы д. 23 | E140: 0 | G140: 0 | H140: февраль | I140: 1
A141: Победы д. 25 | E141: 0 | G141: 0 | H141: февраль | I141: 1
A142: Победы д. 27 | E142: 0 | G142: 0 | H142: февраль | I142: 1
A143: Победы д. 3 | E143: 0 | G143: 0 | H143: февраль | I143: 1
A144: Победы д. 4 | E144: 0 | G144: 0 | H144: февраль | I144: 1
A145: Победы д. 40 | E145: 0 | G145: 0 | H145: февраль | I145: 1
A146: Победы д. 5 | E146: 0 | G146: 0 | H146: февраль | I146: 1
A147: Победы д. 7 | E147: 0 | G147: 0 | H147: февраль | I147: 1
A148: Победы д. 9 | E148: 0 | G148: 0 | H148: февраль | I148: 1
A149: Северная д. 15 | E149: 0 | G149: 0 | H149: февраль | I149: 1
A150: Северная д. 17 | E150: 0 | G150: 0 | H150: февраль | I150: 1
A151: Северная д. 21 | E151: 0 | G151: 0 | H151: февраль | I151: 1
A152: Советская д. 21 | E152: 0 | G152: 0 | H152: февраль | I152: 1
A153: БПС д. 1 | E153: 0 | G153: 0 | H153: март | I153: 1
A154: БПС д. 3 | E154: 0 | G154: 0 | H154: март | I154: 1
A155: БПС д. 5 | E155: 0 | G155: 0 | H155: март | I155: 1
A156: Горького д. 5 | E156: 0 | G156: 0 | H156: март | I156: 1
A157: Горького д. 7 | E157: 0 | G157: 0 | H157: март | I157: 1
A158: Десантника Исаева д. 1 | E158: 0 | G158: 0 | H158: март | I158: 1
A159: Кирова д. 12 | E159: 0 | G159: 0 | H159: март | I159: 1
A160: Кирова д. 13 | E160: 0 | G160: 0 | H160: март | I160: 1
A161: Кирова д. 15 | E161: 0 | G161: 0 | H161: март | I161: 1
A162: Кирова д. 17 | E162: 0 | G162: 0 | H162: март | I162: 1
A163: Кирова д. 18 | E163: 0 | G163: 0 | H163: март | I163: 1
A164: Кирова д. 19 | E164: 0 | G164: 0 | H164: март | I164: 1
A165: Кирова д. 21 | E165: 0 | G165: 0 | H165: март | I165: 1
A166: Кирова д. 22 | E166: 0 | G166: 0 | H166: март | I166: 1
A167: Кирова д. 23 | E167: 0 | G167: 0 | H167: март | I167: 1
A168: Кирова д. 25 | E168: 0 | G168: 0 | H168: март | I168: 1
A169: Кирова д. 27 | E169: 0 | G169: 0 | H169: март | I169: 1
A170: Кирова д. 29 | E170: 0 | G170: 0 | H170: март | I170: 1
A171: Комсомольская д. 10 | E171: 0 | G171: 0 | H171: март | I171: 1
A172: Комсомольская д. 12 | E172: 0 | G172: 0 | H172: март | I172: 1
A173: Комсомольская д. 8 | E173: 0 | G173: 0 | H173: март | I173: 1
A174: Краснофлотская д. 3 | E174: 0 | G174: 0 | H174: март | I174: 1
A175: Краснофлотская д. 4 | E175: 0 | G175: 0 | H175: март | I175: 1
A176: Краснофлотская д. 5 | E176: 0 | G176: 0 | H176: март | I176: 1
A177: Краснофлотская д. 6 | E177: 0 | G177: 0 | H177: март | I177: 1
A178: Ладожская д. 12 | E178: 0 | G178: 0 | H178: март | I178: 1
A179: Ладожская д. 14 | E179: 0 | G179: 0 | H179: март | I179: 1
A180: Ладожская д. 18 | E180: 0 | G180: 0 | H180: март | I180: 1
A181: Ладожская д. 20 | E181: 0 | G181: 0 | H181: март | I181: 1
A182: Ладожская д. 22 | E182: 0 | G182: 0 | H182: март | I182: 1
A183: Ладожская д. 9 | E183: 0 | G183: 0 | H183: март | I183: 1
A184: Молодежная д. 18 | E184: 0 | G184: 0 | H184: март | I184: 1
A185: Молодцово д. 1 | E185: 0 | G185: 0 | H185: март | I185: 1
A186: Молодцово д. 2 | E186: 0 | G186: 0 | H186: март | I186: 1
A187: Молодцово д. 3 | E187: 0 | G187: 0 | H187: март | I187: 1
A188: Молодцово д. 4 | E188: 0 | G188: 0 | H188: март | I188: 1
A189: Молодцово д. 5 | E189: 0 | G189: 0 | H189: март | I189: 1
A190: Молодцово д. 6 | E190: 0 | G190: 0 | H190: март | I190: 1
A191: Молодцово д. 7 | E191: 0 | G191: 0 | H191: март | I191: 1
A192: Молодцово д. 8 | E192: 0 | G192: 0 | H192: март | I192: 1
A193: Новая д. 19 | E193: 0 | G193: 0 | H193: март | I193: 1
A194: Новая д. 20 | E194: 0 | G194: 0 | H194: март | I194: 1
A195: Новая д. 22 | E195: 0 | G195: 0 | H195: март | I195: =IF(OR(H195="январь",H195="февраль",H195="март"),1,IF(OR(H195="апрель",H195="май",H195="июнь"),2,IF(OR(H195="июль",H195="август",H195="сентябрь"),3,IF(OR(H195="октябрь",H195="ноябрь",H195="декабрь"),4,"")))) -> 1
A196: Новая д. 24 | E196: 0 | G196: 0 | H196: март | I196: 1
A197: Новая д. 28 | E197: 0 | G197: 0 | H197: март | I197: 1
A198: Новая д. 3 | E198: 0 | G198: 0 | H198: март | I198: 1
A199: Новая д. 30 | E199: 0 | G199: 0 | H199: март | I199: 1
A200: Новая д. 38 | E200: 0 | G200: 0 | H200: март | I200: 1
A201: Новая д. 7 | E201: 0 | G201: 0 | H201: март | I201: 1
... 1536 more rows
